Workbook

Sheet Cover
B4: Probation Inspection Data Tool
B6: 2018/2020 inspections
A7: Coverage:
A8: England and Wales
A10: Released:
A11: 03 December 2020
A14: Contact:
A15: hmireturns@hmiprobation.gov.uk
A17: HMI Probation
A18: Civil Justice Centre
A19: Manchester
A20: M3 3FX
A22: 0161 240 5336

Sheet Notes
A2: Notes

Sheet User Guide
B2: User Guide
K3: Filters
K16: Service user characteristics

Sheet Domain 2
A1: Probation supervision | G1: Service user
A3: Supervision type | D3: Responsible officer | G3: Gender | I3: Age group | K3: Ethnic group | M3: Risk of serious harm | P3: Likelihood of reoffending (OGRS)
A16: Standard 2.1: Assessment
O17: Sample sizes
O19: 2.1.1
O20: All providers | Q20: ='D2 Pivot_Chart Data'!B16 -> 4542
O21: CRC | Q21: ='D2 Pivot_Chart Data'!B14 -> 3589
O22: NPS | Q22: ='D2 Pivot_Chart Data'!B15 -> 953
O24: 2.1.2
O25: All providers | Q25: ='D2 Pivot_Chart Data'!C16 -> 4541
O26: CRC | Q26: ='D2 Pivot_Chart Data'!C14 -> 3589
O27: NPS | Q27: ='D2 Pivot_Chart Data'!C15 -> 952
O30: 2.1.3
O31: All providers | Q31: ='D2 Pivot_Chart Data'!D16 -> 4536
O32: CRC | Q32: ='D2 Pivot_Chart Data'!D14 -> 3584
O33: NPS | Q33: ='D2 Pivot_Chart Data'!D15 -> 952
A42: Standard 2.2: Planning
O43: Sample sizes
O45: 2.2.1
O46: All providers | Q46: ='D2 Pivot_Chart Data'!G16 -> 4531
O47: CRC | Q47: ='D2 Pivot_Chart Data'!G14 -> 3583
O48: NPS | Q48: ='D2 Pivot_Chart Data'!G15 -> 948
O50: 2.2.2
O51: All providers | Q51: ='D2 Pivot_Chart Data'!H16 -> 4532
O52: CRC | Q52: ='D2 Pivot_Chart Data'!H14 -> 3581
O53: NPS | Q53: ='D2 Pivot_Chart Data'!H15 -> 951
O56: 2.2.3
O57: All providers | Q57: ='D2 Pivot_Chart Data'!I16 -> 3668
O58: CRC | Q58: ='D2 Pivot_Chart Data'!I14 -> 2732
O59: NPS | Q59: ='D2 Pivot_Chart Data'!I15 -> 936
A68: Standard 2.3: Implementation and Delivery
O69: Sample sizes
O71: 2.3.1
O72: All providers | Q72: ='D2 Pivot_Chart Data'!L16 -> 4534
O73: CRC | Q73: ='D2 Pivot_Chart Data'!L14 -> 3585
O74: NPS | Q74: ='D2 Pivot_Chart Data'!L15 -> 949
O76: 2.3.2
O77: All providers | Q77: ='D2 Pivot_Chart Data'!M16 -> 4521
O78: CRC | Q78: ='D2 Pivot_Chart Data'!M14 -> 3573
O79: NPS | Q79: ='D2 Pivot_Chart Data'!M15 -> 948
O82: 2.3.3
O83: All providers | Q83: ='D2 Pivot_Chart Data'!N16 -> 3669
O84: CRC | Q84: ='D2 Pivot_Chart Data'!N14 -> 2731
O85: NPS | Q85: ='D2 Pivot_Chart Data'!N15 -> 938
A94: Standard 2.4: Reviewing
O95: Sample sizes
O97: 2.4.1
O98: All providers | Q98: ='D2 Pivot_Chart Data'!Q16 -> 3435
O99: CRC | Q99: ='D2 Pivot_Chart Data'!Q14 -> 2734
O100: NPS | Q100: ='D2 Pivot_Chart Data'!Q15 -> 701
O102: 2.4.2
O103: All providers | Q103: ='D2 Pivot_Chart Data'!R16 -> 2879
O104: CRC | Q104: ='D2 Pivot_Chart Data'!R14 -> 2238
O105: NPS | Q105: ='D2 Pivot_Chart Data'!R15 -> 641
O108: 2.4.3
O109: All providers | Q109: ='D2 Pivot_Chart Data'!S16 -> 2535
O110: CRC | Q110: ='D2 Pivot_Chart Data'!S14 -> 1894
O111: NPS | Q111: ='D2 Pivot_Chart Data'!S15 -> 641

Sheet Domain 3 Court reports
A1: Probation supervision | F1: Service user
B3: Responsible officer | F3: Gender | H3: Age group | J3: Ethnic group | L3: Risk of serious harm | O3: Likelihood of reoffending (OGRS)
A14: Standard 3.1: Court reports and case allocation
P17: Sample sizes
P20: 3.1.1
P21: NPS | R21: ='Court Pivot_Chart Data'!B10 -> 919
P29: 3.1.2
P30: NPS | R30: ='Court Pivot_Chart Data'!C10 -> 909

Sheet Domain 3 UPW (Y1 only)
B1: Service user
B3: Gender | D3: Age group | F3: Ethnic group
A14: Standard 4.1: Unpaid work (UPW)
P15: Sample sizes
P17: 4.1.1
P18: CRC | R18: ='UPW Pivot_Chart Data'!B11 -> 891
P22: 4.1.2
P23: CRC | R23: ='UPW Pivot_Chart Data'!C11 -> 889
P27: 4.1.3
P28: CRC | R28: ='UPW Pivot_Chart Data'!D11 -> 890
P32: 4.1.4
P33: CRC | R33: ='UPW Pivot_Chart Data'!E11 -> 888

Sheet Domain 3 UPW (Y2 only)
B1: Service user
B3: Gender | D3: Age group | F3: Ethnic group
A15: Standard 4.1: Unpaid work (UPW)
P16: Sample sizes
P18: 4.1.1
P19: CRC | R19: ='UPW Y2 Pivot_Chart Data'!B11 -> 410
P24: 4.1.2
P25: CRC | R25: ='UPW Y2 Pivot_Chart Data'!C11 -> 411
P31: 4.1.4
P32: CRC | R32: ='UPW Y2 Pivot_Chart Data'!D11 -> 413

Sheet Domain 3 TTG
B1: Service user
B3: Gender | D3: Age group | F3: Ethnic group
A14: Standard 4.2: Through the Gate
P16: Sample sizes
P18: 4.2.1
P19: CRC | R19: ='TTG Pivot_Chart Data'!B10 -> 959
P24: 4.2.2
P25: CRC | R25: ='TTG Pivot_Chart Data'!C10 -> 942
P30: 4.2.3
P31: CRC | R31: ='TTG Pivot_Chart Data'!D10 -> 940

Sheet D2 Pivot_Chart Data (hidden)
B1: Assessment | G1: Planning | L1: Implementation and Delivery | Q1: Reviewing
B3: Chart data/calcs | G3: Chart data/calcs | L3: Chart data/calcs | Q3: Chart data/calcs
B4: A3S positive % | C4: A2S positive % | D4: A1S positive % | G4: P3S positive % | H4: P2S positive % | I4: P1S positive % | L4: D3S positive % | M4: D2S positive % | N4: D1S positive % | Q4: R3S positive % | R4: R2S positive % | S4: R1S positive %
A5: CRC | B5: =GETPIVOTDATA("Sum of A3S positive",'D2 Pivot_Chart Data'!$B$32,"CRC/NPS","CRC")/SUM('D2 Pivot_Chart Data'!G33:H33) -> 0.5390625 | C5: =GETPIVOTDATA("Sum of A2S positive",'D2 Pivot_Chart Data'!$B$32,"CRC/NPS","CRC")/SUM('D2 Pivot_Chart Data'!E33:F33) -> 0.6405684035 | D5: =GETPIVOTDATA("Sum of A1S positive",'D2 Pivot_Chart Data'!$B$32,"CRC/NPS","CRC")/SUM('D2 Pivot_Chart Data'!C33:D33) -> 0.6556143773 | F5: CRC | G5: =GETPIVOTDATA("Sum of P3SPositive",'D2 Pivot_Chart Data'!$B$32,"CRC/NPS","CRC")/SUM('D2 Pivot_Chart Data'!M33:N33) -> 0.4553440703 | H5: =GETPIVOTDATA("Sum of P2S positive",'D2 Pivot_Chart Data'!$B$32,"CRC/NPS","CRC")/SUM('D2 Pivot_Chart Data'!K33:L33) -> 0.6481429768 | I5: =GETPIVOTDATA("Sum of P1S positive",'D2 Pivot_Chart Data'!$B$32,"CRC/NPS","CRC")/SUM('D2 Pivot_Chart Data'!I33:J33) -> 0.6327100195 | K5: CRC | L5: =GETPIVOTDATA("Sum of D3S positive",'D2 Pivot_Chart Data'!$B$32,"CRC/NPS","CRC")/SUM('D2 Pivot_Chart Data'!S33:T33) -> 0.4177956792 | M5: =GETPIVOTDATA("Sum of D2S positive",'D2 Pivot_Chart Data'!$B$32,"CRC/NPS","CRC")/SUM('D2 Pivot_Chart Data'!Q33:R33) -> 0.516372796 | N5: =GETPIVOTDATA("Sum of D1S positive",'D2 Pivot_Chart Data'!$B$32,"CRC/NPS","CRC")/SUM('D2 Pivot_Chart Data'!O33:P33) -> 0.709902371 | P5: CRC | Q5: =GETPIVOTDATA("Sum of R3S positive",'D2 Pivot_Chart Data'!$B$32,"CRC/NPS","CRC")/SUM('D2 Pivot_Chart Data'!Y33:Z33) -> 0.4413938754 | R5: =GETPIVOTDATA("Sum of R2S positive",'D2 Pivot_Chart Data'!$B$32,"CRC/NPS","CRC")/SUM('D2 Pivot_Chart Data'!W33:X33) -> 0.6032171582 | S5: =GETPIVOTDATA("Sum of R1S positive",'D2 Pivot_Chart Data'!$B$32,"CRC/NPS","CRC")/SUM('D2 Pivot_Chart Data'!U33:V33) -> 0.6419166057
A6: NPS | B6: =GETPIVOTDATA("Sum of A3S positive",'D2 Pivot_Chart Data'!$B$32,"CRC/NPS","NPS")/SUM('D2 Pivot_Chart Data'!G34:H34) -> 0.7447478992 | C6: =GETPIVOTDATA("Sum of A2S positive",'D2 Pivot_Chart Data'!$B$32,"CRC/NPS","NPS")/SUM('D2 Pivot_Chart Data'!E34:F34) -> 0.8298319328 | D6: =GETPIVOTDATA("Sum of A1S positive",'D2 Pivot_Chart Data'!$B$32,"CRC/NPS","NPS")/SUM('D2 Pivot_Chart Data'!C34:D34) -> 0.8132214061 | F6: NPS | G6: =GETPIVOTDATA("Sum of P3SPositive",'D2 Pivot_Chart Data'!$B$32,"CRC/NPS","NPS")/SUM('D2 Pivot_Chart Data'!M34:N34) -> 0.6987179487 | H6: =GETPIVOTDATA("Sum of P2S positive",'D2 Pivot_Chart Data'!$B$32,"CRC/NPS","NPS")/SUM('D2 Pivot_Chart Data'!K34:L34) -> 0.7549947424 | I6: =GETPIVOTDATA("Sum of P1S positive",'D2 Pivot_Chart Data'!$B$32,"CRC/NPS","NPS")/SUM('D2 Pivot_Chart Data'!I34:J34) -> 0.7605485232 | K6: NPS | L6: =GETPIVOTDATA("Sum of D3S positive",'D2 Pivot_Chart Data'!$B$32,"CRC/NPS","NPS")/SUM('D2 Pivot_Chart Data'!S34:T34) -> 0.6396588486 | M6: =GETPIVOTDATA("Sum of D2S positive",'D2 Pivot_Chart Data'!$B$32,"CRC/NPS","NPS")/SUM('D2 Pivot_Chart Data'!Q34:R34) -> 0.6476793249 | N6: =GETPIVOTDATA("Sum of D1S positive",'D2 Pivot_Chart Data'!$B$32,"CRC/NPS","NPS")/SUM('D2 Pivot_Chart Data'!O34:P34) -> 0.8630136986 | P6: NPS | Q6: =GETPIVOTDATA("Sum of R3S positive",'D2 Pivot_Chart Data'!$B$32,"CRC/NPS","NPS")/SUM('D2 Pivot_Chart Data'!Y34:Z34) -> 0.6209048362 | R6: =GETPIVOTDATA("Sum of R2S positive",'D2 Pivot_Chart Data'!$B$32,"CRC/NPS","NPS")/SUM('D2 Pivot_Chart Data'!W34:X34) -> 0.7269890796 | S6: =GETPIVOTDATA("Sum of R1S positive",'D2 Pivot_Chart Data'!$B$32,"CRC/NPS","NPS")/SUM('D2 Pivot_Chart Data'!U34:V34) -> 0.7988587732
A7: All providers | B7: =GETPIVOTDATA("Sum of A3S positive",'D2 Pivot_Chart Data'!$B$32)/SUM('D2 Pivot_Chart Data'!G35:H35) -> 0.5822310406 | C7: =GETPIVOTDATA("Sum of A2S positive",'D2 Pivot_Chart Data'!$B$32)/SUM('D2 Pivot_Chart Data'!E35:F35) -> 0.6802466417 | D7: =GETPIVOTDATA("Sum of A1S positive",'D2 Pivot_Chart Data'!$B$32)/SUM('D2 Pivot_Chart Data'!C35:D35) -> 0.6886833994 | F7: All providers | G7: =GETPIVOTDATA("Sum of P3SPositive",'D2 Pivot_Chart Data'!$B$32)/SUM('D2 Pivot_Chart Data'!M35:N35) -> 0.5174482007 | H7: =GETPIVOTDATA("Sum of P2S positive",'D2 Pivot_Chart Data'!$B$32)/SUM('D2 Pivot_Chart Data'!K35:L35) -> 0.670564872 | I7: =GETPIVOTDATA("Sum of P1S positive",'D2 Pivot_Chart Data'!$B$32)/SUM('D2 Pivot_Chart Data'!I35:J35) -> 0.6594570735 | K7: All providers | L7: =GETPIVOTDATA("Sum of D3S positive",'D2 Pivot_Chart Data'!$B$32)/SUM('D2 Pivot_Chart Data'!S35:T35) -> 0.474516217 | M7: =GETPIVOTDATA("Sum of D2S positive",'D2 Pivot_Chart Data'!$B$32)/SUM('D2 Pivot_Chart Data'!Q35:R35) -> 0.5439062154 | N7: =GETPIVOTDATA("Sum of D1S positive",'D2 Pivot_Chart Data'!$B$32)/SUM('D2 Pivot_Chart Data'!O35:P35) -> 0.7419497133 | P7: All providers | Q7: =GETPIVOTDATA("Sum of R3S positive",'D2 Pivot_Chart Data'!$B$32)/SUM('D2 Pivot_Chart Data'!Y35:Z35) -> 0.4867850099 | R7: =GETPIVOTDATA("Sum of R2S positive",'D2 Pivot_Chart Data'!$B$32)/SUM('D2 Pivot_Chart Data'!W35:X35) -> 0.6307745745 | S7: =GETPIVOTDATA("Sum of R1S positive",'D2 Pivot_Chart Data'!$B$32)/SUM('D2 Pivot_Chart Data'!U35:V35) -> 0.673944687
B8: Does assessment focus sufficiently on keeping other people safe? | C8: Does assessment focus sufficiently on the factors linked to offending and desistance? | D8: Does assessment focus sufficiently on engaging the service user? | G8: Does planning focus sufficiently on keeping other people safe? | H8: Does planning focus sufficiently on reducing reoffending and supporting the service user's desistance? | I8: Does planning focus sufficiently on engaging the service user? | L8: Does the implementation and delivery of services effectively support the safety of other people? | M8: Does the implementation and delivery of services effectively support the service user's desistance? | N8: Is the sentence/post-custody period implemented effectively with a focus on engaging the service user? | Q8: Does reviewing focus sufficiently on keeping other people safe? | R8: Does reviewing focus sufficiently on supporting the service user's desistance? | S8: Does reviewing focus sufficiently on supporting the service user's compliance and engagement?
B12: Assessment Sample size breakdown | G12: Planning Sample size breakdown | L12: Implementation & Delivery Sample size breakdown | Q12: Reviewing Sample size breakdown
B13: A1S | C13: A2S | D13: A3S | G13: P1S | H13: P2S | I13: P3S | L13: D1S | M13: D2S | N13: D3S | Q13: R1S | R13: R2S | S13: R3S
A14: CRC | B14: =SUM('D2 Pivot_Chart Data'!C33:D33) -> 3589 | C14: =SUM('D2 Pivot_Chart Data'!E33:F33) -> 3589 | D14: =SUM('D2 Pivot_Chart Data'!G33:H33) -> 3584 | F14: CRC | G14: =SUM('D2 Pivot_Chart Data'!I33:J33) -> 3583 | H14: =SUM('D2 Pivot_Chart Data'!K33:L33) -> 3581 | I14: =SUM('D2 Pivot_Chart Data'!M33:N33) -> 2732 | K14: CRC | L14: =SUM('D2 Pivot_Chart Data'!O33:P33) -> 3585 | M14: =SUM('D2 Pivot_Chart Data'!Q33:R33) -> 3573 | N14: =SUM('D2 Pivot_Chart Data'!S33:T33) -> 2731 | P14: CRC | Q14: =SUM('D2 Pivot_Chart Data'!U33:V33) -> 2734 | R14: =SUM('D2 Pivot_Chart Data'!W33:X33) -> 2238 | S14: =SUM('D2 Pivot_Chart Data'!Y33:Z33) -> 1894
A15: NPS | B15: =SUM('D2 Pivot_Chart Data'!C34:D34) -> 953 | C15: =SUM('D2 Pivot_Chart Data'!E34:F34) -> 952 | D15: =SUM('D2 Pivot_Chart Data'!G34:H34) -> 952 | F15: NPS | G15: =SUM('D2 Pivot_Chart Data'!I34:J34) -> 948 | H15: =SUM('D2 Pivot_Chart Data'!K34:L34) -> 951 | I15: =SUM('D2 Pivot_Chart Data'!M34:N34) -> 936 | K15: NPS | L15: =SUM('D2 Pivot_Chart Data'!O34:P34) -> 949 | M15: =SUM('D2 Pivot_Chart Data'!Q34:R34) -> 948 | N15: =SUM('D2 Pivot_Chart Data'!S34:T34) -> 938 | P15: NPS | Q15: =SUM('D2 Pivot_Chart Data'!U34:V34) -> 701 | R15: =SUM('D2 Pivot_Chart Data'!W34:X34) -> 641 | S15: =SUM('D2 Pivot_Chart Data'!Y34:Z34) -> 641
A16: All providers | B16: =SUM('D2 Pivot_Chart Data'!C35:D35) -> 4542 | C16: =SUM('D2 Pivot_Chart Data'!E35:F35) -> 4541 | D16: =SUM('D2 Pivot_Chart Data'!G35:H35) -> 4536 | F16: All providers | G16: =SUM('D2 Pivot_Chart Data'!I35:J35) -> 4531 | H16: =SUM('D2 Pivot_Chart Data'!K35:L35) -> 4532 | I16: =SUM('D2 Pivot_Chart Data'!M35:N35) -> 3668 | K16: All providers | L16: =SUM('D2 Pivot_Chart Data'!O35:P35) -> 4534 | M16: =SUM('D2 Pivot_Chart Data'!Q35:R35) -> 4521 | N16: =SUM('D2 Pivot_Chart Data'!S35:T35) -> 3669 | P16: All providers | Q16: =SUM('D2 Pivot_Chart Data'!U35:V35) -> 3435 | R16: =SUM('D2 Pivot_Chart Data'!W35:X35) -> 2879 | S16: =SUM('D2 Pivot_Chart Data'!Y35:Z35) -> 2535
B24: Supervision Type | C24: (All)
B25: Responsible Officer | C25: (All)
B26: Gender | C26: (All)
B27: Age group | C27: (All)
B28: Ethnic group | C28: (All)
B29: Risk of serious harm | C29: (All)
B30: Likelihood of reoffending (OGRS) | C30: (All)
B32: Row Labels | C32: Sum of A1S positive | D32: Sum of A1S negative | E32: Sum of A2S positive | F32: Sum of A2S negative | G32: Sum of A3S positive | H32: Sum of A3S negative | I32: Sum of P1S positive | J32: Sum of P1S negative | K32: Sum of P2S positive | L32: Sum of P2S negative | M32: Sum of P3SPositive | N32: Sum of P3S negative | O32: Sum of D1S positive | P32: Sum of D1S negative | Q32: Sum of D2S positive | R32: Sum of D2S negative | S32: Sum of D3S positive | T32: Sum of D3S negative | U32: Sum of R1S positive | V32: Sum of R1S negative | W32: Sum of R2S positive | X32: Sum of R2S negative | Y32: Sum of R3S positive | Z32: Sum of R3S negative
B33: CRC | C33: 2353 | D33: 1236 | E33: 2299 | F33: 1290 | G33: 1932 | H33: 1652 | I33: 2267 | J33: 1316 | K33: 2321 | L33: 1260 | M33: 1244 | N33: 1488 | O33: 2545 | P33: 1040 | Q33: 1845 | R33: 1728 | S33: 1141 | T33: 1590 | U33: 1755 | V33: 979 | W33: 1350 | X33: 888 | Y33: 836 | Z33: 1058
B34: NPS | C34: 775 | D34: 178 | E34: 790 | F34: 162 | G34: 709 | H34: 243 | I34: 721 | J34: 227 | K34: 718 | L34: 233 | M34: 654 | N34: 282 | O34: 819 | P34: 130 | Q34: 614 | R34: 334 | S34: 600 | T34: 338 | U34: 560 | V34: 141 | W34: 466 | X34: 175 | Y34: 398 | Z34: 243
B35: Grand Total | C35: 3128 | D35: 1414 | E35: 3089 | F35: 1452 | G35: 2641 | H35: 1895 | I35: 2988 | J35: 1543 | K35: 3039 | L35: 1493 | M35: 1898 | N35: 1770 | O35: 3364 | P35: 1170 | Q35: 2459 | R35: 2062 | S35: 1741 | T35: 1928 | U35: 2315 | V35: 1120 | W35: 1816 | X35: 1063 | Y35: 1234 | Z35: 1301

Sheet D2 data (hidden)
A1: CRC/NPS | B1: Supervision Type | C1: Responsible Officer | D1: Gender | E1: Age group | F1: Ethnic group | G1: Likelihood of reoffending (OGRS) | H1: Risk of serious harm | I1: A1S positive | J1: A1S negative | K1: A2S positive | L1: A2S negative | M1: A3S positive | N1: A3S negative | O1: P1S positive | P1: P1S negative | Q1: P2S positive | R1: P2S negative | S1: P3SPositive | T1: P3S negative | U1: D1S positive | V1: D1S negative | W1: D2S positive | X1: D2S negative | Y1: D3S positive | Z1: D3S negative | AA1: R1S positive | AB1: R1S negative | AC1: R2S positive | AD1: R2S negative | AE1: R3S positive | AF1: R3S negative
A2: CRC | B2: Community sentence | C2: PSO | D2: Male | E2: 18-24 | F2: White | G2: (Very) High | H2: Medium | J2: 1 | L2: 1 | N2: 1 | P2: 1 | R2: 1 | T2: 1 | V2: 1 | X2: 1 | Z2: 1 | AB2: 1 | AD2: 1 | AF2: 1
A3: CRC | B3: Community sentence | C3: PO | D3: Male | E3: 30-39 | F3: White | G3: Medium | H3: Medium | I3: 1 | K3: 1 | M3: 1 | O3: 1 | Q3: 1 | S3: 1 | U3: 1 | W3: 1 | Y3: 1 | AA3: 1 | AE3: 1
A4: CRC | B4: Community sentence | C4: PO | D4: Male | E4: 50+ | F4: White | G4: Low | H4: Medium | J4: 1 | K4: 1 | N4: 1 | P4: 1 | Q4: 1 | S4: 1 | V4: 1 | X4: 1 | Z4: 1 | AB4: 1
A5: CRC | B5: Community sentence | C5: PSO | D5: Male | E5: 30-39 | F5: White | G5: Medium | H5: Medium | I5: 1 | K5: 1 | M5: 1 | O5: 1 | Q5: 1 | S5: 1 | V5: 1 | X5: 1 | Z5: 1 | AB5: 1 | AD5: 1 | AF5: 1
A6: CRC | B6: Community sentence | C6: PSO | D6: Male | E6: 25-29 | F6: White | G6: Medium | H6: Medium | I6: 1 | K6: 1 | M6: 1 | O6: 1 | Q6: 1 | S6: 1 | U6: 1 | W6: 1 | Y6: 1 | AA6: 1 | AC6: 1 | AE6: 1
A7: CRC | B7: Community sentence | C7: PO | D7: Male | E7: 50+ | F7: White | G7: Low | H7: Medium | I7: 1 | L7: 1 | N7: 1 | O7: 1 | Q7: 1 | T7: 1 | U7: 1 | W7: 1 | Z7: 1 | AB7: 1 | AD7: 1 | AF7: 1
A8: CRC | B8: Post-release supervision | C8: PSO | D8: Male | E8: 25-29 | F8: White | G8: (Very) High | H8: Medium | J8: 1 | K8: 1 | N8: 1 | P8: 1 | R8: 1 | T8: 1 | U8: 1 | X8: 1 | Z8: 1 | AA8: 1 | AD8: 1 | AF8: 1
A9: CRC | B9: Community sentence | C9: PSO | D9: Male | E9: 50+ | F9: White | G9: Low | H9: Medium | I9: 1 | K9: 1 | M9: 1 | O9: 1 | Q9: 1 | S9: 1 | U9: 1 | W9: 1 | Y9: 1 | AA9: 1 | AC9: 1 | AE9: 1
A10: CRC | B10: Community sentence | C10: PO | D10: Male | E10: 30-39 | F10: White | G10: (Very) High | H10: Medium | I10: 1 | K10: 1 | M10: 1 | O10: 1 | Q10: 1 | S10: 1 | U10: 1 | W10: 1 | Y10: 1 | AA10: 1
A11: CRC | B11: Community sentence | C11: PSO | D11: Male | E11: 40-49 | F11: White | G11: Low | H11: Medium | I11: 1 | K11: 1 | M11: 1 | O11: 1 | Q11: 1 | S11: 1 | V11: 1 | W11: 1 | Z11: 1 | AB11: 1 | AD11: 1 | AF11: 1
A12: CRC | B12: Community sentence | C12: PO | D12: Male | E12: 30-39 | F12: White | G12: Medium | H12: Medium | I12: 1 | K12: 1 | M12: 1 | O12: 1 | Q12: 1 | S12: 1 | U12: 1 | W12: 1 | Y12: 1 | AA12: 1 | AC12: 1 | AE12: 1
A13: CRC | B13: Community sentence | C13: PO | D13: Male | E13: 50+ | F13: White | G13: Low | H13: Medium | I13: 1 | K13: 1 | M13: 1 | O13: 1 | Q13: 1 | S13: 1 | U13: 1 | W13: 1 | Y13: 1 | AA13: 1 | AE13: 1
A14: CRC | B14: Community sentence | C14: PSO | D14: Male | E14: 30-39 | F14: White | G14: Medium | H14: Medium | I14: 1 | K14: 1 | M14: 1 | O14: 1 | Q14: 1 | U14: 1 | W14: 1 | AA14: 1 | AC14: 1
A15: CRC | B15: Community sentence | C15: PSO | D15: Male | E15: 25-29 | F15: White | G15: Medium | H15: Medium | I15: 1 | K15: 1 | N15: 1 | O15: 1 | Q15: 1 | S15: 1 | V15: 1 | X15: 1 | Z15: 1 | AC15: 1
A16: CRC | B16: Community sentence | C16: PO | D16: Male | E16: 30-39 | F16: White | G16: Medium | H16: Medium | I16: 1 | K16: 1 | M16: 1 | P16: 1 | R16: 1 | T16: 1 | U16: 1 | X16: 1 | Z16: 1 | AB16: 1
A17: CRC | B17: Community sentence | C17: PSO | D17: Male | E17: 50+ | F17: White | G17: Low | H17: Medium | I17: 1 | K17: 1 | M17: 1 | O17: 1 | Q17: 1 | S17: 1 | U17: 1 | W17: 1 | Y17: 1 | AA17: 1 | AC17: 1
A18: CRC | B18: Community sentence | C18: PO | D18: Male | E18: 25-29 | F18: White | G18: Medium | H18: Medium | I18: 1 | K18: 1 | M18: 1 | O18: 1 | Q18: 1 | S18: 1 | U18: 1 | W18: 1 | Y18: 1 | AA18: 1 | AE18: 1
A19: CRC | B19: Community sentence | C19: PSO | D19: Male | E19: 18-24 | F19: White | G19: Low | H19: Medium | I19: 1 | K19: 1 | M19: 1 | O19: 1 | Q19: 1 | S19: 1 | U19: 1 | W19: 1 | Y19: 1 | AA19: 1 | AC19: 1 | AE19: 1
A20: CRC | B20: Community sentence | C20: PO | D20: Male | E20: 18-24 | F20: White | G20: Medium | H20: Medium | J20: 1 | L20: 1 | N20: 1 | P20: 1 | R20: 1 | T20: 1 | U20: 1 | X20: 1 | Z20: 1 | AA20: 1 | AC20: 1 | AF20: 1
A21: CRC | B21: Community sentence | C21: PSO | D21: Male | E21: 30-39 | F21: White | G21: Low | H21: Medium | J21: 1 | L21: 1 | N21: 1 | O21: 1 | R21: 1 | T21: 1 | U21: 1 | X21: 1 | Z21: 1 | AB21: 1 | AD21: 1 | AF21: 1
A22: CRC | B22: Community sentence | C22: PSO | D22: Male | E22: 30-39 | F22: White | G22: Low | H22: Medium | J22: 1 | L22: 1 | N22: 1 | P22: 1 | R22: 1 | T22: 1 | V22: 1 | X22: 1 | Z22: 1 | AB22: 1 | AD22: 1 | AF22: 1
A23: CRC | B23: Community sentence | C23: PSO | D23: Male | E23: 30-39 | F23: White | G23: Medium | H23: Medium | I23: 1 | K23: 1 | M23: 1 | O23: 1 | Q23: 1 | S23: 1 | U23: 1 | X23: 1 | Z23: 1 | AA23: 1 | AC23: 1 | AF23: 1
A24: CRC | B24: Community sentence | C24: PSO | D24: Male | E24: 18-24 | G24: Low | H24: Medium | I24: 1 | K24: 1 | M24: 1 | O24: 1 | Q24: 1 | S24: 1 | U24: 1 | W24: 1 | Y24: 1 | AA24: 1 | AC24: 1
A25: CRC | B25: Community sentence | C25: PSO | D25: Male | E25: 25-29 | F25: White | G25: Low | H25: Medium | I25: 1 | K25: 1 | M25: 1 | O25: 1 | Q25: 1 | S25: 1 | U25: 1 | W25: 1 | Y25: 1 | AA25: 1 | AC25: 1 | AE25: 1
A26: CRC | B26: Community sentence | C26: PSO | D26: Male | E26: 18-24 | F26: White | G26: Low | H26: Medium | I26: 1 | K26: 1 | M26: 1 | O26: 1 | Q26: 1 | S26: 1 | U26: 1 | W26: 1 | Y26: 1 | AA26: 1 | AC26: 1
A27: CRC | B27: Community sentence | C27: PO | D27: Male | E27: 30-39 | F27: White | G27: (Very) High | H27: Medium | J27: 1 | K27: 1 | N27: 1 | O27: 1 | Q27: 1 | T27: 1 | U27: 1 | W27: 1 | Z27: 1 | AB27: 1
A28: CRC | B28: Community sentence | C28: PSO | D28: Male | E28: 50+ | F28: White | G28: Low | H28: Medium | I28: 1 | L28: 1 | N28: 1 | O28: 1 | Q28: 1 | T28: 1 | U28: 1 | W28: 1 | Y28: 1 | AA28: 1 | AC28: 1
A29: CRC | B29: Community sentence | C29: PSO | D29: Male | E29: 30-39 | F29: White | G29: Medium | H29: Medium | I29: 1 | K29: 1 | M29: 1 | P29: 1 | Q29: 1 | T29: 1 | U29: 1 | W29: 1 | Y29: 1 | AA29: 1 | AC29: 1
A30: CRC | B30: Community sentence | D30: Male | E30: 50+ | F30: Black | G30: Low | H30: Medium | I30: 1 | K30: 1 | M30: 1 | O30: 1 | Q30: 1 | S30: 1 | V30: 1 | W30: 1 | Y30: 1 | AA30: 1 | AE30: 1
A31: CRC | B31: Community sentence | D31: Male | E31: 25-29 | F31: White | G31: Medium | H31: Medium | I31: 1 | K31: 1 | N31: 1 | O31: 1 | Q31: 1 | U31: 1 | W31: 1 | AA31: 1 | AC31: 1 | AE31: 1
A32: CRC | B32: Community sentence | C32: PSO | D32: Male | E32: 40-49 | F32: White | G32: Low | H32: Medium | I32: 1 | K32: 1 | M32: 1 | P32: 1 | Q32: 1 | S32: 1 | U32: 1 | W32: 1 | Y32: 1 | AA32: 1 | AC32: 1 | AE32: 1
A33: CRC | B33: Community sentence | C33: PO | D33: Male | E33: 30-39 | F33: White | G33: Medium | H33: Medium | I33: 1 | K33: 1 | N33: 1 | O33: 1 | Q33: 1 | T33: 1 | U33: 1 | W33: 1 | Z33: 1 | AB33: 1 | AF33: 1
A34: CRC | B34: Community sentence | C34: PSO | D34: Male | E34: 40-49 | F34: White | G34: Low | H34: Low | I34: 1 | K34: 1 | M34: 1 | O34: 1 | R34: 1 | V34: 1 | X34: 1
A35: CRC | B35: Community sentence | C35: PSO | D35: Male | E35: 30-39 | F35: White | G35: Medium | H35: Low | I35: 1 | K35: 1 | N35: 1 | O35: 1 | Q35: 1 | U35: 1 | W35: 1 | AC35: 1 | AF35: 1
A36: CRC | B36: Community sentence | C36: PSO | D36: Male | E36: 30-39 | F36: White | J36: 1 | L36: 1 | N36: 1 | P36: 1 | R36: 1 | T36: 1 | V36: 1 | X36: 1 | Z36: 1 | AA36: 1 | AD36: 1 | AF36: 1
A37: CRC | B37: Community sentence | C37: PSO | D37: Male | E37: 25-29 | F37: White | G37: Medium | H37: Low | I37: 1 | K37: 1 | M37: 1 | O37: 1 | Q37: 1 | U37: 1 | W37: 1 | AA37: 1 | AC37: 1
A38: CRC | B38: Community sentence | C38: PO | D38: Male | E38: 30-39 | G38: Low | H38: Low | J38: 1 | K38: 1 | N38: 1 | P38: 1 | R38: 1 | U38: 1 | X38: 1 | AA38: 1 | AF38: 1
A39: CRC | B39: Community sentence | C39: PO | D39: Male | E39: 40-49 | F39: White | G39: Low | H39: Low | I39: 1 | K39: 1 | M39: 1 | O39: 1 | Q39: 1 | V39: 1 | W39: 1 | AB39: 1
A40: CRC | B40: Community sentence | C40: PSO | D40: Male | E40: 40-49 | F40: White | G40: Medium | H40: Low | I40: 1 | K40: 1 | M40: 1 | O40: 1 | Q40: 1 | U40: 1 | W40: 1 | AA40: 1 | AC40: 1
A41: CRC | B41: Community sentence | C41: PSO | D41: Male | E41: 40-49 | F41: White | G41: (Very) High | J41: 1 | L41: 1 | N41: 1 | P41: 1 | R41: 1 | V41: 1 | X41: 1 | AB41: 1 | AD41: 1 | AF41: 1
A42: CRC | B42: Community sentence | C42: PSO | D42: Male | E42: 40-49 | F42: White | G42: Low | H42: Low | I42: 1 | K42: 1 | M42: 1 | O42: 1 | Q42: 1 | U42: 1 | X42: 1 | AA42: 1 | AC42: 1 | AF42: 1
A43: CRC | B43: Community sentence | C43: PSO | D43: Male | E43: 18-24 | F43: White | G43: Medium | J43: 1 | L43: 1 | N43: 1 | P43: 1 | R43: 1 | T43: 1 | V43: 1 | X43: 1 | Z43: 1 | AB43: 1
A44: CRC | B44: Community sentence | C44: PSO | D44: Male | F44: White | G44: Low | H44: Low | I44: 1 | K44: 1 | M44: 1 | O44: 1 | Q44: 1 | U44: 1 | X44: 1 | AA44: 1 | AC44: 1
A45: CRC | B45: Community sentence | C45: PSO | D45: Male | E45: 25-29 | F45: White | G45: Medium | H45: Low | I45: 1 | K45: 1 | M45: 1 | O45: 1 | Q45: 1 | U45: 1 | W45: 1 | AA45: 1 | AC45: 1
A46: CRC | B46: Community sentence | C46: PSO | D46: Male | E46: 50+ | F46: White | G46: Low | H46: Low | I46: 1 | K46: 1 | M46: 1 | O46: 1 | Q46: 1 | U46: 1 | W46: 1 | AA46: 1 | AC46: 1 | AE46: 1
A47: CRC | B47: Post-release supervision | D47: Male | E47: 40-49 | F47: White | G47: (Very) High | H47: Medium | J47: 1 | K47: 1 | N47: 1 | O47: 1 | Q47: 1 | T47: 1 | U47: 1 | X47: 1 | Z47: 1 | AA47: 1 | AC47: 1 | AF47: 1
A48: CRC | B48: Post-release supervision | C48: PO | D48: Male | E48: 18-24 | F48: White | G48: Low | H48: Medium | I48: 1 | K48: 1 | N48: 1 | O48: 1 | Q48: 1 | S48: 1 | U48: 1 | W48: 1 | Z48: 1 | AA48: 1 | AC48: 1 | AE48: 1
A49: CRC | B49: Post-release supervision | C49: PO | D49: Male | E49: 25-29 | F49: White | G49: Medium | H49: Medium | I49: 1 | K49: 1 | N49: 1 | O49: 1 | Q49: 1 | T49: 1 | U49: 1 | X49: 1 | Z49: 1
A50: CRC | B50: Post-release supervision | C50: PSO | D50: Male | E50: 18-24 | F50: White | G50: (Very) High | H50: Medium | J50: 1 | K50: 1 | M50: 1 | O50: 1 | Q50: 1 | S50: 1 | U50: 1 | W50: 1 | Y50: 1 | AC50: 1 | AF50: 1
A51: CRC | B51: Post-release supervision | C51: PSO | D51: Male | E51: 50+ | F51: White | G51: (Very) High | H51: Medium | J51: 1 | K51: 1 | N51: 1 | P51: 1 | R51: 1 | T51: 1 | V51: 1 | X51: 1 | Z51: 1 | AA51: 1 | AD51: 1 | AF51: 1
A52: CRC | B52: Post-release supervision | C52: PSO | D52: Male | E52: 25-29 | F52: White | G52: (Very) High | H52: Medium | I52: 1 | K52: 1 | M52: 1 | P52: 1 | Q52: 1 | S52: 1 | U52: 1 | W52: 1 | Y52: 1 | AA52: 1 | AC52: 1
A53: CRC | B53: Post-release supervision | C53: PO | D53: Male | E53: 30-39 | F53: White | G53: Medium | H53: Medium | I53: 1 | K53: 1 | N53: 1 | O53: 1 | Q53: 1 | S53: 1 | U53: 1 | W53: 1 | Z53: 1 | AA53: 1 | AC53: 1 | AE53: 1
A54: CRC | B54: Post-release supervision | C54: PSO | D54: Male | E54: 30-39 | F54: White | H54: Medium | J54: 1 | K54: 1 | M54: 1 | P54: 1 | Q54: 1 | S54: 1 | V54: 1 | X54: 1 | Z54: 1 | AB54: 1 | AD54: 1 | AF54: 1
A55: CRC | B55: Post-release supervision | C55: PO | D55: Male | E55: 30-39 | F55: White | G55: (Very) High | H55: Medium | J55: 1 | K55: 1 | N55: 1 | P55: 1 | Q55: 1 | T55: 1 | V55: 1 | X55: 1 | Z55: 1 | AB55: 1 | AC55: 1 | AF55: 1
A56: CRC | B56: Post-release supervision | C56: PSO | D56: Male | E56: 25-29 | F56: White | G56: Medium | H56: Medium | I56: 1 | K56: 1 | M56: 1 | O56: 1 | Q56: 1 | S56: 1 | U56: 1 | W56: 1 | Y56: 1 | AA56: 1
A57: CRC | B57: Post-release supervision | C57: PO | D57: Male | E57: 18-24 | F57: White | G57: (Very) High | H57: Medium | J57: 1 | L57: 1 | N57: 1 | P57: 1 | R57: 1 | T57: 1 | V57: 1 | X57: 1 | Z57: 1 | AB57: 1 | AD57: 1 | AF57: 1
A58: CRC | B58: Post-release supervision | C58: PSO | D58: Male | E58: 30-39 | F58: White | G58: Medium | H58: Medium | J58: 1 | L58: 1 | M58: 1 | O58: 1 | Q58: 1 | S58: 1 | U58: 1 | W58: 1 | Y58: 1
A59: CRC | B59: Post-release supervision | C59: PSO | D59: Male | E59: 40-49 | F59: White | G59: Medium | H59: Medium | I59: 1 | K59: 1 | M59: 1 | O59: 1 | Q59: 1 | S59: 1 | U59: 1 | W59: 1 | Y59: 1 | AC59: 1
A60: CRC | B60: Post-release supervision | C60: PSO | D60: Male | E60: 40-49 | F60: White | G60: Low | H60: Medium | I60: 1 | L60: 1 | M60: 1 | O60: 1 | Q60: 1 | T60: 1 | U60: 1 | W60: 1 | Z60: 1
A61: CRC | B61: Post-release supervision | C61: PO | D61: Male | E61: 18-24 | F61: White | G61: (Very) High | H61: Medium | I61: 1 | K61: 1 | M61: 1 | O61: 1 | Q61: 1 | S61: 1 | U61: 1 | W61: 1 | Y61: 1 | AA61: 1 | AC61: 1 | AE61: 1
A62: CRC | B62: Post-release supervision | C62: PSO | D62: Male | E62: 50+ | F62: White | G62: Low | H62: Medium | I62: 1 | K62: 1 | M62: 1 | O62: 1 | Q62: 1 | S62: 1 | U62: 1 | W62: 1 | Y62: 1 | AC62: 1
A63: CRC | B63: Community sentence | C63: PO | D63: Male | E63: 18-24 | F63: White | G63: Medium | H63: Medium | J63: 1 | L63: 1 | M63: 1 | P63: 1 | R63: 1 | T63: 1 | V63: 1 | X63: 1 | Z63: 1 | AB63: 1 | AD63: 1 | AF63: 1
A64: CRC | B64: Post-release supervision | C64: PO | D64: Male | E64: 30-39 | F64: White | G64: (Very) High | H64: Medium | J64: 1 | K64: 1 | M64: 1 | P64: 1 | Q64: 1 | T64: 1 | U64: 1 | X64: 1 | Y64: 1 | AA64: 1
A65: CRC | B65: Post-release supervision | C65: PSO | D65: Male | E65: 18-24 | F65: White | G65: Medium | H65: Medium | J65: 1 | K65: 1 | M65: 1 | P65: 1 | R65: 1 | S65: 1 | U65: 1 | X65: 1 | Y65: 1 | AA65: 1 | AC65: 1 | AE65: 1
A66: CRC | B66: Post-release supervision | C66: PO | D66: Male | E66: 30-39 | F66: White | G66: (Very) High | H66: Medium | J66: 1 | L66: 1 | N66: 1 | P66: 1 | R66: 1 | T66: 1 | V66: 1 | X66: 1 | Z66: 1 | AB66: 1 | AD66: 1
A67: CRC | B67: Post-release supervision | C67: PSO | D67: Male | E67: 30-39 | F67: White | G67: Low | H67: Medium | J67: 1 | K67: 1 | N67: 1 | P67: 1 | R67: 1 | T67: 1 | V67: 1 | X67: 1 | Z67: 1 | AA67: 1 | AC67: 1
A68: CRC | B68: Post-release supervision | C68: PSO | D68: Male | E68: 25-29 | F68: White | G68: Medium | H68: Medium | I68: 1 | K68: 1 | M68: 1 | O68: 1 | Q68: 1 | S68: 1 | U68: 1 | W68: 1 | Y68: 1 | AA68: 1 | AC68: 1 | AE68: 1
A69: CRC | B69: Post-release supervision | C69: PSO | D69: Male | E69: 30-39 | F69: White | G69: Medium | H69: Medium | I69: 1 | K69: 1 | M69: 1 | O69: 1 | Q69: 1 | S69: 1 | U69: 1 | W69: 1 | Y69: 1 | AA69: 1 | AC69: 1
A70: CRC | B70: Post-release supervision | C70: PSO | D70: Male | E70: 40-49 | F70: White | G70: (Very) High | H70: Medium | I70: 1 | K70: 1 | N70: 1 | O70: 1 | Q70: 1 | T70: 1 | U70: 1 | X70: 1 | Z70: 1 | AA70: 1 | AF70: 1
A71: CRC | B71: Post-release supervision | C71: PSO | D71: Male | E71: 25-29 | F71: White | G71: (Very) High | H71: Medium | I71: 1 | K71: 1 | N71: 1 | O71: 1 | Q71: 1 | T71: 1 | U71: 1 | W71: 1 | Y71: 1 | AA71: 1 | AC71: 1
A72: CRC | B72: Post-release supervision | C72: PSO | D72: Male | E72: 18-24 | F72: White | G72: Low | H72: Medium | I72: 1 | K72: 1 | M72: 1 | P72: 1 | Q72: 1 | S72: 1 | U72: 1 | X72: 1 | Y72: 1 | AB72: 1 | AD72: 1
A73: CRC | B73: Post-release supervision | C73: PSO | D73: Male | E73: 30-39 | F73: White | G73: (Very) High | H73: Medium | J73: 1 | L73: 1 | N73: 1 | O73: 1 | Q73: 1 | T73: 1 | U73: 1 | X73: 1 | Z73: 1 | AA73: 1 | AF73: 1
A74: CRC | B74: Post-release supervision | C74: PSO | D74: Male | E74: 18-24 | F74: White | G74: Medium | H74: Medium | J74: 1 | L74: 1 | N74: 1 | O74: 1 | Q74: 1 | T74: 1 | U74: 1 | W74: 1 | Z74: 1 | AC74: 1
A75: CRC | B75: Post-release supervision | C75: PO | D75: Male | E75: 18-24 | F75: White | G75: (Very) High | H75: Medium | I75: 1 | K75: 1 | M75: 1 | P75: 1 | Q75: 1 | S75: 1 | U75: 1 | W75: 1 | Y75: 1 | AD75: 1 | AE75: 1
A76: CRC | B76: Post-release supervision | C76: PSO | D76: Male | E76: 30-39 | F76: White | G76: Low | H76: Medium | I76: 1 | K76: 1 | M76: 1 | O76: 1 | Q76: 1 | S76: 1 | U76: 1 | W76: 1 | Y76: 1 | AA76: 1 | AC76: 1 | AE76: 1
A77: CRC | B77: Post-release supervision | C77: PO | D77: Male | E77: 50+ | F77: White | G77: Medium | H77: Medium | I77: 1 | K77: 1 | M77: 1 | O77: 1 | Q77: 1 | S77: 1 | U77: 1 | W77: 1 | Y77: 1 | AB77: 1 | AD77: 1 | AF77: 1
A78: CRC | B78: Post-release supervision | C78: PSO | D78: Male | E78: 30-39 | F78: White | G78: Low | H78: Low | J78: 1 | K78: 1 | M78: 1 | O78: 1 | Q78: 1 | V78: 1 | W78: 1 | AA78: 1 | AF78: 1
A79: CRC | B79: Post-release supervision | C79: PSO | D79: Male | E79: 18-24 | F79: Mixed | G79: Low | H79: Low | I79: 1 | K79: 1 | M79: 1 | O79: 1 | Q79: 1 | U79: 1 | W79: 1
A80: CRC | B80: Post-release supervision | C80: PSO | D80: Male | E80: 40-49 | F80: White | G80: (Very) High | H80: Low | J80: 1 | K80: 1 | M80: 1 | P80: 1 | Q80: 1 | U80: 1 | W80: 1 | AA80: 1 | AC80: 1 | AE80: 1
A81: CRC | B81: Post-release supervision | C81: PSO | D81: Male | E81: 40-49 | F81: White | G81: Low | H81: Low | I81: 1 | K81: 1 | N81: 1 | P81: 1 | Q81: 1 | V81: 1 | X81: 1 | AB81: 1 | AD81: 1 | AF81: 1
A82: CRC | B82: Post-release supervision | C82: PO | D82: Male | E82: 25-29 | F82: White | G82: (Very) High | H82: Low | I82: 1 | K82: 1 | M82: 1 | O82: 1 | Q82: 1 | U82: 1 | W82: 1 | AA82: 1 | AC82: 1 | AE82: 1
A83: CRC | B83: Post-release supervision | C83: PSO | D83: Male | E83: 30-39 | F83: White | G83: Medium | H83: Low | I83: 1 | K83: 1 | M83: 1 | O83: 1 | Q83: 1 | U83: 1 | W83: 1 | AA83: 1 | AC83: 1
A84: CRC | B84: Post-release supervision | C84: PSO | D84: Male | E84: 50+ | F84: White | G84: Medium | H84: Low | I84: 1 | K84: 1 | M84: 1 | O84: 1 | Q84: 1 | U84: 1 | W84: 1 | AA84: 1 | AC84: 1
A85: CRC | B85: Post-release supervision | C85: PSO | D85: Male | E85: 30-39 | F85: White | G85: (Very) High | H85: Low | I85: 1 | K85: 1 | M85: 1 | P85: 1 | Q85: 1 | U85: 1 | W85: 1 | AA85: 1 | AC85: 1 | AE85: 1
A86: CRC | B86: Post-release supervision | C86: PSO | D86: Male | E86: 25-29 | F86: Black | H86: Low | I86: 1 | K86: 1 | M86: 1 | O86: 1 | Q86: 1 | U86: 1 | W86: 1 | AA86: 1 | AC86: 1
A87: CRC | B87: Post-release supervision | C87: PSO | D87: Male | E87: 18-24 | F87: White | G87: Low | H87: Low | I87: 1 | K87: 1 | M87: 1 | O87: 1 | Q87: 1 | U87: 1 | W87: 1 | AA87: 1 | AC87: 1
A88: CRC | B88: Post-release supervision | C88: PSO | D88: Male | E88: 40-49 | F88: White | G88: Medium | H88: Low | I88: 1 | K88: 1 | N88: 1 | O88: 1 | Q88: 1 | U88: 1 | X88: 1 | AA88: 1 | AF88: 1
A89: CRC | B89: Post-release supervision | C89: PSO | D89: Male | E89: 30-39 | F89: White | G89: Medium | H89: Low | J89: 1 | L89: 1 | N89: 1 | P89: 1 | Q89: 1 | V89: 1 | X89: 1 | AB89: 1 | AD89: 1
A90: CRC | B90: Post-release supervision | C90: PSO | D90: Male | E90: 40-49 | F90: White | G90: (Very) High | H90: Low | I90: 1 | K90: 1 | M90: 1 | O90: 1 | Q90: 1 | U90: 1 | W90: 1 | AA90: 1 | AE90: 1
A91: CRC | B91: Post-release supervision | C91: PO | D91: Male | E91: 40-49 | F91: White | G91: (Very) High | H91: Low | J91: 1 | K91: 1 | N91: 1 | P91: 1 | R91: 1 | T91: 1 | V91: 1 | X91: 1 | Z91: 1 | AB91: 1 | AD91: 1 | AF91: 1
A92: CRC | B92: Post-release supervision | C92: PSO | D92: Male | E92: 50+ | F92: White | G92: Low | H92: Low | I92: 1 | K92: 1 | M92: 1 | O92: 1 | Q92: 1 | U92: 1 | W92: 1 | AA92: 1 | AC92: 1
A93: CRC | B93: Post-release supervision | C93: PSO | D93: Male | E93: 50+ | F93: White | H93: Low | J93: 1 | L93: 1 | N93: 1 | P93: 1 | R93: 1 | U93: 1 | W93: 1 | AA93: 1 | AC93: 1
A94: CRC | B94: Post-release supervision | C94: PO | D94: Male | E94: 40-49 | F94: White | G94: (Very) High | H94: Low | I94: 1 | K94: 1 | N94: 1 | O94: 1 | Q94: 1 | T94: 1 | U94: 1 | W94: 1 | Z94: 1 | AA94: 1 | AF94: 1
A95: CRC | B95: Post-release supervision | C95: PSO | D95: Male | E95: 30-39 | G95: Low | H95: Low | I95: 1 | K95: 1 | M95: 1 | O95: 1 | Q95: 1 | U95: 1 | W95: 1 | AC95: 1
A96: CRC | B96: Post-release supervision | C96: PSO | D96: Male | E96: 50+ | F96: White | G96: Low | H96: Low | I96: 1 | K96: 1 | M96: 1 | O96: 1 | Q96: 1 | U96: 1 | W96: 1 | AA96: 1 | AC96: 1 | AE96: 1
A97: CRC | B97: Post-release supervision | C97: PO | D97: Male | E97: 18-24 | F97: Mixed | G97: (Very) High | H97: Low | I97: 1 | K97: 1 | M97: 1 | O97: 1 | Q97: 1 | U97: 1 | W97: 1 | AB97: 1 | AC97: 1
A98: CRC | B98: Post-release supervision | C98: Other | D98: Male | E98: 40-49 | F98: Black | G98: Low | H98: Low | J98: 1 | K98: 1 | M98: 1 | P98: 1 | R98: 1 | U98: 1 | W98: 1 | AC98: 1
A99: CRC | B99: Community sentence | C99: PO | D99: Female | E99: 30-39 | F99: White | G99: (Very) High | H99: Medium | I99: 1 | K99: 1 | M99: 1 | P99: 1 | R99: 1 | T99: 1 | V99: 1 | X99: 1 | Z99: 1 | AB99: 1 | AD99: 1 | AF99: 1
A100: CRC | B100: Post-release supervision | C100: PSO | D100: Female | E100: 40-49 | F100: White | G100: Medium | H100: Medium | J100: 1 | L100: 1 | N100: 1 | O100: 1 | Q100: 1 | T100: 1 | V100: 1 | X100: 1 | Z100: 1 | AB100: 1 | AD100: 1 | AF100: 1
A101: CRC | B101: Community sentence | C101: PSO | D101: Female | E101: 25-29 | F101: White | G101: Low | H101: Low | J101: 1 | K101: 1 | N101: 1 | P101: 1 | R101: 1 | T101: 1 | U101: 1 | X101: 1 | Z101: 1 | AB101: 1 | AD101: 1 | AF101: 1
A102: CRC | B102: Community sentence | C102: PO | D102: Female | E102: 30-39 | F102: Mixed | G102: Low | H102: Medium | I102: 1 | K102: 1 | M102: 1 | O102: 1 | Q102: 1 | U102: 1 | W102: 1 | AB102: 1 | AD102: 1 | AF102: 1
A103: CRC | B103: Community sentence | C103: PO | D103: Female | E103: 18-24 | F103: White | G103: Low | H103: Medium | I103: 1 | K103: 1 | M103: 1 | O103: 1 | Q103: 1 | S103: 1 | U103: 1 | X103: 1 | Z103: 1
A104: CRC | B104: Post-release supervision | C104: PSO | D104: Female | E104: 30-39 | F104: White | G104: (Very) High | H104: Low | J104: 1 | L104: 1 | N104: 1 | P104: 1 | R104: 1 | U104: 1 | X104: 1 | AB104: 1 | AD104: 1
A105: CRC | B105: Community sentence | C105: PSO | D105: Female | E105: 40-49 | F105: White | G105: (Very) High | H105: Low | I105: 1 | K105: 1 | N105: 1 | P105: 1 | Q105: 1 | U105: 1 | X105: 1 | AA105: 1
A106: CRC | B106: Post-release supervision | C106: PSO | D106: Female | E106: 25-29 | F106: White | G106: Medium | H106: Medium | I106: 1 | K106: 1 | M106: 1 | O106: 1 | Q106: 1 | S106: 1 | V106: 1 | W106: 1 | Z106: 1 | AC106: 1
A107: CRC | B107: Community sentence | C107: PSO | D107: Female | E107: 40-49 | F107: White | G107: Low | H107: Low | I107: 1 | K107: 1 | M107: 1 | O107: 1 | Q107: 1 | U107: 1 | W107: 1 | AA107: 1 | AC107: 1
A108: CRC | B108: Post-release supervision | C108: PSO | D108: Female | E108: 40-49 | F108: White | G108: (Very) High | H108: Low | J108: 1 | K108: 1 | M108: 1 | P108: 1 | R108: 1 | V108: 1 | X108: 1 | AB108: 1
A109: CRC | B109: Community sentence | C109: PSO | D109: Female | E109: 30-39 | F109: White | G109: Low | H109: Medium | I109: 1 | K109: 1 | M109: 1 | O109: 1 | Q109: 1 | T109: 1 | U109: 1 | W109: 1 | Y109: 1 | AA109: 1 | AC109: 1
A110: CRC | B110: Post-release supervision | D110: Female | E110: 18-24 | G110: (Very) High | H110: Low | J110: 1 | L110: 1 | M110: 1 | P110: 1 | Q110: 1 | T110: 1 | V110: 1 | X110: 1 | Z110: 1 | AB110: 1 | AD110: 1 | AF110: 1
A111: CRC | B111: Community sentence | C111: PSO | D111: Female | E111: 50+ | F111: White | G111: Medium | H111: Medium | J111: 1 | L111: 1 | M111: 1 | P111: 1 | R111: 1 | S111: 1 | V111: 1 | X111: 1 | Y111: 1 | AB111: 1 | AD111: 1 | AE111: 1
A112: CRC | B112: Community sentence | C112: PSO | D112: Female | E112: 40-49 | F112: White | G112: (Very) High | H112: Low | I112: 1 | K112: 1 | N112: 1 | O112: 1 | Q112: 1 | T112: 1 | U112: 1 | X112: 1 | Z112: 1 | AB112: 1 | AD112: 1 | AF112: 1
A113: CRC | B113: Community sentence | C113: PSO | D113: Female | E113: 18-24 | F113: White | G113: Low | H113: Medium | I113: 1 | K113: 1 | M113: 1 | O113: 1 | Q113: 1 | S113: 1 | U113: 1 | W113: 1 | Z113: 1 | AB113: 1 | AD113: 1 | AF113: 1
A114: CRC | B114: Community sentence | C114: PSO | D114: Female | E114: 30-39 | F114: White | G114: Low | H114: Medium | I114: 1 | K114: 1 | M114: 1 | O114: 1 | Q114: 1 | S114: 1 | U114: 1 | W114: 1 | Y114: 1 | AA114: 1 | AC114: 1
A115: CRC | B115: Post-release supervision | C115: PSO | D115: Female | E115: 50+ | F115: White | G115: (Very) High | H115: Low | I115: 1 | K115: 1 | M115: 1 | O115: 1 | Q115: 1 | U115: 1 | W115: 1 | AB115: 1
A116: CRC | B116: Community sentence | C116: PSO | D116: Female | E116: 40-49 | F116: White | G116: Low | H116: Medium | I116: 1 | K116: 1 | M116: 1 | O116: 1 | Q116: 1 | S116: 1 | U116: 1 | W116: 1 | Y116: 1 | AA116: 1 | AC116: 1 | AE116: 1
A117: CRC | B117: Post-release supervision | C117: PSO | D117: Female | E117: 30-39 | F117: White | G117: (Very) High | H117: Low | J117: 1 | L117: 1 | N117: 1 | P117: 1 | R117: 1 | V117: 1 | X117: 1 | AB117: 1 | AD117: 1 | AF117: 1
A118: CRC | B118: Community sentence | C118: PO | D118: Female | E118: 30-39 | F118: Mixed | G118: Low | H118: Low | I118: 1 | K118: 1 | N118: 1 | O118: 1 | Q118: 1 | U118: 1 | W118: 1 | AA118: 1 | AC118: 1 | AF118: 1
A119: CRC | B119: Post-release supervision | C119: PSO | D119: Female | E119: 50+ | F119: White | G119: (Very) High | H119: Low | J119: 1 | K119: 1 | M119: 1 | O119: 1 | Q119: 1 | U119: 1 | X119: 1 | AA119: 1 | AD119: 1
A120: CRC | B120: Post-release supervision | C120: PSO | D120: Female | E120: 25-29 | F120: White | G120: Medium | H120: Medium | J120: 1 | L120: 1 | N120: 1 | O120: 1 | Q120: 1 | T120: 1 | U120: 1 | W120: 1 | Z120: 1 | AB120: 1
A121: CRC | B121: Community sentence | C121: PSO | D121: Male | E121: 40-49 | F121: White | G121: Low | H121: Medium | I121: 1 | K121: 1 | M121: 1 | O121: 1 | R121: 1 | T121: 1 | U121: 1 | W121: 1 | Y121: 1 | AA121: 1 | AC121: 1 | AE121: 1
A122: CRC | B122: Community sentence | C122: PSO | D122: Male | E122: 30-39 | F122: White | G122: (Very) High | H122: Medium | I122: 1 | K122: 1 | N122: 1 | O122: 1 | Q122: 1 | S122: 1 | U122: 1 | X122: 1 | Z122: 1 | AA122: 1
A123: CRC | B123: Community sentence | C123: PSO | D123: Male | E123: 50+ | F123: White | G123: Medium | H123: Medium | I123: 1 | K123: 1 | M123: 1 | O123: 1 | Q123: 1 | S123: 1 | U123: 1 | W123: 1 | Y123: 1 | AA123: 1 | AC123: 1 | AE123: 1
A124: CRC | B124: Community sentence | C124: PSO | D124: Male | E124: 30-39 | F124: White | G124: (Very) High | H124: Medium | I124: 1 | K124: 1 | N124: 1 | O124: 1 | Q124: 1 | T124: 1 | U124: 1 | X124: 1 | Z124: 1 | AA124: 1 | AD124: 1 | AF124: 1
A125: CRC | B125: Community sentence | C125: PSO | D125: Male | E125: 30-39 | F125: White | G125: (Very) High | H125: Medium | I125: 1 | L125: 1 | N125: 1 | O125: 1 | Q125: 1 | T125: 1 | U125: 1 | W125: 1 | Z125: 1 | AF125: 1
A126: CRC | B126: Community sentence | C126: PSO | D126: Male | E126: 50+ | F126: White | G126: (Very) High | H126: Medium | I126: 1 | L126: 1 | N126: 1 | O126: 1 | R126: 1 | T126: 1 | U126: 1 | X126: 1 | Z126: 1 | AA126: 1 | AC126: 1 | AF126: 1
A127: CRC | B127: Community sentence | C127: PSO | D127: Male | E127: 30-39 | F127: White | H127: Medium | J127: 1 | L127: 1 | N127: 1 | P127: 1 | R127: 1 | T127: 1 | V127: 1 | W127: 1 | Z127: 1 | AB127: 1 | AD127: 1 | AF127: 1
A128: CRC | B128: Community sentence | D128: Male | E128: 30-39 | F128: White | G128: Low | H128: Medium | I128: 1 | K128: 1 | M128: 1 | O128: 1 | Q128: 1 | S128: 1 | U128: 1 | W128: 1 | Y128: 1 | AA128: 1 | AC128: 1 | AE128: 1
A129: CRC | B129: Community sentence | C129: PSO | D129: Female | F129: White | G129: Medium | H129: Medium | J129: 1 | K129: 1 | M129: 1 | P129: 1 | R129: 1 | T129: 1 | U129: 1 | X129: 1 | Z129: 1 | AA129: 1 | AD129: 1 | AF129: 1
A130: CRC | B130: Community sentence | C130: PSO | D130: Male | E130: 30-39 | F130: White | G130: Low | H130: Medium | I130: 1 | L130: 1 | N130: 1 | P130: 1 | R130: 1 | T130: 1 | V130: 1 | X130: 1 | Z130: 1 | AB130: 1 | AD130: 1 | AF130: 1
A131: CRC | B131: Community sentence | D131: Male | E131: 25-29 | F131: White | G131: Low | H131: Medium | I131: 1 | L131: 1 | N131: 1 | P131: 1 | R131: 1 | T131: 1 | U131: 1 | X131: 1 | Z131: 1 | AB131: 1 | AD131: 1 | AF131: 1
A132: CRC | B132: Community sentence | C132: PSO | D132: Male | E132: 25-29 | F132: White | G132: Low | H132: Medium | I132: 1 | K132: 1 | M132: 1 | O132: 1 | Q132: 1 | S132: 1 | U132: 1 | X132: 1 | Z132: 1 | AA132: 1 | AC132: 1 | AE132: 1
A133: CRC | B133: Community sentence | C133: PSO | D133: Male | E133: 18-24 | F133: White | G133: Low | H133: Medium | I133: 1 | K133: 1 | N133: 1 | O133: 1 | Q133: 1 | T133: 1 | U133: 1 | W133: 1 | Y133: 1 | AA133: 1 | AC133: 1 | AF133: 1
A134: CRC | B134: Community sentence | C134: PSO | D134: Male | E134: 30-39 | F134: White | G134: Low | H134: Medium | I134: 1 | K134: 1 | M134: 1 | O134: 1 | Q134: 1 | T134: 1 | U134: 1 | W134: 1 | Z134: 1 | AF134: 1
A135: CRC | B135: Community sentence | C135: PSO | D135: Male | E135: 40-49 | F135: White | G135: Low | H135: Medium | J135: 1 | L135: 1 | N135: 1 | P135: 1 | R135: 1 | T135: 1 | V135: 1 | X135: 1 | Z135: 1 | AA135: 1 | AF135: 1
A136: CRC | B136: Community sentence | C136: Other | D136: Male | E136: 30-39 | F136: White | G136: Low | H136: Medium | I136: 1 | K136: 1 | M136: 1 | P136: 1 | R136: 1 | T136: 1 | X136: 1 | Z136: 1 | AB136: 1 | AC136: 1 | AF136: 1
A137: CRC | B137: Community sentence | C137: PSO | D137: Male | E137: 30-39 | F137: White | G137: Low | H137: Low | I137: 1 | K137: 1 | N137: 1 | O137: 1 | R137: 1 | T137: 1 | U137: 1 | X137: 1 | Z137: 1 | AA137: 1 | AD137: 1 | AF137: 1
A138: CRC | B138: Community sentence | C138: PO | D138: Male | E138: 30-39 | F138: Mixed | G138: (Very) High | H138: Medium | I138: 1 | K138: 1 | M138: 1 | O138: 1 | Q138: 1 | S138: 1 | U138: 1 | X138: 1 | Y138: 1 | AE138: 1
A139: CRC | B139: Community sentence | C139: PO | D139: Male | E139: 50+ | F139: White | H139: Medium | J139: 1 | L139: 1 | N139: 1 | P139: 1 | R139: 1 | T139: 1 | V139: 1 | X139: 1 | Z139: 1 | AF139: 1
A140: CRC | B140: Community sentence | C140: PSO | D140: Male | E140: 18-24 | F140: White | G140: (Very) High | H140: Medium | I140: 1 | K140: 1 | M140: 1 | O140: 1 | Q140: 1 | S140: 1 | U140: 1 | W140: 1 | Y140: 1 | AC140: 1 | AE140: 1
A141: CRC | B141: Community sentence | C141: Other | D141: Male | E141: 18-24 | F141: White | G141: Medium | H141: Medium | J141: 1 | K141: 1 | M141: 1 | O141: 1 | Q141: 1 | S141: 1 | V141: 1 | X141: 1 | Y141: 1 | AA141: 1 | AE141: 1
A142: CRC | B142: Community sentence | C142: Other | D142: Male | E142: 25-29 | F142: White | G142: Medium | H142: Medium | I142: 1 | K142: 1 | M142: 1 | O142: 1 | R142: 1 | T142: 1 | U142: 1 | X142: 1 | Z142: 1
A143: CRC | B143: Community sentence | C143: PSO | D143: Male | E143: 25-29 | G143: Low | H143: Medium | I143: 1 | K143: 1 | M143: 1 | O143: 1 | Q143: 1 | S143: 1 | U143: 1 | X143: 1 | Z143: 1
A144: CRC | B144: Community sentence | C144: PSO | D144: Male | E144: 40-49 | F144: White | G144: Low | H144: Medium | I144: 1 | L144: 1 | N144: 1 | O144: 1 | Q144: 1 | T144: 1 | U144: 1 | W144: 1 | Z144: 1 | AB144: 1 | AD144: 1 | AF144: 1
A145: CRC | B145: Community sentence | C145: PSO | D145: Male | E145: 18-24 | F145: White | G145: Medium | H145: Medium | I145: 1 | L145: 1 | M145: 1 | P145: 1 | R145: 1 | T145: 1 | V145: 1 | X145: 1 | Z145: 1 | AA145: 1 | AC145: 1 | AE145: 1
A146: CRC | B146: Community sentence | C146: PSO | D146: Male | E146: 30-39 | F146: Other | G146: Low | H146: Medium | I146: 1 | K146: 1 | M146: 1 | O146: 1 | Q146: 1 | S146: 1 | U146: 1 | W146: 1 | Y146: 1 | AA146: 1 | AC146: 1 | AE146: 1
A147: CRC | B147: Community sentence | C147: PSO | D147: Male | E147: 18-24 | F147: White | G147: Low | H147: Medium | I147: 1 | K147: 1 | M147: 1 | O147: 1 | Q147: 1 | S147: 1 | U147: 1 | W147: 1 | Z147: 1 | AA147: 1 | AC147: 1 | AE147: 1
A148: CRC | B148: Community sentence | C148: PO | D148: Male | E148: 50+ | F148: White | G148: Low | H148: Medium | J148: 1 | L148: 1 | N148: 1 | P148: 1 | R148: 1 | T148: 1 | V148: 1 | W148: 1 | Z148: 1 | AA148: 1 | AD148: 1 | AF148: 1
A149: CRC | B149: Community sentence | C149: PO | D149: Male | E149: 40-49 | F149: White | G149: Low | H149: Medium | I149: 1 | K149: 1 | M149: 1 | O149: 1 | Q149: 1 | T149: 1 | V149: 1 | X149: 1 | Z149: 1 | AA149: 1 | AC149: 1 | AE149: 1
A150: CRC | B150: Community sentence | C150: PSO | D150: Male | E150: 30-39 | F150: White | G150: Medium | H150: Medium | I150: 1 | K150: 1 | N150: 1 | O150: 1 | Q150: 1 | T150: 1 | U150: 1 | W150: 1 | Z150: 1 | AA150: 1 | AC150: 1 | AE150: 1
A151: CRC | B151: Community sentence | C151: PSO | D151: Male | E151: 25-29 | F151: White | G151: (Very) High | H151: Medium | I151: 1 | L151: 1 | N151: 1 | O151: 1 | R151: 1 | T151: 1 | U151: 1 | X151: 1 | Z151: 1 | AA151: 1 | AF151: 1
A152: CRC | B152: Community sentence | C152: PSO | D152: Male | E152: 25-29 | F152: White | J152: 1 | L152: 1 | N152: 1 | P152: 1 | R152: 1 | V152: 1 | X152: 1
A153: CRC | B153: Community sentence | C153: PSO | D153: Male | E153: 25-29 | F153: White | G153: Low | H153: Medium | I153: 1 | K153: 1 | M153: 1 | O153: 1 | Q153: 1 | S153: 1 | U153: 1 | W153: 1 | Z153: 1 | AA153: 1 | AC153: 1 | AF153: 1
A154: CRC | B154: Community sentence | C154: PSO | D154: Male | E154: 18-24 | F154: Asian | G154: Medium | H154: Medium | J154: 1 | L154: 1 | M154: 1 | P154: 1 | Q154: 1 | S154: 1 | V154: 1 | X154: 1 | Z154: 1 | AB154: 1
A155: CRC | B155: Community sentence | C155: PSO | D155: Male | E155: 18-24 | F155: White | G155: Low | H155: Medium | I155: 1 | K155: 1 | N155: 1 | O155: 1 | Q155: 1 | T155: 1 | V155: 1 | X155: 1 | Z155: 1 | AA155: 1 | AF155: 1
A156: CRC | B156: Community sentence | C156: PSO | D156: Male | E156: 50+ | F156: White | G156: Low | H156: Medium | I156: 1 | K156: 1 | N156: 1 | O156: 1 | Q156: 1 | T156: 1 | U156: 1 | W156: 1 | Z156: 1 | AA156: 1 | AF156: 1
A157: CRC | B157: Community sentence | C157: Other | D157: Male | E157: 25-29 | F157: White | G157: Low | H157: Low | I157: 1 | K157: 1 | N157: 1 | O157: 1 | R157: 1 | S157: 1 | U157: 1 | X157: 1 | Z157: 1 | AA157: 1 | AF157: 1
A158: CRC | B158: Community sentence | C158: PSO | D158: Male | E158: 40-49 | F158: White | G158: Low | H158: Low | J158: 1 | K158: 1 | N158: 1 | P158: 1 | R158: 1 | T158: 1 | V158: 1 | X158: 1 | Z158: 1 | AB158: 1 | AD158: 1 | AF158: 1
A159: CRC | B159: Community sentence | C159: PSO | D159: Male | E159: 30-39 | F159: White | G159: Low | H159: Low | I159: 1 | L159: 1 | N159: 1 | O159: 1 | Q159: 1 | U159: 1 | W159: 1 | AB159: 1 | AD159: 1 | AF159: 1
A160: CRC | B160: Community sentence | C160: PSO | D160: Male | E160: 50+ | F160: White | G160: Low | H160: Medium | I160: 1 | K160: 1 | M160: 1 | O160: 1 | Q160: 1 | U160: 1 | W160: 1 | AA160: 1 | AC160: 1
A161: CRC | B161: Community sentence | C161: PO | D161: Male | E161: 40-49 | F161: White | G161: (Very) High | H161: Low | J161: 1 | L161: 1 | N161: 1 | P161: 1 | R161: 1 | T161: 1 | V161: 1 | X161: 1 | Z161: 1 | AB161: 1 | AC161: 1 | AF161: 1
A162: CRC | B162: Community sentence | C162: PSO | D162: Male | E162: 30-39 | F162: Mixed | G162: Medium | H162: Low | J162: 1 | L162: 1 | N162: 1 | O162: 1 | Q162: 1 | T162: 1 | V162: 1 | X162: 1 | Z162: 1 | AB162: 1 | AD162: 1 | AF162: 1
A163: CRC | B163: Community sentence | C163: PSO | D163: Male | E163: 18-24 | F163: Asian | G163: Low | H163: Low | I163: 1 | K163: 1 | M163: 1 | O163: 1 | Q163: 1 | U163: 1 | W163: 1
A164: CRC | B164: Community sentence | C164: PSO | D164: Male | E164: 50+ | F164: Asian | G164: Low | H164: Low | I164: 1 | K164: 1 | M164: 1 | O164: 1 | Q164: 1 | U164: 1 | X164: 1 | AA164: 1 | AC164: 1 | AE164: 1
A165: CRC | B165: Community sentence | C165: PSO | D165: Male | E165: 40-49 | F165: White | G165: Medium | H165: Medium | I165: 1 | K165: 1 | M165: 1 | O165: 1 | Q165: 1 | S165: 1 | U165: 1 | W165: 1 | Y165: 1 | AA165: 1 | AC165: 1 | AE165: 1
A166: CRC | B166: Community sentence | C166: PSO | D166: Male | E166: 25-29 | F166: Black | G166: Medium | H166: Low | I166: 1 | K166: 1 | N166: 1 | O166: 1 | Q166: 1 | S166: 1 | V166: 1 | X166: 1 | Z166: 1 | AB166: 1 | AD166: 1 | AE166: 1
A167: CRC | B167: Community sentence | C167: PSO | D167: Male | E167: 30-39 | F167: White | G167: Low | H167: Low | J167: 1 | L167: 1 | M167: 1 | P167: 1 | R167: 1 | V167: 1 | X167: 1 | AB167: 1 | AD167: 1
A168: CRC | B168: Community sentence | C168: PSO | D168: Male | E168: 18-24 | F168: White | G168: Low | H168: Low | J168: 1 | K168: 1 | M168: 1 | O168: 1 | Q168: 1 | U168: 1 | W168: 1 | AA168: 1 | AC168: 1 | AE168: 1
A169: CRC | B169: Community sentence | C169: PSO | D169: Male | E169: 40-49 | F169: White | G169: (Very) High | H169: Medium | I169: 1 | K169: 1 | M169: 1 | O169: 1 | Q169: 1 | S169: 1 | U169: 1 | W169: 1 | Y169: 1 | AA169: 1
A170: CRC | B170: Community sentence | D170: Male | E170: 18-24 | F170: White | G170: (Very) High | H170: Low | I170: 1 | K170: 1 | M170: 1 | O170: 1 | R170: 1 | U170: 1 | X170: 1 | AA170: 1 | AD170: 1
A171: CRC | B171: Community sentence | C171: PSO | D171: Male | E171: 40-49 | F171: White | G171: Low | H171: Medium | I171: 1 | K171: 1 | N171: 1 | O171: 1 | Q171: 1 | T171: 1 | U171: 1 | W171: 1 | Z171: 1 | AA171: 1 | AC171: 1 | AE171: 1
A172: CRC | B172: Post-release supervision | C172: PSO | D172: Male | E172: 30-39 | F172: White | G172: (Very) High | H172: Medium | J172: 1 | L172: 1 | N172: 1 | P172: 1 | R172: 1 | T172: 1 | V172: 1 | X172: 1 | Z172: 1 | AB172: 1 | AD172: 1 | AF172: 1
A173: CRC | B173: Post-release supervision | C173: PSO | D173: Male | E173: 25-29 | F173: White | G173: Low | H173: Medium | I173: 1 | K173: 1 | M173: 1 | O173: 1 | Q173: 1 | S173: 1 | U173: 1 | W173: 1 | Y173: 1 | AC173: 1
A174: CRC | B174: Post-release supervision | C174: PSO | D174: Male | E174: 18-24 | F174: White | G174: Medium | H174: Medium | I174: 1 | K174: 1 | M174: 1 | O174: 1 | Q174: 1 | S174: 1 | U174: 1 | W174: 1 | Y174: 1 | AA174: 1 | AE174: 1
A175: CRC | B175: Post-release supervision | C175: PO | D175: Male | E175: 18-24 | F175: Other | G175: Medium | H175: Low | I175: 1 | K175: 1 | M175: 1 | O175: 1 | R175: 1 | S175: 1 | U175: 1 | X175: 1 | Y175: 1 | AE175: 1
A176: CRC | B176: Post-release supervision | C176: PSO | D176: Male | E176: 18-24 | G176: Medium | H176: Medium | J176: 1 | L176: 1 | N176: 1 | P176: 1 | R176: 1 | T176: 1 | V176: 1 | X176: 1 | Z176: 1 | AB176: 1 | AD176: 1 | AF176: 1
A177: CRC | B177: Post-release supervision | C177: PSO | D177: Male | E177: 18-24 | F177: White | G177: Medium | H177: Medium | I177: 1 | K177: 1 | M177: 1 | O177: 1 | Q177: 1 | S177: 1 | U177: 1 | X177: 1 | Z177: 1 | AC177: 1 | AF177: 1
A178: CRC | B178: Post-release supervision | C178: PSO | D178: Male | E178: 25-29 | F178: White | G178: Low | H178: Medium | I178: 1 | K178: 1 | N178: 1 | P178: 1 | R178: 1 | T178: 1 | U178: 1 | X178: 1 | Z178: 1 | AA178: 1 | AD178: 1 | AF178: 1
A179: CRC | B179: Post-release supervision | C179: PSO | D179: Male | E179: 30-39 | F179: White | G179: Medium | H179: Medium | I179: 1 | K179: 1 | M179: 1 | O179: 1 | Q179: 1 | S179: 1 | U179: 1 | X179: 1 | Z179: 1 | AA179: 1 | AD179: 1
A180: CRC | B180: Post-release supervision | C180: PSO | D180: Male | E180: 25-29 | F180: White | G180: (Very) High | H180: Medium | I180: 1 | K180: 1 | M180: 1 | O180: 1 | Q180: 1 | T180: 1 | U180: 1 | W180: 1 | Z180: 1 | AC180: 1 | AE180: 1
A181: CRC | B181: Post-release supervision | C181: PO | D181: Male | E181: 25-29 | F181: Mixed | G181: (Very) High | H181: Medium | I181: 1 | K181: 1 | N181: 1 | O181: 1 | Q181: 1 | S181: 1 | U181: 1 | W181: 1 | Y181: 1 | AA181: 1 | AC181: 1
A182: CRC | B182: Post-release supervision | C182: PSO | D182: Male | E182: 30-39 | F182: White | G182: (Very) High | H182: Medium | I182: 1 | K182: 1 | M182: 1 | O182: 1 | Q182: 1 | S182: 1 | U182: 1 | X182: 1 | Z182: 1 | AC182: 1 | AE182: 1
A183: CRC | B183: Post-release supervision | C183: PSO | D183: Male | E183: 30-39 | G183: Medium | H183: Medium | I183: 1 | K183: 1 | M183: 1 | O183: 1 | Q183: 1 | S183: 1 | U183: 1 | W183: 1 | Z183: 1 | AA183: 1 | AC183: 1 | AE183: 1
A184: CRC | B184: Post-release supervision | C184: PSO | D184: Male | E184: 30-39 | F184: White | G184: (Very) High | H184: Medium | I184: 1 | K184: 1 | M184: 1 | O184: 1 | Q184: 1 | S184: 1 | U184: 1 | W184: 1 | Y184: 1 | AA184: 1 | AC184: 1
A185: CRC | B185: Post-release supervision | C185: PSO | D185: Male | E185: 50+ | F185: White | G185: Low | H185: Medium | I185: 1 | L185: 1 | M185: 1 | O185: 1 | Q185: 1 | S185: 1 | U185: 1 | W185: 1 | Y185: 1 | AA185: 1 | AC185: 1
A186: CRC | B186: Post-release supervision | C186: PSO | D186: Male | E186: 30-39 | F186: White | G186: Medium | H186: Medium | I186: 1 | K186: 1 | N186: 1 | V186: 1 | X186: 1 | Z186: 1 | AB186: 1 | AD186: 1 | AF186: 1
A187: CRC | B187: Post-release supervision | C187: PSO | D187: Male | E187: 40-49 | F187: White | G187: Medium | H187: Medium | I187: 1 | K187: 1 | M187: 1 | O187: 1 | Q187: 1 | S187: 1 | U187: 1 | W187: 1 | Y187: 1 | AA187: 1 | AC187: 1 | AE187: 1
A188: CRC | B188: Post-release supervision | C188: PSO | D188: Male | E188: 30-39 | F188: White | G188: (Very) High | H188: Medium | I188: 1 | K188: 1 | M188: 1 | O188: 1 | Q188: 1 | S188: 1 | U188: 1 | W188: 1 | Y188: 1 | AA188: 1 | AE188: 1
A189: CRC | B189: Post-release supervision | C189: PSO | D189: Male | E189: 30-39 | F189: White | G189: Medium | H189: Low | I189: 1 | K189: 1 | M189: 1 | O189: 1 | Q189: 1 | U189: 1 | X189: 1
A190: CRC | B190: Post-release supervision | C190: PSO | D190: Male | E190: 25-29 | F190: White | G190: (Very) High | H190: Medium | I190: 1 | K190: 1 | M190: 1 | O190: 1 | Q190: 1 | S190: 1 | U190: 1 | W190: 1 | Y190: 1 | AA190: 1 | AC190: 1 | AE190: 1
A191: CRC | B191: Post-release supervision | C191: PSO | D191: Male | E191: 25-29 | F191: White | G191: (Very) High | H191: Medium | I191: 1 | K191: 1 | M191: 1 | O191: 1 | Q191: 1 | U191: 1 | W191: 1 | AA191: 1 | AC191: 1
A192: CRC | B192: Post-release supervision | C192: PSO | D192: Male | E192: 30-39 | F192: White | G192: (Very) High | H192: Medium | I192: 1 | L192: 1 | N192: 1 | P192: 1 | Q192: 1 | T192: 1 | V192: 1 | X192: 1 | Z192: 1 | AA192: 1 | AD192: 1 | AF192: 1
A193: CRC | B193: Post-release supervision | C193: PSO | D193: Male | E193: 50+ | F193: White | G193: (Very) High | H193: Medium | I193: 1 | K193: 1 | N193: 1 | P193: 1 | R193: 1 | S193: 1 | V193: 1 | X193: 1 | Y193: 1 | AA193: 1 | AC193: 1
A194: CRC | B194: Post-release supervision | C194: PSO | D194: Male | E194: 40-49 | F194: White | G194: Medium | H194: Medium | I194: 1 | K194: 1 | N194: 1 | O194: 1 | Q194: 1 | S194: 1 | U194: 1 | W194: 1 | Z194: 1 | AA194: 1
A195: CRC | B195: Post-release supervision | C195: PSO | D195: Male | E195: 50+ | F195: White | G195: (Very) High | H195: Medium | I195: 1 | K195: 1 | M195: 1 | O195: 1 | Q195: 1 | S195: 1 | U195: 1 | W195: 1 | Y195: 1 | AA195: 1 | AC195: 1 | AE195: 1
A196: CRC | B196: Post-release supervision | C196: PSO | D196: Male | E196: 25-29 | F196: White | G196: (Very) High | H196: Medium | I196: 1 | K196: 1 | M196: 1 | O196: 1 | Q196: 1 | S196: 1 | U196: 1 | W196: 1 | Y196: 1 | AA196: 1 | AC196: 1
A197: CRC | B197: Post-release supervision | C197: PSO | D197: Male | E197: 50+ | F197: White | G197: Low | H197: Low | J197: 1 | L197: 1 | M197: 1 | O197: 1 | R197: 1 | U197: 1 | W197: 1 | AA197: 1 | AC197: 1
A198: CRC | B198: Post-release supervision | C198: PSO | D198: Male | E198: 30-39 | F198: White | G198: Low | H198: Low | I198: 1 | K198: 1 | M198: 1 | O198: 1 | Q198: 1 | U198: 1 | X198: 1
A199: CRC | B199: Post-release supervision | C199: PSO | D199: Male | E199: 40-49 | F199: Black | G199: Low | H199: Low | I199: 1 | K199: 1 | M199: 1 | O199: 1 | Q199: 1 | U199: 1 | W199: 1 | AA199: 1 | AC199: 1 | AE199: 1
A200: CRC | B200: Post-release supervision | C200: PSO | D200: Male | E200: 25-29 | F200: White | G200: Medium | H200: Medium | I200: 1 | L200: 1 | N200: 1 | O200: 1 | R200: 1 | T200: 1 | U200: 1 | W200: 1 | Z200: 1 | AA200: 1 | AF200: 1
... 2050 more rows

Sheet UPW Pivot_Chart Data (hidden)
B3: Chart data/calcs
B4: U4S positive % | C4: U3S positive % | D4: U2S positive % | E4: U1S positive %
A5: CRC | B5: =GETPIVOTDATA("Sum of 4US Positive",$B$24,"CRC/NPS","CRC")/SUM(I25:J25) -> 0.768018018 | C5: =GETPIVOTDATA("Sum of 3US Positive",$B$24,"CRC/NPS","CRC")/SUM(G25:H25) -> 0.7033707865 | D5: =GETPIVOTDATA("Sum of 2US Positive",$B$24,"CRC/NPS","CRC")/SUM(E25:F25) -> 0.7244094488 | E5: =GETPIVOTDATA("Sum of 1US Positive",$B$24,"CRC/NPS","CRC")/SUM(C25:D25) -> 0.6947250281
B6: Is the sentence of the court implemented appropriately? | C6: Do arrangements for Unpaid Work maximise the opportunity for the service user's personal development? | D6: Do arrangements for unpaid work focus sufficiently on supporting the service user’s engagement and compliance with the sentence? | E6: Does assessment focus on the key issues relevant to unpaid work?
B9: UPW Sample size breakdown
B10: U1S | C10: U2S | D10: U3S | E10: U4S
A11: CRC | B11: =SUM(C25:D25) -> 891 | C11: =SUM(E25:F25) -> 889 | D11: =SUM(G25:H25) -> 890 | E11: =SUM(I25:J25) -> 888
B20: Age group | C20: (All)
B21: Gender | C21: (All)
B22: Ethnic group | C22: (All)
B24: Row Labels | C24: Sum of 1US Positive | D24: Sum of 1US Negative | E24: Sum of 2US Positive | F24: Sum of 2US Negative | G24: Sum of 3US Positive | H24: Sum of 3US Negative | I24: Sum of 4US Positive | J24: Sum of 4US Negative
B25: CRC | C25: 619 | D25: 272 | E25: 644 | F25: 245 | G25: 626 | H25: 264 | I25: 682 | J25: 206
B26: Grand Total | C26: 619 | D26: 272 | E26: 644 | F26: 245 | G26: 626 | H26: 264 | I26: 682 | J26: 206

Sheet UPW Data (hidden)
A1: CRC/NPS | B1: Type of case | C1: Age group | D1: Gender | E1: Ethnic group | F1: 1US Positive | G1: 1US Negative | H1: 2US Positive | I1: 2US Negative | J1: 3US Positive | K1: 3US Negative | L1: 4US Positive | M1: 4US Negative
A2: CRC | B2: UPW | C2: 18-24 | D2: Male | E2: Black | F2: 1 | I2: 1 | K2: 1 | M2: 1
A3: CRC | B3: UPW | C3: 25-29 | D3: Male | E3: White | G3: 1 | I3: 1 | K3: 1 | M3: 1
A4: CRC | B4: UPW | C4: 50+ | D4: Male | E4: White | F4: 1 | I4: 1 | K4: 1 | L4: 1
A5: CRC | B5: UPW | C5: 40-49 | D5: Male | E5: White | F5: 1 | I5: 1 | K5: 1 | L5: 1
A6: CRC | B6: UPW | C6: 18-24 | D6: Male | E6: White | F6: 1 | I6: 1 | K6: 1 | L6: 1
A7: CRC | B7: UPW | C7: 25-29 | D7: Male | E7: White | F7: 1 | I7: 1 | K7: 1 | M7: 1
A8: CRC | B8: UPW | C8: 18-24 | D8: Male | E8: White | F8: 1 | I8: 1 | K8: 1 | L8: 1
A9: CRC | B9: UPW | C9: 25-29 | D9: Male | E9: White | F9: 1 | I9: 1 | K9: 1 | L9: 1
A10: CRC | B10: UPW | C10: 30-39 | D10: Male | E10: White | F10: 1 | I10: 1 | K10: 1 | L10: 1
A11: CRC | B11: UPW | C11: 30-39 | D11: Male | E11: White | F11: 1 | I11: 1 | K11: 1 | L11: 1
A12: CRC | B12: UPW | C12: 18-24 | D12: Male | E12: White | F12: 1 | I12: 1 | K12: 1 | L12: 1
A13: CRC | B13: UPW | C13: 40-49 | D13: Male | E13: White | F13: 1 | H13: 1 | K13: 1 | L13: 1
A14: CRC | B14: UPW | C14: 18-24 | D14: Male | F14: 1 | H14: 1 | J14: 1 | L14: 1
A15: CRC | B15: UPW | C15: 18-24 | D15: Male | F15: 1 | I15: 1 | K15: 1 | L15: 1
A16: CRC | B16: UPW | C16: 18-24 | D16: Male | G16: 1 | I16: 1 | K16: 1 | M16: 1
A17: CRC | B17: UPW | C17: 18-24 | D17: Male | F17: 1 | I17: 1 | K17: 1 | L17: 1
A18: CRC | B18: UPW | C18: 18-24 | D18: Male | G18: 1 | I18: 1 | K18: 1 | L18: 1
A19: CRC | B19: UPW | C19: 30-39 | D19: Male | E19: White | G19: 1 | I19: 1 | K19: 1 | M19: 1
A20: CRC | B20: UPW | C20: 40-49 | D20: Male | G20: 1 | I20: 1 | K20: 1 | L20: 1
A21: CRC | B21: UPW | C21: 25-29 | D21: Male | E21: White | G21: 1 | I21: 1 | K21: 1 | M21: 1
A22: CRC | B22: UPW | C22: 30-39 | D22: Male | E22: White | F22: 1 | I22: 1 | K22: 1 | L22: 1
A23: CRC | B23: UPW | C23: 18-24 | D23: Male | F23: 1 | I23: 1 | K23: 1 | L23: 1
A24: CRC | B24: UPW | C24: 30-39 | D24: Male | E24: White | G24: 1 | I24: 1 | K24: 1 | M24: 1
A25: CRC | B25: UPW | C25: 30-39 | D25: Male | E25: White | F25: 1 | I25: 1 | K25: 1 | L25: 1
A26: CRC | B26: UPW | C26: 18-24 | D26: Male | G26: 1 | I26: 1 | K26: 1 | L26: 1
A27: CRC | B27: UPW | C27: 25-29 | D27: Male | E27: White | F27: 1 | I27: 1 | K27: 1 | L27: 1
A28: CRC | B28: UPW | C28: 30-39 | D28: Male | E28: White | G28: 1 | I28: 1 | K28: 1 | L28: 1
A29: CRC | B29: UPW | C29: 18-24 | D29: Male | F29: 1 | I29: 1 | K29: 1 | L29: 1
A30: CRC | B30: UPW | C30: 30-39 | D30: Male | E30: White | G30: 1 | I30: 1 | K30: 1 | M30: 1
A31: CRC | B31: UPW | C31: 30-39 | D31: Male | E31: Other | G31: 1 | I31: 1 | K31: 1 | L31: 1
A32: CRC | B32: UPW | C32: 18-24 | D32: Male | E32: White | G32: 1 | I32: 1 | K32: 1 | L32: 1
A33: CRC | B33: UPW | C33: 30-39 | D33: Male | E33: White | F33: 1 | I33: 1 | K33: 1 | L33: 1
A34: CRC | B34: UPW | C34: 40-49 | D34: Male | E34: White | F34: 1 | I34: 1 | K34: 1 | L34: 1
A35: CRC | B35: UPW | C35: 40-49 | D35: Female | E35: White | F35: 1 | I35: 1 | K35: 1 | L35: 1
A36: CRC | B36: UPW | C36: 40-49 | D36: Female | E36: White | F36: 1 | I36: 1 | K36: 1 | L36: 1
A37: CRC | B37: UPW | C37: 40-49 | D37: Female | E37: Mixed | F37: 1 | H37: 1 | J37: 1 | L37: 1
A38: CRC | B38: UPW | C38: 40-49 | D38: Female | E38: Black | F38: 1 | I38: 1 | K38: 1 | L38: 1
A39: CRC | B39: UPW | C39: 30-39 | D39: Female | E39: White | G39: 1 | H39: 1 | J39: 1 | L39: 1
A40: CRC | B40: UPW | C40: 25-29 | D40: Male | E40: White | F40: 1 | H40: 1 | J40: 1 | L40: 1
A41: CRC | B41: UPW | C41: 30-39 | D41: Male | E41: White | F41: 1 | H41: 1 | J41: 1 | M41: 1
A42: CRC | B42: UPW | C42: 18-24 | D42: Male | E42: White | G42: 1 | I42: 1 | K42: 1 | M42: 1
A43: CRC | B43: UPW | C43: 40-49 | D43: Male | E43: White | F43: 1 | H43: 1 | J43: 1 | L43: 1
A44: CRC | B44: UPW | C44: 18-24 | D44: Male | E44: White | F44: 1 | H44: 1 | J44: 1 | L44: 1
A45: CRC | B45: UPW | C45: 40-49 | D45: Male | E45: Asian | F45: 1 | I45: 1 | K45: 1 | L45: 1
A46: CRC | B46: UPW | C46: 25-29 | D46: Male | E46: Other | G46: 1 | H46: 1 | K46: 1 | L46: 1
A47: CRC | B47: UPW | C47: 40-49 | D47: Male | E47: White | F47: 1 | H47: 1 | J47: 1 | L47: 1
A48: CRC | B48: UPW | C48: 18-24 | D48: Male | E48: Other | F48: 1 | H48: 1 | J48: 1 | M48: 1
A49: CRC | B49: UPW | C49: 25-29 | D49: Male | E49: White | F49: 1 | H49: 1 | J49: 1 | L49: 1
A50: CRC | B50: UPW | C50: 30-39 | D50: Male | E50: White | F50: 1 | H50: 1 | J50: 1 | L50: 1
A51: CRC | B51: UPW | C51: 18-24 | D51: Male | E51: White | F51: 1 | H51: 1 | J51: 1 | M51: 1
A52: CRC | B52: UPW | C52: 18-24 | D52: Male | E52: White | F52: 1 | H52: 1 | J52: 1 | M52: 1
A53: CRC | B53: UPW | C53: 40-49 | D53: Male | E53: White | F53: 1 | I53: 1 | K53: 1 | M53: 1
A54: CRC | B54: UPW | C54: 18-24 | D54: Male | E54: White | F54: 1 | I54: 1 | K54: 1 | L54: 1
A55: CRC | B55: UPW | C55: 18-24 | D55: Male | E55: White | F55: 1 | H55: 1 | J55: 1 | L55: 1
A56: CRC | B56: UPW | C56: 50+ | D56: Male | E56: White | F56: 1 | H56: 1 | J56: 1 | L56: 1
A57: CRC | B57: UPW | C57: 40-49 | D57: Male | E57: White | F57: 1 | H57: 1 | J57: 1 | L57: 1
A58: CRC | B58: UPW | C58: 30-39 | D58: Male | E58: White | F58: 1 | I58: 1 | J58: 1 | M58: 1
A59: CRC | B59: UPW | C59: 50+ | D59: Male | E59: White | F59: 1 | I59: 1 | J59: 1 | M59: 1
A60: CRC | B60: UPW | C60: 50+ | D60: Male | E60: White | F60: 1 | H60: 1 | J60: 1 | L60: 1
A61: CRC | B61: UPW | C61: 18-24 | D61: Male | E61: White | F61: 1 | H61: 1 | K61: 1 | L61: 1
A62: CRC | B62: UPW | C62: 25-29 | D62: Male | E62: White | F62: 1 | H62: 1 | J62: 1 | M62: 1
A63: CRC | B63: UPW | C63: 40-49 | D63: Male | E63: White | F63: 1 | H63: 1 | J63: 1 | L63: 1
A64: CRC | B64: UPW | C64: 30-39 | D64: Male | E64: White | F64: 1 | I64: 1 | J64: 1 | L64: 1
A65: CRC | B65: UPW | C65: 40-49 | D65: Male | E65: White | F65: 1 | I65: 1 | K65: 1 | M65: 1
A66: CRC | B66: UPW | C66: 25-29 | D66: Male | E66: Black | F66: 1 | H66: 1 | J66: 1 | L66: 1
A67: CRC | B67: UPW | C67: 18-24 | D67: Male | E67: Black | F67: 1 | H67: 1 | J67: 1 | L67: 1
A68: CRC | B68: UPW | C68: 18-24 | D68: Male | E68: White | F68: 1 | H68: 1 | J68: 1 | L68: 1
A69: CRC | B69: UPW | C69: 30-39 | D69: Male | E69: White | F69: 1 | H69: 1 | J69: 1 | L69: 1
A70: CRC | B70: UPW | C70: 25-29 | D70: Male | E70: White | G70: 1 | I70: 1 | K70: 1 | M70: 1
A71: CRC | B71: UPW | C71: 25-29 | D71: Male | E71: White | G71: 1 | I71: 1 | K71: 1 | M71: 1
A72: CRC | B72: UPW | C72: 25-29 | D72: Male | E72: White | F72: 1 | H72: 1 | J72: 1 | L72: 1
A73: CRC | B73: UPW | C73: 30-39 | D73: Male | E73: White | F73: 1 | H73: 1 | J73: 1 | L73: 1
A74: CRC | B74: UPW | C74: 18-24 | D74: Male | E74: White | F74: 1 | H74: 1 | J74: 1 | L74: 1
A75: CRC | B75: UPW | C75: 18-24 | D75: Male | E75: White | F75: 1 | H75: 1 | J75: 1 | L75: 1
A76: CRC | B76: UPW | C76: 18-24 | D76: Male | E76: White | G76: 1 | H76: 1 | J76: 1 | L76: 1
A77: CRC | B77: UPW | C77: 25-29 | D77: Male | E77: White | F77: 1 | H77: 1 | J77: 1 | L77: 1
A78: CRC | B78: UPW | C78: 50+ | D78: Male | E78: White | F78: 1 | H78: 1 | J78: 1 | L78: 1
A79: CRC | B79: UPW | C79: 25-29 | D79: Male | E79: White | F79: 1 | H79: 1 | J79: 1 | L79: 1
A80: CRC | B80: UPW | C80: 30-39 | D80: Male | E80: White | G80: 1 | I80: 1 | J80: 1 | L80: 1
A81: CRC | B81: UPW | C81: 25-29 | D81: Male | E81: White | F81: 1 | H81: 1 | J81: 1 | L81: 1
A82: CRC | B82: UPW | C82: 40-49 | D82: Female | E82: White | F82: 1 | H82: 1 | J82: 1 | L82: 1
A83: CRC | B83: UPW | C83: 50+ | D83: Male | E83: White | F83: 1 | H83: 1 | J83: 1 | L83: 1
A84: CRC | B84: UPW | C84: 25-29 | D84: Male | E84: White | G84: 1 | I84: 1 | K84: 1 | L84: 1
A85: CRC | B85: UPW | C85: 18-24 | D85: Male | E85: Mixed | F85: 1 | I85: 1 | J85: 1 | L85: 1
A86: CRC | B86: UPW | C86: 18-24 | D86: Male | E86: White | F86: 1 | H86: 1 | J86: 1 | L86: 1
A87: CRC | B87: UPW | C87: 18-24 | D87: Male | E87: White | F87: 1 | H87: 1 | K87: 1 | L87: 1
A88: CRC | B88: UPW | C88: 40-49 | D88: Male | E88: White | F88: 1 | H88: 1 | K88: 1 | L88: 1
A89: CRC | B89: UPW | C89: 30-39 | D89: Female | E89: White | F89: 1 | H89: 1 | K89: 1 | L89: 1
A90: CRC | B90: UPW | C90: 50+ | D90: Male | E90: White | F90: 1 | H90: 1 | J90: 1 | L90: 1
A91: CRC | B91: UPW | C91: 18-24 | D91: Male | E91: White | G91: 1 | I91: 1 | J91: 1 | L91: 1
A92: CRC | B92: UPW | C92: 30-39 | D92: Male | E92: White | F92: 1 | H92: 1 | J92: 1 | L92: 1
A93: CRC | B93: UPW | C93: 18-24 | D93: Male | E93: White | F93: 1 | H93: 1 | J93: 1 | L93: 1
A94: CRC | B94: UPW | D94: Male | E94: Other | G94: 1 | H94: 1 | J94: 1 | L94: 1
A95: CRC | B95: UPW | C95: 18-24 | D95: Male | E95: White | G95: 1 | H95: 1 | K95: 1 | M95: 1
A96: CRC | B96: UPW | C96: 18-24 | D96: Male | E96: White | G96: 1 | L96: 1
A97: CRC | B97: UPW | C97: 25-29 | D97: Male | E97: White | F97: 1 | H97: 1 | K97: 1 | L97: 1
A98: CRC | B98: UPW | C98: 30-39 | D98: Female | E98: White | G98: 1 | H98: 1 | J98: 1 | L98: 1
A99: CRC | B99: UPW | C99: 18-24 | D99: Male | E99: Asian | F99: 1 | H99: 1 | J99: 1 | L99: 1
A100: CRC | B100: UPW | C100: 30-39 | D100: Male | E100: Asian
A101: CRC | B101: UPW | C101: 30-39 | D101: Male | E101: Asian | F101: 1 | H101: 1 | J101: 1 | L101: 1
A102: CRC | B102: UPW | C102: 18-24 | D102: Male | E102: White | F102: 1 | H102: 1 | J102: 1 | L102: 1
A103: CRC | B103: UPW | C103: 25-29 | D103: Male | F103: 1 | H103: 1 | J103: 1 | L103: 1
A104: CRC | B104: UPW | C104: 18-24 | D104: Male | E104: Mixed | F104: 1 | H104: 1 | J104: 1 | L104: 1
A105: CRC | B105: UPW | C105: 25-29 | D105: Male | E105: White | F105: 1 | H105: 1 | J105: 1 | M105: 1
A106: CRC | B106: UPW | C106: 18-24 | D106: Male | E106: Black | F106: 1 | H106: 1 | J106: 1 | M106: 1
A107: CRC | B107: UPW | C107: 25-29 | D107: Male | E107: White | G107: 1 | H107: 1 | J107: 1 | M107: 1
A108: CRC | B108: UPW | C108: 25-29 | D108: Male | E108: White | F108: 1 | H108: 1 | J108: 1 | L108: 1
A109: CRC | B109: UPW | C109: 30-39 | D109: Male | E109: White | F109: 1 | H109: 1 | J109: 1 | L109: 1
A110: CRC | B110: UPW | C110: 30-39 | D110: Female | E110: White | F110: 1 | H110: 1 | J110: 1 | L110: 1
A111: CRC | B111: UPW | C111: 30-39 | D111: Male | E111: White | F111: 1 | H111: 1 | J111: 1 | L111: 1
A112: CRC | B112: UPW | C112: 18-24 | D112: Male | E112: White | F112: 1 | H112: 1 | J112: 1 | L112: 1
A113: CRC | B113: UPW | C113: 40-49 | D113: Male | E113: Asian | F113: 1 | H113: 1 | J113: 1 | L113: 1
A114: CRC | B114: UPW | C114: 30-39 | D114: Male | E114: White | F114: 1 | I114: 1 | K114: 1 | M114: 1
A115: CRC | B115: UPW | C115: 40-49 | D115: Male | E115: White | F115: 1 | H115: 1 | J115: 1 | M115: 1
A116: CRC | B116: UPW | C116: 30-39 | D116: Male | E116: White | F116: 1 | H116: 1 | J116: 1 | L116: 1
A117: CRC | B117: UPW | C117: 50+ | D117: Male | E117: White | F117: 1 | H117: 1 | J117: 1 | L117: 1
A118: CRC | B118: UPW | C118: 18-24 | D118: Male | E118: White | G118: 1 | H118: 1 | J118: 1 | L118: 1
A119: CRC | B119: UPW | C119: 40-49 | D119: Male | E119: White | F119: 1 | H119: 1 | J119: 1 | L119: 1
A120: CRC | B120: UPW | C120: 50+ | D120: Male | E120: White | F120: 1 | I120: 1 | J120: 1 | L120: 1
A121: CRC | B121: UPW | C121: 18-24 | D121: Male | E121: Asian | G121: 1 | H121: 1 | J121: 1 | M121: 1
A122: CRC | B122: UPW | C122: 30-39 | D122: Male | E122: Asian | G122: 1 | H122: 1 | J122: 1 | L122: 1
A123: CRC | B123: UPW | C123: 30-39 | D123: Male | E123: Black | F123: 1 | H123: 1 | J123: 1 | M123: 1
A124: CRC | B124: UPW | C124: 18-24 | D124: Male | E124: Asian | G124: 1 | H124: 1 | J124: 1 | L124: 1
A125: CRC | B125: UPW | C125: 40-49 | D125: Male | E125: Asian | F125: 1 | H125: 1 | K125: 1 | L125: 1
A126: CRC | B126: UPW | C126: 30-39 | D126: Male | E126: White | G126: 1 | I126: 1 | J126: 1 | M126: 1
A127: CRC | B127: UPW | C127: 25-29 | D127: Male | E127: White | F127: 1 | H127: 1 | J127: 1 | L127: 1
A128: CRC | B128: UPW | C128: 30-39 | D128: Male | E128: Asian | F128: 1 | H128: 1 | J128: 1 | L128: 1
A129: CRC | B129: UPW | C129: 30-39 | D129: Male | E129: White | F129: 1 | H129: 1 | J129: 1 | L129: 1
A130: CRC | B130: UPW | C130: 18-24 | D130: Male | E130: Black | F130: 1 | H130: 1 | J130: 1 | L130: 1
A131: CRC | B131: UPW | C131: 25-29 | D131: Male | E131: White | F131: 1 | H131: 1 | J131: 1 | L131: 1
A132: CRC | B132: UPW | C132: 30-39 | D132: Male | E132: White | F132: 1 | H132: 1 | J132: 1 | L132: 1
A133: CRC | B133: UPW | C133: 30-39 | D133: Male | E133: White | F133: 1 | H133: 1 | J133: 1 | L133: 1
A134: CRC | B134: UPW | C134: 18-24 | D134: Male | E134: Black | F134: 1 | H134: 1 | J134: 1 | L134: 1
A135: CRC | B135: UPW | C135: 18-24 | D135: Male | E135: White | F135: 1 | H135: 1 | J135: 1 | L135: 1
A136: CRC | B136: UPW | C136: 30-39 | D136: Male | E136: Black | F136: 1 | H136: 1 | J136: 1 | L136: 1
A137: CRC | B137: UPW | C137: 18-24 | D137: Male | E137: Asian | F137: 1 | H137: 1 | J137: 1 | L137: 1
A138: CRC | B138: UPW | C138: 25-29 | D138: Male | E138: White | F138: 1 | H138: 1 | J138: 1 | L138: 1
A139: CRC | B139: UPW | C139: 30-39 | D139: Male | E139: White | F139: 1 | H139: 1 | J139: 1 | L139: 1
A140: CRC | B140: UPW | C140: 25-29 | D140: Female | E140: White | F140: 1 | H140: 1 | J140: 1 | L140: 1
A141: CRC | B141: UPW | C141: 30-39 | D141: Male | E141: Asian | F141: 1 | H141: 1 | J141: 1 | L141: 1
A142: CRC | B142: UPW | C142: 25-29 | D142: Male | E142: White | F142: 1 | H142: 1 | J142: 1 | L142: 1
A143: CRC | B143: UPW | C143: 30-39 | D143: Male | E143: White | F143: 1 | H143: 1 | J143: 1 | L143: 1
A144: CRC | B144: UPW | C144: 50+ | D144: Female | E144: White | F144: 1 | H144: 1 | J144: 1 | L144: 1
A145: CRC | B145: UPW | C145: 25-29 | D145: Male | E145: White | G145: 1 | H145: 1 | J145: 1 | L145: 1
A146: CRC | B146: UPW | C146: 18-24 | D146: Male | F146: 1 | H146: 1 | J146: 1 | L146: 1
A147: CRC | B147: UPW | C147: 30-39 | D147: Male | E147: White | F147: 1 | H147: 1 | J147: 1 | L147: 1
A148: CRC | B148: UPW | C148: 18-24 | D148: Male | E148: White | G148: 1 | I148: 1 | K148: 1 | L148: 1
A149: CRC | B149: UPW | C149: 18-24 | D149: Male | E149: White | G149: 1 | H149: 1 | J149: 1 | M149: 1
A150: CRC | B150: UPW | C150: 25-29 | D150: Male | E150: White | F150: 1 | H150: 1 | K150: 1 | M150: 1
A151: CRC | B151: UPW | C151: 18-24 | D151: Male | E151: White | G151: 1 | H151: 1 | J151: 1 | L151: 1
A152: CRC | B152: UPW | C152: 25-29 | D152: Male | E152: White | F152: 1 | H152: 1 | J152: 1 | L152: 1
A153: CRC | B153: UPW | C153: 30-39 | D153: Male | E153: White | F153: 1 | H153: 1 | K153: 1 | L153: 1
A154: CRC | B154: UPW | C154: 30-39 | D154: Male | E154: White | F154: 1 | H154: 1 | J154: 1 | L154: 1
A155: CRC | B155: UPW | C155: 30-39 | D155: Male | E155: Black | F155: 1 | H155: 1 | J155: 1 | L155: 1
A156: CRC | B156: UPW | C156: 25-29 | D156: Male | E156: White | G156: 1 | I156: 1 | K156: 1 | M156: 1
A157: CRC | B157: UPW | C157: 25-29 | D157: Male | E157: White | G157: 1 | I157: 1 | K157: 1 | L157: 1
A158: CRC | B158: UPW | C158: 40-49 | D158: Male | E158: White | G158: 1 | I158: 1 | K158: 1 | M158: 1
A159: CRC | B159: UPW | C159: 18-24 | D159: Female | E159: Black | G159: 1 | H159: 1 | K159: 1 | L159: 1
A160: CRC | B160: UPW | C160: 30-39 | D160: Male | E160: White | F160: 1 | H160: 1 | K160: 1 | M160: 1
A161: CRC | B161: UPW | C161: 50+ | D161: Male | E161: White | G161: 1 | H161: 1 | K161: 1 | L161: 1
A162: CRC | B162: UPW | C162: 25-29 | D162: Male | E162: White | F162: 1 | I162: 1 | K162: 1 | M162: 1
A163: CRC | B163: UPW | C163: 50+ | D163: Male | E163: Asian | G163: 1 | I163: 1 | K163: 1 | L163: 1
A164: CRC | B164: UPW | C164: 18-24 | D164: Male | E164: Black | G164: 1 | I164: 1 | K164: 1 | M164: 1
A165: CRC | B165: UPW | C165: 50+ | D165: Male | E165: White | F165: 1 | H165: 1 | K165: 1 | L165: 1
A166: CRC | B166: UPW | C166: 30-39 | D166: Male | E166: Asian | F166: 1 | I166: 1 | K166: 1 | M166: 1
A167: CRC | B167: UPW | C167: 18-24 | D167: Male | E167: White | G167: 1 | I167: 1 | K167: 1 | L167: 1
A168: CRC | B168: UPW | C168: 50+ | D168: Male | E168: Black | F168: 1 | H168: 1 | J168: 1 | L168: 1
A169: CRC | B169: UPW | C169: 50+ | D169: Male | E169: White | G169: 1 | I169: 1 | K169: 1 | L169: 1
A170: CRC | B170: UPW | C170: 18-24 | D170: Female | E170: Asian | F170: 1 | H170: 1 | J170: 1 | L170: 1
A171: CRC | B171: UPW | C171: 30-39 | D171: Male | E171: White | G171: 1 | I171: 1 | K171: 1 | M171: 1
A172: CRC | B172: UPW | C172: 18-24 | D172: Female | E172: Asian | F172: 1 | I172: 1 | K172: 1 | M172: 1
A173: CRC | B173: UPW | C173: 40-49 | D173: Male | E173: Black | G173: 1 | H173: 1 | K173: 1 | L173: 1
A174: CRC | B174: UPW | C174: 18-24 | D174: Male | E174: Black | G174: 1 | I174: 1 | K174: 1 | M174: 1
A175: CRC | B175: UPW | C175: 18-24 | D175: Male | E175: White | G175: 1 | H175: 1 | K175: 1 | L175: 1
A176: CRC | B176: UPW | C176: 18-24 | D176: Male | E176: White | F176: 1 | H176: 1 | K176: 1 | L176: 1
A177: CRC | B177: UPW | C177: 40-49 | D177: Male | E177: White | G177: 1 | I177: 1 | K177: 1 | L177: 1
A178: CRC | B178: UPW | C178: 30-39 | D178: Male | E178: White | F178: 1 | H178: 1 | J178: 1 | L178: 1
A179: CRC | B179: UPW | C179: 30-39 | D179: Male | E179: Asian | F179: 1 | H179: 1 | J179: 1 | L179: 1
A180: CRC | B180: UPW | C180: 18-24 | D180: Male | E180: Black | G180: 1 | I180: 1 | K180: 1 | M180: 1
A181: CRC | B181: UPW | C181: 30-39 | D181: Male | E181: Asian | F181: 1 | H181: 1 | J181: 1 | L181: 1
A182: CRC | B182: UPW | C182: 18-24 | D182: Male | E182: Asian | F182: 1 | H182: 1 | J182: 1 | L182: 1
A183: CRC | B183: UPW | C183: 18-24 | D183: Male | E183: White | F183: 1 | H183: 1 | J183: 1 | L183: 1
A184: CRC | B184: UPW | C184: 25-29 | D184: Male | E184: White | G184: 1 | I184: 1 | K184: 1 | M184: 1
A185: CRC | B185: UPW | C185: 18-24 | D185: Male | E185: White | F185: 1 | H185: 1 | J185: 1 | L185: 1
A186: CRC | B186: UPW | C186: 25-29 | D186: Male | E186: White | G186: 1 | H186: 1 | J186: 1 | L186: 1
A187: CRC | B187: UPW | C187: 18-24 | D187: Male | E187: White | F187: 1 | H187: 1 | J187: 1 | L187: 1
A188: CRC | B188: UPW | C188: 25-29 | D188: Male | E188: Black | G188: 1 | H188: 1 | J188: 1 | L188: 1
A189: CRC | B189: UPW | C189: 18-24 | D189: Male | E189: Mixed | F189: 1 | H189: 1 | J189: 1 | L189: 1
A190: CRC | B190: UPW | C190: 30-39 | D190: Male | E190: White | F190: 1 | I190: 1 | J190: 1 | L190: 1
A191: CRC | B191: UPW | C191: 18-24 | D191: Male | E191: White | F191: 1 | H191: 1 | J191: 1 | L191: 1
A192: CRC | B192: UPW | C192: 25-29 | D192: Male | E192: White | F192: 1 | H192: 1 | J192: 1 | L192: 1
A193: CRC | B193: UPW | C193: 50+ | D193: Male | E193: White | G193: 1 | H193: 1 | K193: 1 | L193: 1
A194: CRC | B194: UPW | C194: 18-24 | D194: Male | E194: White | F194: 1 | I194: 1 | K194: 1 | M194: 1
A195: CRC | B195: UPW | C195: 30-39 | D195: Male | E195: White | F195: 1 | H195: 1 | J195: 1 | L195: 1
A196: CRC | B196: UPW | C196: 30-39 | D196: Male | E196: Mixed | G196: 1 | H196: 1 | J196: 1 | L196: 1
A197: CRC | B197: UPW | C197: 30-39 | D197: Male | E197: White | F197: 1 | H197: 1 | J197: 1 | L197: 1
A198: CRC | B198: UPW | C198: 18-24 | D198: Female | E198: Mixed | G198: 1 | I198: 1 | K198: 1 | M198: 1
A199: CRC | B199: UPW | C199: 40-49 | D199: Male | E199: Black | F199: 1 | H199: 1 | J199: 1 | L199: 1
A200: CRC | B200: UPW | C200: 30-39 | D200: Male | E200: Black | F200: 1 | H200: 1 | J200: 1 | M200: 1
... 695 more rows

Sheet TTG Pivot_Chart Data (hidden)
B2: Chart data/calcs
B3: T3S positive % | C3: T2S positive % | D3: T1S positive %
A4: CRC | B4: =GETPIVOTDATA("Sum of 3TS Positive",$B$23,"CRC/NPS","CRC")/SUM(G24:H24) -> 0.6691489362 | C4: =GETPIVOTDATA("Sum of 2TS Positive",$B$23,"CRC/NPS","CRC")/SUM(E24:F24) -> 0.6889596603 | D4: =GETPIVOTDATA("Sum of 1TS Positive",$B$23,"CRC/NPS","CRC")/SUM(C24:D24) -> 0.7518248175
B5: Is there effective coordination of resettlement activity? | C5: Does resettlement activity focus sufficiently on supporting the service user’s resettlement? | D5: Does resettlement planning focus sufficiently on the service user’s resettlement needs and on factors linked to offending and desistance?
B8: TTG Sample size breakdown
B9: T1S | C9: T2S | D9: T3S
A10: CRC | B10: =SUM(C24:D24) -> 959 | C10: =SUM(E24:F24) -> 942 | D10: =SUM(G24:H24) -> 940
B19: Age group | C19: (All)
B20: Gender | C20: (All)
B21: Ethnic group | C21: (All)
B23: Row Labels | C23: Sum of 1TS Positive | D23: Sum of 1TS Negative | E23: Sum of 2TS Positive | F23: Sum of 2TS Negative | G23: Sum of 3TS Positive | H23: Sum of 3TS Negative
B24: CRC | C24: 721 | D24: 238 | E24: 649 | F24: 293 | G24: 629 | H24: 311
B25: Grand Total | C25: 721 | D25: 238 | E25: 649 | F25: 293 | G25: 629 | H25: 311

Sheet TTG Data (hidden)
A1: CRC/NPS | B1: Type of case | C1: Age group | D1: Gender | E1: Ethnic group | F1: 1TS Positive | G1: 1TS Negative | H1: 2TS Positive | I1: 2TS Negative | J1: 3TS Positive | K1: 3TS Negative | L1: Inspection year
A2: CRC | B2: TTG | C2: 25-29 | D2: Male | E2: White | G2: 1 | I2: 1 | K2: 1 | L2: 1
A3: CRC | B3: TTG | C3: 25-29 | D3: Male | E3: White | F3: 1 | H3: 1 | J3: 1 | L3: 1
A4: CRC | B4: TTG | C4: 40-49 | D4: Male | E4: White | F4: 1 | H4: 1 | K4: 1 | L4: 1
A5: CRC | B5: TTG | C5: 30-39 | D5: Male | E5: White | F5: 1 | H5: 1 | K5: 1 | L5: 1
A6: CRC | B6: TTG | C6: 25-29 | D6: Male | E6: White | F6: 1 | H6: 1 | K6: 1 | L6: 1
A7: CRC | B7: TTG | C7: 18-24 | D7: Male | E7: White | F7: 1 | H7: 1 | J7: 1 | L7: 1
A8: CRC | B8: TTG | C8: 25-29 | D8: Male | E8: White | F8: 1 | I8: 1 | K8: 1 | L8: 1
A9: CRC | B9: TTG | C9: 40-49 | D9: Male | E9: White | G9: 1 | I9: 1 | K9: 1 | L9: 1
A10: CRC | B10: TTG | C10: 50+ | D10: Male | E10: White | F10: 1 | H10: 1 | J10: 1 | L10: 1
A11: CRC | B11: TTG | C11: 30-39 | D11: Male | E11: White | F11: 1 | I11: 1 | K11: 1 | L11: 1
A12: CRC | B12: TTG | C12: 30-39 | D12: Male | E12: White | F12: 1 | H12: 1 | K12: 1 | L12: 1
A13: CRC | B13: TTG | C13: 30-39 | D13: Male | E13: Other | F13: 1 | H13: 1 | J13: 1 | L13: 1
A14: CRC | B14: TTG | C14: 40-49 | D14: Male | E14: White | F14: 1 | H14: 1 | K14: 1 | L14: 1
A15: CRC | B15: TTG | C15: 30-39 | D15: Male | F15: 1 | H15: 1 | J15: 1 | L15: 1
A16: CRC | B16: TTG | C16: 30-39 | D16: Male | E16: White | F16: 1 | H16: 1 | J16: 1 | L16: 1
A17: CRC | B17: TTG | C17: 25-29 | D17: Male | E17: White | F17: 1 | H17: 1 | J17: 1 | L17: 1
A18: CRC | B18: TTG | C18: 50+ | D18: Male | E18: White | F18: 1 | H18: 1 | J18: 1 | L18: 1
A19: CRC | B19: TTG | C19: 40-49 | D19: Male | E19: White | F19: 1 | H19: 1 | J19: 1 | L19: 1
A20: CRC | B20: TTG | C20: 50+ | D20: Male | E20: White | F20: 1 | H20: 1 | K20: 1 | L20: 1
A21: CRC | B21: TTG | C21: 25-29 | D21: Male | E21: White | F21: 1 | H21: 1 | K21: 1 | L21: 1
A22: CRC | B22: TTG | C22: 30-39 | D22: Male | E22: White | F22: 1 | H22: 1 | J22: 1 | L22: 1
A23: CRC | B23: TTG | C23: 25-29 | E23: Mixed | F23: 1 | H23: 1 | J23: 1 | L23: 1
A24: CRC | B24: TTG | C24: 40-49 | D24: Male | E24: White | G24: 1 | I24: 1 | K24: 1 | L24: 1
A25: CRC | B25: TTG | C25: 50+ | D25: Male | E25: White | F25: 1 | H25: 1 | J25: 1 | L25: 1
A26: CRC | B26: TTG | C26: 50+ | D26: Male | E26: White | F26: 1 | H26: 1 | J26: 1 | L26: 1
A27: CRC | B27: TTG | C27: 25-29 | D27: Male | E27: White | F27: 1 | H27: 1 | J27: 1 | L27: 1
A28: CRC | B28: TTG | C28: 18-24 | D28: Male | E28: Black | F28: 1 | I28: 1 | J28: 1 | L28: 1
A29: CRC | B29: TTG | C29: 18-24 | D29: Male | E29: White | F29: 1 | H29: 1 | J29: 1 | L29: 1
A30: CRC | B30: TTG | C30: 40-49 | D30: Male | E30: White | G30: 1 | I30: 1 | K30: 1 | L30: 1
A31: CRC | B31: TTG | C31: 30-39 | D31: Male | E31: White | G31: 1 | I31: 1 | K31: 1 | L31: 1
A32: CRC | B32: TTG | C32: 30-39 | D32: Male | E32: White | F32: 1 | H32: 1 | J32: 1 | L32: 1
A33: CRC | B33: TTG | C33: 25-29 | D33: Male | E33: White | G33: 1 | I33: 1 | K33: 1 | L33: 1
A34: CRC | B34: TTG | C34: 40-49 | D34: Male | E34: White | G34: 1 | I34: 1 | K34: 1 | L34: 1
A35: CRC | B35: TTG | C35: 30-39 | D35: Male | E35: White | F35: 1 | H35: 1 | J35: 1 | L35: 1
A36: CRC | B36: TTG | C36: 30-39 | D36: Male | E36: White | F36: 1 | H36: 1 | K36: 1 | L36: 1
A37: CRC | B37: TTG | C37: 25-29 | D37: Male | E37: White | F37: 1 | H37: 1 | J37: 1 | L37: 1
A38: CRC | B38: TTG | C38: 25-29 | D38: Male | E38: White | G38: 1 | H38: 1 | J38: 1 | L38: 1
A39: CRC | B39: TTG | C39: 30-39 | D39: Male | E39: White | F39: 1 | H39: 1 | J39: 1 | L39: 1
A40: CRC | B40: TTG | C40: 30-39 | D40: Male | E40: White | G40: 1 | I40: 1 | K40: 1 | L40: 1
A41: CRC | B41: TTG | C41: 50+ | D41: Male | E41: White | F41: 1 | H41: 1 | J41: 1 | L41: 1
A42: CRC | B42: TTG | C42: 50+ | D42: Male | E42: White | G42: 1 | I42: 1 | J42: 1 | L42: 1
A43: CRC | B43: TTG | C43: 30-39 | D43: Male | E43: White | F43: 1 | H43: 1 | K43: 1 | L43: 1
A44: CRC | B44: TTG | C44: 30-39 | D44: Male | E44: White | G44: 1 | I44: 1 | J44: 1 | L44: 1
A45: CRC | B45: TTG | C45: 18-24 | D45: Male | E45: White | G45: 1 | I45: 1 | K45: 1 | L45: 1
A46: CRC | B46: TTG | C46: 18-24 | D46: Male | E46: White | G46: 1 | I46: 1 | K46: 1 | L46: 1
A47: CRC | B47: TTG | C47: 25-29 | D47: Male | E47: White | F47: 1 | H47: 1 | J47: 1 | L47: 1
A48: CRC | B48: TTG | C48: 30-39 | D48: Male | E48: White | F48: 1 | I48: 1 | K48: 1 | L48: 1
A49: CRC | B49: TTG | C49: 40-49 | D49: Male | E49: White | F49: 1 | H49: 1 | J49: 1 | L49: 1
A50: CRC | B50: TTG | C50: 40-49 | D50: Male | E50: White | G50: 1 | I50: 1 | K50: 1 | L50: 1
A51: CRC | B51: TTG | C51: 18-24 | D51: Male | E51: White | F51: 1 | H51: 1 | J51: 1 | L51: 1
A52: CRC | B52: TTG | C52: 30-39 | D52: Female | E52: White | F52: 1 | H52: 1 | J52: 1 | L52: 1
A53: CRC | B53: TTG | C53: 30-39 | D53: Male | E53: White | F53: 1 | H53: 1 | K53: 1 | L53: 1
A54: CRC | B54: TTG | C54: 30-39 | D54: Male | E54: White | F54: 1 | H54: 1 | J54: 1 | L54: 1
A55: CRC | B55: TTG | C55: 18-24 | D55: Male | E55: White | F55: 1 | H55: 1 | J55: 1 | L55: 1
A56: CRC | B56: TTG | C56: 40-49 | D56: Male | E56: Black | F56: 1 | H56: 1 | J56: 1 | L56: 1
A57: CRC | B57: TTG | C57: 40-49 | E57: White | F57: 1 | H57: 1 | K57: 1 | L57: 1
A58: CRC | B58: TTG | C58: 40-49 | D58: Male | E58: White | F58: 1 | I58: 1 | K58: 1 | L58: 1
A59: CRC | B59: TTG | C59: 40-49 | D59: Male | E59: White | F59: 1 | H59: 1 | K59: 1 | L59: 1
A60: CRC | B60: TTG | C60: 25-29 | D60: Male | E60: White | F60: 1 | I60: 1 | K60: 1 | L60: 1
A61: CRC | B61: TTG | C61: 30-39 | D61: Female | E61: White | F61: 1 | H61: 1 | J61: 1 | L61: 1
A62: CRC | B62: TTG | C62: 30-39 | D62: Male | E62: White | G62: 1 | I62: 1 | K62: 1 | L62: 1
A63: CRC | B63: TTG | C63: 18-24 | D63: Male | F63: 1 | H63: 1 | J63: 1 | L63: 1
A64: CRC | B64: TTG | C64: 40-49 | D64: Male | E64: White | F64: 1 | I64: 1 | K64: 1 | L64: 1
A65: CRC | B65: TTG | C65: 30-39 | D65: Female | E65: White | F65: 1 | H65: 1 | J65: 1 | L65: 1
A66: CRC | B66: TTG | C66: 40-49 | D66: Male | E66: White | F66: 1 | H66: 1 | J66: 1 | L66: 1
A67: CRC | B67: TTG | C67: 30-39 | D67: Male | E67: White | F67: 1 | H67: 1 | J67: 1 | L67: 1
A68: CRC | B68: TTG | C68: 30-39 | D68: Male | E68: White | F68: 1 | H68: 1 | J68: 1 | L68: 1
A69: CRC | B69: TTG | C69: 18-24 | D69: Male | E69: White | F69: 1 | H69: 1 | J69: 1 | L69: 1
A70: CRC | B70: TTG | C70: 40-49 | D70: Male | E70: White | F70: 1 | H70: 1 | J70: 1 | L70: 1
A71: CRC | B71: TTG | C71: 30-39 | D71: Male | E71: White | F71: 1 | H71: 1 | J71: 1 | L71: 1
A72: CRC | B72: TTG | C72: 50+ | D72: Male | E72: White | F72: 1 | I72: 1 | J72: 1 | L72: 1
A73: CRC | B73: TTG | C73: 30-39 | D73: Male | E73: White | F73: 1 | J73: 1 | L73: 1
A74: CRC | B74: TTG | C74: 40-49 | D74: Male | E74: Black | I74: 1 | K74: 1 | L74: 1
A75: CRC | B75: TTG | C75: 25-29 | D75: Male | E75: White | F75: 1 | H75: 1 | K75: 1 | L75: 1
A76: CRC | B76: TTG | C76: 18-24 | D76: Male | E76: White | F76: 1 | H76: 1 | J76: 1 | L76: 1
A77: CRC | B77: TTG | C77: 30-39 | D77: Male | E77: Asian | F77: 1 | H77: 1 | J77: 1 | L77: 1
A78: CRC | B78: TTG | C78: 30-39 | D78: Male | E78: White | F78: 1 | H78: 1 | J78: 1 | L78: 1
A79: CRC | B79: TTG | C79: 30-39 | D79: Male | E79: Asian | F79: 1 | H79: 1 | K79: 1 | L79: 1
A80: CRC | B80: TTG | C80: 25-29 | D80: Male | E80: White | F80: 1 | H80: 1 | J80: 1 | L80: 1
A81: CRC | B81: TTG | C81: 18-24 | D81: Male | E81: White | F81: 1 | H81: 1 | J81: 1 | L81: 1
A82: CRC | B82: TTG | C82: 30-39 | D82: Male | E82: White | F82: 1 | H82: 1 | J82: 1 | L82: 1
A83: CRC | B83: TTG | C83: 30-39 | D83: Male | E83: White | F83: 1 | I83: 1 | K83: 1 | L83: 1
A84: CRC | B84: TTG | C84: 30-39 | D84: Male | E84: Asian | F84: 1 | I84: 1 | K84: 1 | L84: 1
A85: CRC | B85: TTG | C85: 40-49 | D85: Male | E85: White | F85: 1 | H85: 1 | J85: 1 | L85: 1
A86: CRC | B86: TTG | C86: 40-49 | D86: Male | E86: White | F86: 1 | H86: 1 | K86: 1 | L86: 1
A87: CRC | B87: TTG | D87: Male | E87: Black | F87: 1 | H87: 1 | J87: 1 | L87: 1
A88: CRC | B88: TTG | C88: 30-39 | D88: Male | E88: White | F88: 1 | I88: 1 | K88: 1 | L88: 1
A89: CRC | B89: TTG | C89: 30-39 | D89: Male | E89: White | F89: 1 | H89: 1 | J89: 1 | L89: 1
A90: CRC | B90: TTG | C90: 40-49 | D90: Male | E90: White | F90: 1 | H90: 1 | J90: 1 | L90: 1
A91: CRC | B91: TTG | C91: 50+ | D91: Male | E91: White | G91: 1 | H91: 1 | K91: 1 | L91: 1
A92: CRC | B92: TTG | C92: 40-49 | D92: Male | E92: White | F92: 1 | H92: 1 | J92: 1 | L92: 1
A93: CRC | B93: TTG | C93: 30-39 | D93: Male | E93: White | F93: 1 | H93: 1 | J93: 1 | L93: 1
A94: CRC | B94: TTG | C94: 30-39 | D94: Male | E94: White | G94: 1 | H94: 1 | K94: 1 | L94: 1
A95: CRC | B95: TTG | C95: 40-49 | D95: Male | E95: White | F95: 1 | H95: 1 | J95: 1 | L95: 1
A96: CRC | B96: TTG | C96: 30-39 | D96: Male | E96: White | F96: 1 | H96: 1 | J96: 1 | L96: 1
A97: CRC | B97: TTG | C97: 30-39 | D97: Male | E97: White | F97: 1 | H97: 1 | J97: 1 | L97: 1
A98: CRC | B98: TTG | C98: 40-49 | D98: Male | E98: Black | G98: 1 | H98: 1 | J98: 1 | L98: 1
A99: CRC | B99: TTG | C99: 30-39 | D99: Male | E99: White | F99: 1 | H99: 1 | K99: 1 | L99: 1
A100: CRC | B100: TTG | C100: 30-39 | D100: Male | E100: White | F100: 1 | H100: 1 | K100: 1 | L100: 1
A101: CRC | B101: TTG | C101: 40-49 | D101: Male | E101: White | F101: 1 | H101: 1 | J101: 1 | L101: 1
A102: CRC | B102: TTG | C102: 30-39 | D102: Male | E102: Asian | F102: 1 | H102: 1 | J102: 1 | L102: 1
A103: CRC | B103: TTG | C103: 18-24 | D103: Male | E103: White | F103: 1 | H103: 1 | J103: 1 | L103: 1
A104: CRC | B104: TTG | C104: 30-39 | D104: Female | E104: Asian | F104: 1 | H104: 1 | K104: 1 | L104: 1
A105: CRC | B105: TTG | C105: 40-49 | D105: Female | E105: White | F105: 1 | H105: 1 | K105: 1 | L105: 1
A106: CRC | B106: TTG | C106: 30-39 | D106: Male | E106: White | F106: 1 | H106: 1 | J106: 1 | L106: 1
A107: CRC | B107: TTG | C107: 25-29 | D107: Male | E107: Asian | F107: 1 | H107: 1 | J107: 1 | L107: 1
A108: CRC | B108: TTG | C108: 30-39 | D108: Male | E108: White | F108: 1 | H108: 1 | K108: 1 | L108: 1
A109: CRC | B109: TTG | C109: 25-29 | D109: Male | E109: White | F109: 1 | H109: 1 | J109: 1 | L109: 1
A110: CRC | B110: TTG | C110: 30-39 | D110: Male | E110: White | F110: 1 | H110: 1 | K110: 1 | L110: 1
A111: CRC | B111: TTG | C111: 30-39 | D111: Male | E111: White | F111: 1 | H111: 1 | J111: 1 | L111: 1
A112: CRC | B112: TTG | C112: 30-39 | D112: Male | E112: White | F112: 1 | H112: 1 | J112: 1 | L112: 1
A113: CRC | B113: TTG | C113: 40-49 | D113: Male | E113: White | F113: 1 | H113: 1 | J113: 1 | L113: 1
A114: CRC | B114: TTG | C114: 25-29 | D114: Male | E114: White | G114: 1 | I114: 1 | K114: 1 | L114: 1
A115: CRC | B115: TTG | C115: 30-39 | D115: Male | E115: Black | F115: 1 | H115: 1 | K115: 1 | L115: 1
A116: CRC | B116: TTG | C116: 25-29 | D116: Male | E116: White | F116: 1 | H116: 1 | J116: 1 | L116: 1
A117: CRC | B117: TTG | C117: 18-24 | D117: Male | E117: White | F117: 1 | I117: 1 | K117: 1 | L117: 1
A118: CRC | B118: TTG | C118: 25-29 | D118: Male | E118: White | G118: 1 | I118: 1 | K118: 1 | L118: 1
A119: CRC | B119: TTG | C119: 40-49 | D119: Male | E119: Mixed | F119: 1 | H119: 1 | J119: 1 | L119: 1
A120: CRC | B120: TTG | C120: 30-39 | D120: Male | E120: White | F120: 1 | H120: 1 | J120: 1 | L120: 1
A121: CRC | B121: TTG | C121: 30-39 | D121: Male | E121: White | F121: 1 | H121: 1 | J121: 1 | L121: 1
A122: CRC | B122: TTG | C122: 25-29 | D122: Male | E122: White | F122: 1 | I122: 1 | K122: 1 | L122: 1
A123: CRC | B123: TTG | C123: 25-29 | D123: Male | E123: White | G123: 1 | I123: 1 | K123: 1 | L123: 1
A124: CRC | B124: TTG | C124: 50+ | D124: Male | E124: White | F124: 1 | H124: 1 | J124: 1 | L124: 1
A125: CRC | B125: TTG | C125: 50+ | D125: Male | E125: White | F125: 1 | H125: 1 | J125: 1 | L125: 1
A126: CRC | B126: TTG | C126: 30-39 | D126: Male | E126: White | F126: 1 | H126: 1 | J126: 1 | L126: 1
A127: CRC | B127: TTG | C127: 30-39 | D127: Male | E127: White | F127: 1 | H127: 1 | J127: 1 | L127: 1
A128: CRC | B128: TTG | C128: 25-29 | D128: Male | E128: White | F128: 1 | H128: 1 | K128: 1 | L128: 1
A129: CRC | B129: TTG | C129: 30-39 | D129: Male | E129: Asian | F129: 1 | H129: 1 | J129: 1 | L129: 1
A130: CRC | B130: TTG | C130: 40-49 | D130: Male | E130: White | G130: 1 | I130: 1 | K130: 1 | L130: 1
A131: CRC | B131: TTG | C131: 30-39 | D131: Male | E131: Mixed | G131: 1 | I131: 1 | K131: 1 | L131: 1
A132: CRC | B132: TTG | C132: 18-24 | D132: Male | E132: White | F132: 1 | H132: 1 | J132: 1 | L132: 1
A133: CRC | B133: TTG | C133: 30-39 | D133: Male | E133: Mixed | F133: 1 | H133: 1 | K133: 1 | L133: 1
A134: CRC | B134: TTG | C134: 50+ | D134: Male | E134: White | G134: 1 | H134: 1 | K134: 1 | L134: 1
A135: CRC | B135: TTG | C135: 50+ | D135: Male | E135: Asian | G135: 1 | I135: 1 | K135: 1 | L135: 1
A136: CRC | B136: TTG | C136: 40-49 | D136: Female | E136: White | F136: 1 | I136: 1 | K136: 1 | L136: 1
A137: CRC | B137: TTG | C137: 40-49 | D137: Female | E137: White | F137: 1 | H137: 1 | J137: 1 | L137: 1
A138: CRC | B138: TTG | C138: 18-24 | D138: Male | E138: Black | G138: 1 | I138: 1 | J138: 1 | L138: 1
A139: CRC | B139: TTG | C139: 30-39 | D139: Male | F139: 1 | H139: 1 | J139: 1 | L139: 1
A140: CRC | B140: TTG | C140: 25-29 | D140: Male | E140: White | G140: 1 | H140: 1 | J140: 1 | L140: 1
A141: CRC | B141: TTG | C141: 30-39 | D141: Male | E141: White | F141: 1 | H141: 1 | J141: 1 | L141: 1
A142: CRC | B142: TTG | C142: 50+ | D142: Male | E142: White | G142: 1 | I142: 1 | K142: 1 | L142: 1
A143: CRC | B143: TTG | C143: 50+ | D143: Male | E143: White | G143: 1 | I143: 1 | K143: 1 | L143: 1
A144: CRC | B144: TTG | C144: 18-24 | D144: Male | E144: Black | G144: 1 | I144: 1 | K144: 1 | L144: 1
A145: CRC | B145: TTG | C145: 25-29 | D145: Female | E145: White | G145: 1 | I145: 1 | K145: 1 | L145: 1
A146: CRC | B146: TTG | C146: 18-24 | D146: Male | E146: Mixed | G146: 1 | I146: 1 | K146: 1 | L146: 1
A147: CRC | B147: TTG | C147: 25-29 | D147: Male | E147: White | G147: 1 | I147: 1 | K147: 1 | L147: 1
A148: CRC | B148: TTG | C148: 40-49 | D148: Male | E148: White | G148: 1 | I148: 1 | K148: 1 | L148: 1
A149: CRC | B149: TTG | C149: 30-39 | D149: Male | E149: White | G149: 1 | I149: 1 | K149: 1 | L149: 1
A150: CRC | B150: TTG | C150: 30-39 | D150: Male | E150: White | F150: 1 | H150: 1 | J150: 1 | L150: 1
A151: CRC | B151: TTG | C151: 30-39 | D151: Male | E151: White | F151: 1 | H151: 1 | K151: 1 | L151: 1
A152: CRC | B152: TTG | C152: 40-49 | D152: Female | E152: White | F152: 1 | H152: 1 | J152: 1 | L152: 1
A153: CRC | B153: TTG | C153: 30-39 | D153: Female | E153: White | G153: 1 | I153: 1 | K153: 1 | L153: 1
A154: CRC | B154: TTG | C154: 30-39 | D154: Male | E154: White | G154: 1 | I154: 1 | K154: 1 | L154: 1
A155: CRC | B155: TTG | C155: 50+ | D155: Male | F155: 1 | H155: 1 | K155: 1 | L155: 1
A156: CRC | B156: TTG | C156: 40-49 | D156: Male | E156: White | G156: 1 | I156: 1 | K156: 1 | L156: 1
A157: CRC | B157: TTG | C157: 25-29 | D157: Male | E157: White | G157: 1 | I157: 1 | J157: 1 | L157: 1
A158: CRC | B158: TTG | C158: 25-29 | D158: Male | E158: White | F158: 1 | H158: 1 | J158: 1 | L158: 1
A159: CRC | B159: TTG | C159: 30-39 | D159: Male | E159: White | F159: 1 | I159: 1 | K159: 1 | L159: 1
A160: CRC | B160: TTG | C160: 18-24 | D160: Male | E160: Other | F160: 1 | H160: 1 | J160: 1 | L160: 1
A161: CRC | B161: TTG | C161: 40-49 | D161: Male | E161: Asian | F161: 1 | H161: 1 | J161: 1 | L161: 1
A162: CRC | B162: TTG | C162: 30-39 | D162: Male | E162: Asian | F162: 1 | H162: 1 | J162: 1 | L162: 1
A163: CRC | B163: TTG | C163: 30-39 | D163: Male | E163: White | F163: 1 | I163: 1 | K163: 1 | L163: 1
A164: CRC | B164: TTG | C164: 18-24 | D164: Male | E164: Black | G164: 1 | I164: 1 | K164: 1 | L164: 1
A165: CRC | B165: TTG | C165: 18-24 | D165: Male | E165: Asian | G165: 1 | I165: 1 | K165: 1 | L165: 1
A166: CRC | B166: TTG | C166: 25-29 | D166: Male | F166: 1 | H166: 1 | K166: 1 | L166: 1
A167: CRC | B167: TTG | C167: 25-29 | D167: Male | F167: 1 | H167: 1 | J167: 1 | L167: 1
A168: CRC | B168: TTG | C168: 30-39 | D168: Male | E168: Asian | F168: 1 | H168: 1 | J168: 1 | L168: 1
A169: CRC | B169: TTG | C169: 18-24 | D169: Male | E169: Asian | F169: 1 | I169: 1 | K169: 1 | L169: 1
A170: CRC | B170: TTG | C170: 25-29 | D170: Male | E170: White | F170: 1 | H170: 1 | J170: 1 | L170: 1
A171: CRC | B171: TTG | C171: 25-29 | E171: Black | F171: 1 | I171: 1 | K171: 1 | L171: 1
A172: CRC | B172: TTG | C172: 40-49 | D172: Male | E172: White | F172: 1 | H172: 1 | J172: 1 | L172: 1
A173: CRC | B173: TTG | C173: 25-29 | D173: Male | E173: White | F173: 1 | I173: 1 | K173: 1 | L173: 1
A174: CRC | B174: TTG | C174: 25-29 | D174: Male | E174: White | F174: 1 | H174: 1 | K174: 1 | L174: 1
A175: CRC | B175: TTG | C175: 40-49 | D175: Male | E175: White | F175: 1 | H175: 1 | J175: 1 | L175: 1
A176: CRC | B176: TTG | C176: 30-39 | D176: Male | E176: White | G176: 1 | I176: 1 | K176: 1 | L176: 1
A177: CRC | B177: TTG | C177: 25-29 | D177: Male | E177: White | F177: 1 | H177: 1 | J177: 1 | L177: 1
A178: CRC | B178: TTG | C178: 30-39 | D178: Male | E178: White | F178: 1 | H178: 1 | K178: 1 | L178: 1
A179: CRC | B179: TTG | C179: 30-39 | D179: Male | E179: White | G179: 1 | I179: 1 | K179: 1 | L179: 1
A180: CRC | B180: TTG | C180: 30-39 | D180: Male | E180: White | F180: 1 | I180: 1 | K180: 1 | L180: 1
A181: CRC | B181: TTG | C181: 30-39 | D181: Male | E181: White | F181: 1 | H181: 1 | K181: 1 | L181: 1
A182: CRC | B182: TTG | C182: 18-24 | D182: Male | E182: White | G182: 1 | H182: 1 | J182: 1 | L182: 1
A183: CRC | B183: TTG | C183: 25-29 | D183: Male | E183: White | G183: 1 | I183: 1 | K183: 1 | L183: 1
A184: CRC | B184: TTG | C184: 18-24 | D184: Male | E184: White | F184: 1 | I184: 1 | K184: 1 | L184: 1
A185: CRC | B185: TTG | C185: 40-49 | D185: Male | E185: White | F185: 1 | H185: 1 | K185: 1 | L185: 1
A186: CRC | B186: TTG | C186: 30-39 | D186: Male | E186: Asian | G186: 1 | I186: 1 | K186: 1 | L186: 1
A187: CRC | B187: TTG | C187: 30-39 | D187: Female | E187: Black | F187: 1 | H187: 1 | J187: 1 | L187: 1
A188: CRC | B188: TTG | C188: 30-39 | D188: Female | E188: White | F188: 1 | I188: 1 | J188: 1 | L188: 1
A189: CRC | B189: TTG | C189: 50+ | D189: Female | E189: White | G189: 1 | H189: 1 | J189: 1 | L189: 1
A190: CRC | B190: TTG | C190: 25-29 | D190: Male | E190: White | F190: 1 | H190: 1 | J190: 1 | L190: 1
A191: CRC | B191: TTG | C191: 30-39 | D191: Male | E191: White | F191: 1 | H191: 1 | J191: 1 | L191: 1
A192: CRC | B192: TTG | C192: 30-39 | D192: Male | E192: White | F192: 1 | H192: 1 | J192: 1 | L192: 1
A193: CRC | B193: TTG | C193: 40-49 | D193: Male | E193: White | F193: 1 | H193: 1 | J193: 1 | L193: 1
A194: CRC | B194: TTG | C194: 40-49 | D194: Male | E194: Black | F194: 1 | H194: 1 | J194: 1 | L194: 1
A195: CRC | B195: TTG | C195: 40-49 | D195: Male | E195: White | F195: 1 | H195: 1 | J195: 1 | L195: 1
A196: CRC | B196: TTG | C196: 18-24 | D196: Male | E196: White | F196: 1 | I196: 1 | K196: 1 | L196: 1
A197: CRC | B197: TTG | C197: 25-29 | D197: Male | E197: White | F197: 1 | H197: 1 | J197: 1 | L197: 1
A198: CRC | B198: TTG | C198: 30-39 | D198: Male | E198: White | F198: 1 | H198: 1 | J198: 1 | L198: 1
A199: CRC | B199: TTG | C199: 25-29 | D199: Male | E199: White | F199: 1 | H199: 1 | J199: 1 | L199: 1
A200: CRC | B200: TTG | C200: 30-39 | D200: Male | E200: White | F200: 1 | H200: 1 | J200: 1 | L200: 1
... 763 more rows

Sheet Court Pivot_Chart Data (hidden)
B2: Chart data/calcs
B3: R2S positive % | C3: R1S positive %
A4: NPS | B4: =GETPIVOTDATA("Sum of 2RS Positive",$B$20,"CRC/NPS","NPS")/SUM(E21:F21) -> 0.6600660066 | C4: =GETPIVOTDATA("Sum of 1RS Positive",$B$20,"CRC/NPS","NPS")/SUM(C21:D21) -> 0.7116430903
B5: Is the allocation of the case prompt, accurate, and based on sufficient information? | C5: Is the pre-sentence information and advice provided to court sufficiently analytical and personalised to the service user, supporting the court’s decision-making?
B8: Court reports Sample size breakdown
B9: R1S | C9: R2S
A10: NPS | B10: =SUM(C21:D21) -> 919 | C10: =SUM(E21:F21) -> 909
B13: Age group | C13: (All)
B14: Gender | C14: (All)
B15: Ethnic group | C15: (All)
B16: Likelihood of reoffending (OGRS) | C16: (All)
B17: Responsible Officer | C17: (All)
B18: Risk of serious harm | C18: (All)
B20: Row Labels | C20: Sum of 1RS Positive | D20: Sum of 1RS Negative | E20: Sum of 2RS Positive | F20: Sum of 2RS Negative
B21: NPS | C21: 654 | D21: 265 | E21: 600 | F21: 309
B22: Grand Total | C22: 654 | D22: 265 | E22: 600 | F22: 309

Sheet Court Data (hidden)
A1: CRC/NPS | B1: Type of case | C1: Age group | D1: Gender | E1: Ethnic group | F1: Likelihood of reoffending (OGRS) | G1: Responsible Officer | H1: Risk of serious harm | I1: 1RS Positive | J1: 1RS Negative | K1: 2RS Positive | L1: 2RS Negative
A2: NPS | B2: Court Reports and Allocation | C2: 18-24 | D2: Female | E2: White | F2: Low | G2: PO | H2: Medium | I2: 1 | L2: 1
A3: NPS | B3: Court Reports and Allocation | C3: 30-39 | D3: Male | E3: Black | F3: Low | G3: PSO | H3: Medium | I3: 1 | K3: 1
A4: NPS | B4: Court Reports and Allocation | C4: 18-24 | D4: Male | E4: White | F4: Low | G4: PSO | H4: Low | I4: 1 | K4: 1
A5: NPS | B5: Court Reports and Allocation | C5: 50+ | D5: Male | E5: White | F5: Low | G5: PO | H5: Low | I5: 1 | K5: 1
A6: NPS | B6: Court Reports and Allocation | C6: 18-24 | D6: Female | E6: White | F6: Low | G6: PSO | H6: Low | J6: 1 | K6: 1
A7: NPS | B7: Court Reports and Allocation | C7: 25-29 | D7: Male | E7: White | F7: Low | G7: PO | H7: Low | J7: 1 | L7: 1
A8: NPS | B8: Court Reports and Allocation | C8: 18-24 | D8: Male | E8: Asian | F8: Low | G8: PO | H8: Medium | I8: 1 | K8: 1
A9: NPS | B9: Court Reports and Allocation | C9: 40-49 | D9: Female | E9: White | F9: (Very) High | G9: PSO | H9: Medium | I9: 1 | L9: 1
A10: NPS | B10: Court Reports and Allocation | C10: 25-29 | D10: Male | E10: White | F10: Medium | G10: Other | H10: Medium | J10: 1 | L10: 1
A11: NPS | B11: Court Reports and Allocation | C11: 40-49 | D11: Male | E11: White | F11: Low | G11: PO | H11: (Very) High | I11: 1 | L11: 1
A12: NPS | B12: Court Reports and Allocation | C12: 25-29 | D12: Male | E12: White | F12: Medium | G12: PO | H12: Medium | J12: 1 | K12: 1
A13: NPS | B13: Court Reports and Allocation | C13: 25-29 | D13: Male | F13: Low | G13: PSO | H13: Low | J13: 1 | L13: 1
A14: NPS | B14: Court Reports and Allocation | C14: 40-49 | D14: Male | E14: White | F14: (Very) High | G14: PSO | J14: 1 | L14: 1
A15: NPS | B15: Court Reports and Allocation | C15: 25-29 | D15: Male | F15: Low | G15: PSO | H15: Low | I15: 1 | K15: 1
A16: NPS | B16: Court Reports and Allocation | C16: 30-39 | D16: Male | E16: White | G16: PSO | J16: 1 | K16: 1
A17: NPS | B17: Court Reports and Allocation | C17: 50+ | D17: Female | E17: White | F17: Low | G17: PSO | H17: Medium | I17: 1 | L17: 1
A18: NPS | B18: Court Reports and Allocation | C18: 30-39 | D18: Male | F18: Medium | G18: PO | H18: Medium | J18: 1 | L18: 1
A19: NPS | B19: Court Reports and Allocation | C19: 25-29 | D19: Male | E19: White | G19: PSO | H19: Medium | J19: 1 | L19: 1
A20: NPS | B20: Court Reports and Allocation | C20: 25-29 | D20: Male | E20: White | F20: Low | G20: PO | H20: Medium | I20: 1 | L20: 1
A21: NPS | B21: Court Reports and Allocation | C21: 18-24 | D21: Male | E21: White | F21: Low | G21: PO | H21: Medium | I21: 1 | K21: 1
A22: NPS | B22: Court Reports and Allocation | C22: 30-39 | D22: Male | E22: White | F22: Low | G22: PO | H22: Medium | J22: 1 | K22: 1
A23: NPS | B23: Court Reports and Allocation | C23: 25-29 | D23: Male | E23: White | F23: Low | G23: PSO | H23: Low | J23: 1 | K23: 1
A24: NPS | B24: Court Reports and Allocation | C24: 18-24 | D24: Male | F24: Low | G24: PSO | H24: Low | I24: 1 | L24: 1
A25: NPS | B25: Court Reports and Allocation | C25: 30-39 | D25: Male | E25: White | F25: (Very) High | G25: PSO | H25: Medium | I25: 1 | K25: 1
A26: NPS | B26: Court Reports and Allocation | C26: 50+ | D26: Female | F26: Low | G26: PSO | H26: Low | I26: 1 | K26: 1
A27: NPS | B27: Court Reports and Allocation | C27: 40-49 | D27: Male | E27: White | F27: Low | G27: PO | H27: (Very) High | I27: 1 | L27: 1
A28: NPS | B28: Court Reports and Allocation | C28: 40-49 | D28: Male | E28: White | F28: Low | G28: PO | H28: Low | J28: 1 | L28: 1
A29: NPS | B29: Court Reports and Allocation | C29: 30-39 | D29: Male | E29: White | F29: (Very) High | G29: PSO | H29: Medium | I29: 1 | L29: 1
A30: NPS | B30: Court Reports and Allocation | C30: 18-24 | D30: Male | E30: White | F30: Low | G30: PO | H30: Medium | I30: 1 | K30: 1
A31: NPS | B31: Court Reports and Allocation | C31: 40-49 | D31: Female | E31: White | F31: Low | G31: PO | H31: Medium | I31: 1 | L31: 1
A32: NPS | B32: Court Reports and Allocation | C32: 18-24 | D32: Male | F32: Low | G32: PSO | I32: 1 | K32: 1
A33: NPS | B33: Court Reports and Allocation | C33: 25-29 | D33: Male | F33: Low | G33: PO | H33: Medium | I33: 1 | K33: 1
A34: NPS | B34: Court Reports and Allocation | C34: 30-39 | D34: Male | E34: White | F34: Medium | G34: PSO | H34: Low | I34: 1 | L34: 1
A35: NPS | B35: Court Reports and Allocation | C35: 30-39 | D35: Male | E35: White | F35: Low | G35: PO | H35: Low | J35: 1 | L35: 1
A36: NPS | B36: Court Reports and Allocation | C36: 40-49 | D36: Female | E36: White | F36: Low | G36: PSO | H36: Medium | I36: 1 | L36: 1
A37: NPS | B37: Court Reports and Allocation | C37: 30-39 | D37: Male | E37: White | F37: Low | G37: PO | J37: 1 | L37: 1
A38: NPS | B38: Court Reports and Allocation | C38: 25-29 | D38: Male | E38: Mixed | F38: Low | G38: PO | H38: (Very) High | I38: 1 | K38: 1
A39: NPS | B39: Court Reports and Allocation | C39: 18-24 | D39: Female | E39: White | F39: Low | G39: PO | H39: Medium | I39: 1 | L39: 1
A40: NPS | B40: Court Reports and Allocation | C40: 25-29 | D40: Male | E40: White | F40: (Very) High | G40: PO | H40: Medium | I40: 1 | K40: 1
A41: NPS | B41: Court Reports and Allocation | C41: 50+ | D41: Male | E41: White | F41: Low | G41: PO | H41: Medium | I41: 1 | L41: 1
A42: NPS | B42: Court Reports and Allocation | C42: 30-39 | D42: Male | E42: White | F42: Medium | G42: PO | H42: Medium | I42: 1 | L42: 1
A43: NPS | B43: Court Reports and Allocation | C43: 18-24 | D43: Male | F43: Medium | G43: PO | I43: 1 | L43: 1
A44: NPS | B44: Court Reports and Allocation | C44: 30-39 | D44: Male | E44: White | G44: PO | H44: Medium | I44: 1 | L44: 1
A45: NPS | B45: Court Reports and Allocation | C45: 30-39 | D45: Male | E45: White | F45: Low | G45: PSO | J45: 1 | L45: 1
A46: NPS | B46: Court Reports and Allocation | C46: 40-49 | D46: Female | E46: White | F46: Low | G46: PO | H46: Medium | I46: 1 | L46: 1
A47: NPS | B47: Court Reports and Allocation | C47: 25-29 | D47: Male | E47: White | F47: (Very) High | G47: PSO | H47: Low | J47: 1 | L47: 1
A48: NPS | B48: Court Reports and Allocation | C48: 40-49 | D48: Male | E48: White | F48: Low | G48: PSO | H48: Low | I48: 1 | K48: 1
A49: NPS | B49: Court Reports and Allocation | C49: 25-29 | D49: Male | E49: White | F49: Low | G49: PSO | H49: Medium | I49: 1 | K49: 1
A50: NPS | B50: Court Reports and Allocation | C50: 25-29 | D50: Male | E50: White | F50: Medium | G50: PSO | H50: Medium | I50: 1 | L50: 1
A51: NPS | B51: Court Reports and Allocation | C51: 30-39 | D51: Male | E51: White | F51: (Very) High | G51: Other | H51: Low | I51: 1 | L51: 1
A52: NPS | B52: Court Reports and Allocation | C52: 40-49 | D52: Male | E52: White | F52: Low | G52: PSO | H52: Low | J52: 1 | L52: 1
A53: NPS | B53: Court Reports and Allocation | C53: 50+ | D53: Female | E53: White | F53: Low | G53: PSO | H53: Low | J53: 1 | L53: 1
A54: NPS | B54: Court Reports and Allocation | C54: 30-39 | D54: Male | E54: White | F54: Medium | G54: PO | H54: Low | I54: 1 | K54: 1
A55: NPS | B55: Court Reports and Allocation | C55: 50+ | D55: Female | E55: White | F55: Low | G55: PO | H55: Medium | I55: 1 | L55: 1
A56: NPS | B56: Court Reports and Allocation | C56: 50+ | D56: Male | E56: White | F56: Low | G56: PO | H56: (Very) High | I56: 1 | L56: 1
A57: NPS | B57: Court Reports and Allocation | C57: 40-49 | D57: Male | E57: White | F57: Low | G57: PO | H57: Medium | I57: 1 | K57: 1
A58: NPS | B58: Court Reports and Allocation | C58: 40-49 | D58: Male | E58: White | F58: Medium | G58: PO | H58: Medium | J58: 1 | K58: 1
A59: NPS | B59: Court Reports and Allocation | C59: 25-29 | D59: Male | E59: White | G59: PO | H59: Low | J59: 1 | L59: 1
A60: NPS | B60: Court Reports and Allocation | C60: 25-29 | D60: Male | E60: White | F60: Medium | G60: PSO | H60: Low | I60: 1 | K60: 1
A61: NPS | B61: Court Reports and Allocation | C61: 25-29 | D61: Male | E61: White | F61: Low | G61: Other | H61: Medium | I61: 1 | K61: 1
A62: NPS | B62: Court Reports and Allocation | C62: 30-39 | D62: Male | E62: White | F62: (Very) High | G62: Other | H62: Low | I62: 1 | K62: 1
A63: NPS | B63: Court Reports and Allocation | C63: 30-39 | D63: Male | E63: White | F63: Low | G63: Other | H63: Low | J63: 1 | K63: 1
A64: NPS | B64: Court Reports and Allocation | C64: 18-24 | D64: Male | E64: White | F64: Medium | G64: PO | H64: Medium | I64: 1 | K64: 1
A65: NPS | B65: Court Reports and Allocation | C65: 25-29 | D65: Male | E65: White | F65: Low | G65: Other | H65: Low | J65: 1 | K65: 1
A66: NPS | B66: Court Reports and Allocation | C66: 30-39 | D66: Male | E66: White | F66: Low | G66: Other | H66: Medium | I66: 1 | K66: 1
A67: NPS | B67: Court Reports and Allocation | C67: 40-49 | D67: Male | E67: White | F67: Low | G67: PO | H67: Medium | I67: 1 | K67: 1
A68: NPS | B68: Court Reports and Allocation | C68: 25-29 | D68: Male | E68: White | F68: Medium | G68: PO | H68: Medium | I68: 1 | K68: 1
A69: NPS | B69: Court Reports and Allocation | C69: 18-24 | D69: Male | E69: Asian | F69: Low | G69: PO | H69: Medium | I69: 1 | K69: 1
A70: NPS | B70: Court Reports and Allocation | C70: 50+ | D70: Male | F70: Low | G70: Other | I70: 1 | K70: 1
A71: NPS | B71: Court Reports and Allocation | C71: 18-24 | D71: Male | E71: White | F71: Low | G71: Other | H71: Medium | I71: 1 | K71: 1
A72: NPS | B72: Court Reports and Allocation | C72: 25-29 | D72: Male | E72: White | F72: Medium | G72: Other | H72: Medium | I72: 1 | K72: 1
A73: NPS | B73: Court Reports and Allocation | C73: 25-29 | D73: Male | E73: White | F73: Medium | G73: PO | H73: Medium | I73: 1 | K73: 1
A74: NPS | B74: Court Reports and Allocation | C74: 18-24 | D74: Female | E74: White | F74: Low | G74: Other | I74: 1 | K74: 1
A75: NPS | B75: Court Reports and Allocation | C75: 25-29 | D75: Male | E75: White | F75: (Very) High | G75: Other | H75: Medium | I75: 1 | K75: 1
A76: NPS | B76: Court Reports and Allocation | C76: 25-29 | D76: Male | E76: White | F76: Medium | G76: Other | H76: Medium | I76: 1 | K76: 1
A77: NPS | B77: Court Reports and Allocation | C77: 30-39 | D77: Male | E77: White | F77: Medium | G77: Other | H77: Low | I77: 1 | K77: 1
A78: NPS | B78: Court Reports and Allocation | C78: 50+ | D78: Male | E78: White | F78: (Very) High | G78: PO | H78: Medium | I78: 1 | K78: 1
A79: NPS | B79: Court Reports and Allocation | C79: 40-49 | D79: Male | E79: White | F79: Low | G79: PSO | H79: Medium | I79: 1 | K79: 1
A80: NPS | B80: Court Reports and Allocation | C80: 18-24 | D80: Female | E80: Asian | F80: Low | G80: Other | H80: Low | I80: 1 | K80: 1
A81: NPS | B81: Court Reports and Allocation | C81: 25-29 | D81: Male | E81: Black | F81: Medium | G81: Other | H81: Low | I81: 1 | K81: 1
A82: NPS | B82: Court Reports and Allocation | C82: 50+ | D82: Female | E82: Black | F82: Low | G82: PSO | H82: Low | I82: 1 | K82: 1
A83: NPS | B83: Court Reports and Allocation | C83: 40-49 | D83: Male | E83: White | F83: Medium | G83: Other | H83: Low | I83: 1 | K83: 1
A84: NPS | B84: Court Reports and Allocation | C84: 40-49 | D84: Male | F84: Low | G84: Other | I84: 1 | K84: 1
A85: NPS | B85: Court Reports and Allocation | C85: 30-39 | D85: Female | E85: White | F85: (Very) High | G85: PO | H85: Medium | I85: 1 | K85: 1
A86: NPS | B86: Court Reports and Allocation | C86: 25-29 | D86: Male | E86: Black | F86: Low | G86: Other | H86: Low | J86: 1 | L86: 1
A87: NPS | B87: Court Reports and Allocation | C87: 30-39 | D87: Male | E87: White | F87: Medium | G87: Other | H87: Medium | I87: 1 | K87: 1
A88: NPS | B88: Court Reports and Allocation | C88: 50+ | D88: Male | G88: Other | H88: Low | I88: 1 | K88: 1
A89: NPS | B89: Court Reports and Allocation | C89: 30-39 | D89: Male | E89: White | F89: Low | G89: Other | H89: Low | I89: 1 | K89: 1
A90: NPS | B90: Court Reports and Allocation | C90: 50+ | D90: Male | E90: Black | F90: Low | G90: Other | H90: Low | I90: 1 | K90: 1
A91: NPS | B91: Court Reports and Allocation | C91: 25-29 | D91: Male | E91: White | F91: Medium | G91: PO | H91: Low | I91: 1 | K91: 1
A92: NPS | B92: Court Reports and Allocation | C92: 40-49 | D92: Male | E92: White | F92: Low | G92: Other | H92: Medium | I92: 1 | K92: 1
A93: NPS | B93: Court Reports and Allocation | C93: 40-49 | D93: Female | E93: White | F93: Low | G93: Other | I93: 1 | K93: 1
A94: NPS | B94: Court Reports and Allocation | C94: 18-24 | D94: Male | E94: White | F94: Low | G94: Other | H94: Low | I94: 1 | K94: 1
A95: NPS | B95: Court Reports and Allocation | C95: 30-39 | D95: Female | E95: White | F95: Low | G95: Other | H95: Medium | I95: 1 | K95: 1
A96: NPS | B96: Court Reports and Allocation | D96: Male | E96: White | F96: Medium | G96: Other | H96: Medium | I96: 1 | K96: 1
A97: NPS | B97: Court Reports and Allocation | C97: 30-39 | D97: Male | E97: White | F97: Low | G97: Other | H97: Medium | I97: 1 | K97: 1
A98: NPS | B98: Court Reports and Allocation | C98: 25-29 | D98: Male | E98: White | F98: Medium | G98: Other | H98: Medium | I98: 1 | K98: 1
A99: NPS | B99: Court Reports and Allocation | C99: 18-24 | D99: Male | E99: White | F99: Medium | G99: Other | H99: Medium | I99: 1 | K99: 1
A100: NPS | B100: Court Reports and Allocation | C100: 30-39 | D100: Male | E100: White | F100: Low | G100: Other | H100: Low | I100: 1 | K100: 1
A101: NPS | B101: Court Reports and Allocation | C101: 18-24 | D101: Male | E101: White | F101: Low | G101: PO | H101: Low | I101: 1 | K101: 1
A102: NPS | B102: Court Reports and Allocation | C102: 40-49 | D102: Male | E102: White | F102: Low | G102: Other | I102: 1 | K102: 1
A103: NPS | B103: Court Reports and Allocation | C103: 50+ | D103: Male | E103: White | F103: Low | G103: Other | H103: Low | I103: 1 | K103: 1
A104: NPS | B104: Court Reports and Allocation | C104: 25-29 | D104: Male | E104: White | F104: (Very) High | G104: Other | H104: (Very) High | I104: 1 | K104: 1
A105: NPS | B105: Court Reports and Allocation | C105: 18-24 | E105: Black | F105: Low | G105: Other | H105: Low | I105: 1 | K105: 1
A106: NPS | B106: Court Reports and Allocation | C106: 40-49 | D106: Male | E106: White | F106: Low | G106: Other | H106: Low | J106: 1 | K106: 1
A107: NPS | B107: Court Reports and Allocation | C107: 25-29 | D107: Male | E107: Asian | F107: Medium | G107: Other | H107: Low | I107: 1 | K107: 1
A108: NPS | B108: Court Reports and Allocation | C108: 30-39 | D108: Male | F108: Low | G108: PO | H108: Low | I108: 1 | K108: 1
A109: NPS | B109: Court Reports and Allocation | C109: 25-29 | D109: Male | E109: White | F109: (Very) High | G109: Other | H109: Medium | I109: 1 | K109: 1
A110: NPS | B110: Court Reports and Allocation | C110: 18-24 | D110: Male | E110: White | F110: (Very) High | G110: Other | H110: Medium | I110: 1 | K110: 1
A111: NPS | B111: Court Reports and Allocation | C111: 25-29 | D111: Male | E111: White | F111: Low | G111: Other | H111: Low | I111: 1 | K111: 1
A112: NPS | B112: Court Reports and Allocation | C112: 18-24 | D112: Male | E112: White | F112: (Very) High | G112: Other | H112: Medium | I112: 1 | K112: 1
A113: NPS | B113: Court Reports and Allocation | C113: 18-24 | D113: Female | E113: White | F113: Medium | G113: Other | H113: Low | I113: 1 | K113: 1
A114: NPS | B114: Court Reports and Allocation | C114: 30-39 | D114: Male | E114: White | F114: Medium | G114: Other | H114: Medium | I114: 1 | K114: 1
A115: NPS | B115: Court Reports and Allocation | C115: 30-39 | D115: Female | E115: White | F115: Medium | G115: PO | H115: Medium | I115: 1 | K115: 1
A116: NPS | B116: Court Reports and Allocation | C116: 18-24 | D116: Male | E116: White | F116: Medium | G116: Other | H116: Medium | I116: 1 | K116: 1
A117: NPS | B117: Court Reports and Allocation | C117: 25-29 | D117: Male | E117: White | F117: Medium | G117: Other | H117: Medium | I117: 1 | K117: 1
A118: NPS | B118: Court Reports and Allocation | C118: 30-39 | D118: Male | E118: White | F118: (Very) High | G118: Other | H118: Medium | I118: 1 | K118: 1
A119: NPS | B119: Court Reports and Allocation | C119: 30-39 | D119: Male | E119: White | F119: Medium | G119: Other | H119: Low | I119: 1 | K119: 1
A120: NPS | B120: Court Reports and Allocation | C120: 25-29 | D120: Male | E120: White | F120: Low | G120: Other | H120: Medium | I120: 1 | K120: 1
A121: NPS | B121: Court Reports and Allocation | C121: 40-49 | D121: Female | E121: White | F121: Low | G121: Other | H121: Low | I121: 1 | K121: 1
A122: NPS | B122: Court Reports and Allocation | C122: 30-39 | D122: Male | E122: White | F122: Low | G122: Other | H122: Medium | I122: 1 | K122: 1
A123: NPS | B123: Court Reports and Allocation | C123: 40-49 | D123: Male | E123: White | F123: Low | G123: Other | H123: Medium | I123: 1 | K123: 1
A124: NPS | B124: Court Reports and Allocation | C124: 50+ | D124: Female | E124: White | F124: Low | G124: Other | H124: Medium | I124: 1 | K124: 1
A125: NPS | B125: Court Reports and Allocation | C125: 40-49 | D125: Male | E125: White | F125: (Very) High | G125: Other | H125: Medium | I125: 1 | K125: 1
A126: NPS | B126: Court Reports and Allocation | C126: 40-49 | D126: Male | E126: White | F126: (Very) High | G126: Other | I126: 1 | K126: 1
A127: NPS | B127: Court Reports and Allocation | C127: 18-24 | D127: Female | E127: Asian | F127: Medium | G127: Other | H127: Medium | I127: 1 | K127: 1
A128: NPS | B128: Court Reports and Allocation | C128: 25-29 | D128: Female | E128: White | F128: Low | G128: Other | H128: Low | I128: 1 | K128: 1
A129: NPS | B129: Court Reports and Allocation | C129: 18-24 | D129: Male | E129: White | F129: Low | G129: Other | H129: Medium | I129: 1 | K129: 1
A130: NPS | B130: Court Reports and Allocation | C130: 18-24 | D130: Male | E130: White | F130: Medium | G130: Other | H130: Medium | I130: 1 | K130: 1
A131: NPS | B131: Court Reports and Allocation | C131: 25-29 | D131: Female | E131: White | F131: Medium | G131: Other | H131: Low | I131: 1 | K131: 1
A132: NPS | B132: Court Reports and Allocation | C132: 40-49 | D132: Female | E132: White | F132: (Very) High | G132: Other | H132: Low | I132: 1 | K132: 1
A133: NPS | B133: Court Reports and Allocation | C133: 50+ | D133: Male | E133: White | F133: Low | G133: Other | H133: Low | I133: 1 | K133: 1
A134: NPS | B134: Court Reports and Allocation | C134: 25-29 | D134: Male | E134: White | F134: Low | G134: Other | H134: Low | I134: 1 | K134: 1
A135: NPS | B135: Court Reports and Allocation | C135: 40-49 | D135: Female | E135: White | F135: Low | G135: Other | H135: Low | I135: 1 | K135: 1
A136: NPS | B136: Court Reports and Allocation | C136: 25-29 | D136: Male | F136: (Very) High | G136: Other | J136: 1 | L136: 1
A137: NPS | B137: Court Reports and Allocation | C137: 30-39 | D137: Male | E137: White | F137: (Very) High | G137: Other | I137: 1 | K137: 1
A138: NPS | B138: Court Reports and Allocation | C138: 30-39 | D138: Male | E138: White | F138: Medium | G138: Other | H138: Medium | I138: 1 | K138: 1
A139: NPS | B139: Court Reports and Allocation | C139: 25-29 | D139: Male | E139: White | F139: (Very) High | G139: Other | H139: Medium | I139: 1 | L139: 1
A140: NPS | B140: Court Reports and Allocation | C140: 40-49 | D140: Male | E140: White | F140: Low | G140: Other | H140: Medium | I140: 1 | K140: 1
A141: NPS | B141: Court Reports and Allocation | C141: 18-24 | D141: Male | E141: White | F141: Medium | G141: Other | H141: Medium | I141: 1 | K141: 1
A142: NPS | B142: Court Reports and Allocation | C142: 30-39 | D142: Female | E142: White | F142: Medium | G142: Other | H142: Medium | I142: 1 | K142: 1
A143: NPS | B143: Court Reports and Allocation | C143: 30-39 | D143: Male | E143: White | F143: Low | G143: Other | H143: Medium | I143: 1 | K143: 1
A144: NPS | B144: Court Reports and Allocation | C144: 25-29 | D144: Male | E144: White | G144: Other | H144: Medium | I144: 1 | L144: 1
A145: NPS | B145: Court Reports and Allocation | C145: 18-24 | D145: Male | E145: White | F145: (Very) High | G145: Other | H145: Medium | I145: 1 | K145: 1
A146: NPS | B146: Court Reports and Allocation | C146: 18-24 | D146: Male | E146: White | F146: Low | G146: Other | H146: Medium | I146: 1 | K146: 1
A147: NPS | B147: Court Reports and Allocation | C147: 30-39 | D147: Female | E147: White | F147: Low | G147: Other | H147: Low | I147: 1 | K147: 1
A148: NPS | B148: Court Reports and Allocation | C148: 30-39 | D148: Female | E148: Other | F148: Low | G148: Other | H148: Medium | I148: 1 | L148: 1
A149: NPS | B149: Court Reports and Allocation | C149: 25-29 | D149: Male | E149: White | F149: Low | G149: Other | H149: Medium | I149: 1 | K149: 1
A150: NPS | B150: Court Reports and Allocation | C150: 25-29 | D150: Male | E150: White | F150: (Very) High | G150: Other | H150: Medium | I150: 1 | K150: 1
A151: NPS | B151: Court Reports and Allocation | C151: 40-49 | D151: Male | E151: White | F151: Low | G151: Other | H151: Medium | I151: 1 | K151: 1
A152: NPS | B152: Court Reports and Allocation | C152: 30-39 | D152: Male | E152: White | F152: Medium | G152: Other | H152: Medium | I152: 1 | L152: 1
A153: NPS | B153: Court Reports and Allocation | C153: 30-39 | D153: Male | E153: White | F153: Low | G153: Other | H153: Medium | I153: 1 | K153: 1
A154: NPS | B154: Court Reports and Allocation | C154: 30-39 | D154: Male | E154: White | F154: (Very) High | G154: PSO | H154: Low | J154: 1 | K154: 1
A155: NPS | B155: Court Reports and Allocation | C155: 50+ | D155: Male | E155: White | F155: Low | G155: PO | H155: Medium | I155: 1 | K155: 1
A156: NPS | B156: Court Reports and Allocation | C156: 18-24 | D156: Male | E156: White | F156: Low | G156: PO | H156: Medium | I156: 1 | K156: 1
A157: NPS | B157: Court Reports and Allocation | C157: 40-49 | D157: Male | E157: White | F157: Low | G157: Other | H157: Medium | I157: 1 | K157: 1
A158: NPS | B158: Court Reports and Allocation | C158: 18-24 | D158: Male | E158: Other | F158: Medium | G158: PO | H158: Medium | I158: 1 | K158: 1
A159: NPS | B159: Court Reports and Allocation | C159: 50+ | D159: Male | E159: White | F159: Low | G159: PSO | H159: Low | I159: 1 | K159: 1
A160: NPS | B160: Court Reports and Allocation | C160: 25-29 | D160: Male | E160: White | F160: (Very) High | G160: PSO | H160: Medium | I160: 1 | K160: 1
A161: NPS | B161: Court Reports and Allocation | C161: 50+ | D161: Male | E161: Asian | F161: Low | G161: PSO | H161: Medium | I161: 1 | K161: 1
A162: NPS | B162: Court Reports and Allocation | C162: 40-49 | D162: Male | E162: Black | F162: Medium | G162: PSO | H162: Low | J162: 1 | L162: 1
A163: NPS | B163: Court Reports and Allocation | C163: 30-39 | D163: Female | E163: White | F163: (Very) High | G163: PO | H163: Medium | J163: 1 | L163: 1
A164: NPS | B164: Court Reports and Allocation | C164: 50+ | D164: Male | E164: White | F164: Low | G164: PSO | H164: Medium | I164: 1 | K164: 1
A165: NPS | B165: Court Reports and Allocation | C165: 30-39 | D165: Male | E165: White | F165: Medium | G165: PO | H165: Medium | J165: 1 | L165: 1
A166: NPS | B166: Court Reports and Allocation | C166: 30-39 | D166: Female | E166: White | F166: Medium | G166: Other | H166: Medium | I166: 1 | K166: 1
A167: NPS | B167: Court Reports and Allocation | C167: 30-39 | D167: Male | E167: White | F167: Low | G167: Other | H167: Medium | I167: 1 | K167: 1
A168: NPS | B168: Court Reports and Allocation | C168: 40-49 | D168: Male | E168: Asian | F168: (Very) High | G168: Other | H168: Low | J168: 1 | K168: 1
A169: NPS | B169: Court Reports and Allocation | C169: 50+ | D169: Male | E169: White | F169: Low | G169: Other | H169: Medium | I169: 1 | K169: 1
A170: NPS | B170: Court Reports and Allocation | C170: 18-24 | D170: Male | E170: White | F170: Low | G170: Other | H170: Medium | I170: 1 | K170: 1
A171: NPS | B171: Court Reports and Allocation | C171: 30-39 | D171: Male | E171: White | F171: (Very) High | G171: Other | H171: Low | I171: 1 | K171: 1
A172: NPS | B172: Court Reports and Allocation | C172: 18-24 | D172: Male | E172: White | F172: Low | G172: Other | H172: Medium | I172: 1 | K172: 1
A173: NPS | B173: Court Reports and Allocation | C173: 40-49 | D173: Male | E173: White | F173: Medium | G173: Other | H173: Medium | I173: 1 | K173: 1
A174: NPS | B174: Court Reports and Allocation | C174: 25-29 | D174: Male | E174: White | F174: (Very) High | G174: Other | H174: Medium | J174: 1 | L174: 1
A175: NPS | B175: Court Reports and Allocation | C175: 25-29 | D175: Male | E175: White | F175: Low | G175: Other | I175: 1
A176: NPS | B176: Court Reports and Allocation | C176: 30-39 | D176: Male | E176: White | F176: (Very) High | G176: Other | H176: Medium | I176: 1 | K176: 1
A177: NPS | B177: Court Reports and Allocation | C177: 30-39 | D177: Male | E177: White | F177: Medium | G177: Other | H177: Medium | I177: 1 | K177: 1
A178: NPS | B178: Court Reports and Allocation | C178: 18-24 | D178: Male | E178: White | F178: (Very) High | G178: PO | H178: (Very) High | I178: 1 | K178: 1
A179: NPS | B179: Court Reports and Allocation | C179: 30-39 | D179: Male | E179: Asian | F179: Low | G179: Other | H179: Medium | I179: 1 | L179: 1
A180: NPS | B180: Court Reports and Allocation | C180: 30-39 | D180: Male | E180: White | F180: Low | G180: Other | H180: Medium | J180: 1 | K180: 1
A181: NPS | B181: Court Reports and Allocation | C181: 40-49 | D181: Male | E181: White | G181: Other | H181: Low | J181: 1 | L181: 1
A182: NPS | B182: Court Reports and Allocation | C182: 25-29 | D182: Male | E182: White | F182: Low | G182: Other | H182: Low | I182: 1 | K182: 1
A183: NPS | B183: Court Reports and Allocation | C183: 25-29 | D183: Male | E183: White | G183: Other | H183: Low | J183: 1 | L183: 1
A184: NPS | B184: Court Reports and Allocation | C184: 40-49 | D184: Male | E184: Asian | F184: Low | G184: Other | H184: Low | I184: 1 | K184: 1
A185: NPS | B185: Court Reports and Allocation | C185: 50+ | D185: Female | E185: White | F185: Low | G185: Other | H185: Low | I185: 1 | K185: 1
A186: NPS | B186: Court Reports and Allocation | C186: 50+ | D186: Male | E186: White | F186: Low | G186: Other | H186: Low | I186: 1 | K186: 1
A187: NPS | B187: Court Reports and Allocation | C187: 30-39 | D187: Male | E187: White | F187: Medium | G187: Other | H187: Low | I187: 1 | K187: 1
A188: NPS | B188: Court Reports and Allocation | C188: 18-24 | D188: Male | E188: White | F188: Medium | G188: Other | H188: Low | I188: 1 | K188: 1
A189: NPS | B189: Court Reports and Allocation | C189: 25-29 | D189: Male | E189: Other | F189: Low | G189: Other | H189: Medium | I189: 1 | K189: 1
A190: NPS | B190: Court Reports and Allocation | C190: 40-49 | D190: Male | E190: White | F190: (Very) High | G190: Other | H190: Medium | J190: 1 | L190: 1
A191: NPS | B191: Court Reports and Allocation | C191: 25-29 | D191: Male | E191: Mixed | F191: Low | G191: PO | H191: Medium | I191: 1 | K191: 1
A192: NPS | B192: Court Reports and Allocation | C192: 30-39 | D192: Male | E192: White | F192: Low | G192: PO | H192: Medium | I192: 1 | K192: 1
A193: NPS | B193: Court Reports and Allocation | C193: 50+ | D193: Male | E193: White | F193: Low | G193: PO | H193: Medium | I193: 1 | K193: 1
A194: NPS | B194: Court Reports and Allocation | C194: 18-24 | D194: Male | E194: White | F194: Low | G194: Other | H194: Medium | I194: 1 | K194: 1
A195: NPS | B195: Court Reports and Allocation | C195: 18-24 | D195: Male | E195: Black | F195: Low | G195: PO | H195: Medium | I195: 1 | K195: 1
A196: NPS | B196: Court Reports and Allocation | C196: 18-24 | D196: Male | E196: White | F196: Low | G196: Other | H196: Medium | I196: 1 | K196: 1
A197: NPS | B197: Court Reports and Allocation | C197: 40-49 | D197: Male | E197: White | F197: Low | G197: PO | H197: Medium | I197: 1 | K197: 1
A198: NPS | B198: Court Reports and Allocation | C198: 50+ | D198: Male | E198: White | F198: Low | G198: PO | H198: Medium | I198: 1 | K198: 1
A199: NPS | B199: Court Reports and Allocation | C199: 50+ | D199: Male | E199: White | G199: Other | H199: Low | J199: 1 | L199: 1
A200: NPS | B200: Court Reports and Allocation | C200: 25-29 | D200: Male | E200: White | F200: Low | G200: PO | H200: (Very) High | I200: 1 | K200: 1
... 724 more rows

Sheet UPW Y2 Pivot_Chart Data (hidden)
B3: Chart data/calcs
B4: U3S positive % | C4: U2S positive % | D4: U1S positive %
A5: CRC | B5: =GETPIVOTDATA("Sum of 3US Positive",$B$24,"CRC/NPS","CRC")/SUM(G25:H25) -> 0.7699757869 | C5: =GETPIVOTDATA("Sum of 2US Positive",$B$24,"CRC/NPS","CRC")/SUM(E25:F25) -> 0.6934306569 | D5: =GETPIVOTDATA("Sum of 1US Positive",$B$24,"CRC/NPS","CRC")/SUM(C25:D25) -> 0.7146341463
B6: Is the sentence of the court implemented appropriately? | C6: Is unpaid work delivered safely? | D6: Is the assessment and planning of unpaid work personalised?
B9: UPW Sample size breakdown
B10: U1S | C10: U2S | D10: U3S
A11: CRC | B11: =SUM(C25:D25) -> 410 | C11: =SUM(E25:F25) -> 411 | D11: =SUM(G25:H25) -> 413
B20: Age group | C20: (All)
B21: Gender | C21: (All)
B22: Ethnic group | C22: (All)
B24: Row Labels | C24: Sum of 1US Positive | D24: Sum of 1US Negative | E24: Sum of 2US Positive | F24: Sum of 2US Negative | G24: Sum of 3US Positive | H24: Sum of 3US Negative
B25: CRC | C25: 293 | D25: 117 | E25: 285 | F25: 126 | G25: 318 | H25: 95
B26: Grand Total | C26: 293 | D26: 117 | E26: 285 | F26: 126 | G26: 318 | H26: 95

Sheet UPW Y2 Data (hidden)
A1: CRC/NPS | B1: Type of case | C1: Age group | D1: Gender | E1: Ethnic group | F1: 1US Positive | G1: 1US Negative | H1: 2US Positive | I1: 2US Negative | J1: 3US Positive | K1: 3US Negative
A2: CRC | B2: UPW | C2: 40-49 | D2: Male | E2: White | F2: 1 | H2: 1 | J2: 1
A3: CRC | B3: UPW | C3: 25-29 | D3: Female | E3: White | G3: 1 | I3: 1 | J3: 1
A4: CRC | B4: UPW | C4: 25-29 | D4: Male | E4: Asian | F4: 1 | H4: 1 | J4: 1
A5: CRC | B5: UPW | C5: 25-29 | D5: Male | E5: White | F5: 1 | H5: 1 | J5: 1
A6: CRC | B6: UPW | C6: 18-24 | D6: Male | E6: White | G6: 1 | I6: 1 | J6: 1
A7: CRC | B7: UPW | C7: 25-29 | D7: Female | E7: Black | F7: 1 | H7: 1 | J7: 1
A8: CRC | B8: UPW | C8: 40-49 | D8: Male | E8: White | G8: 1 | H8: 1 | J8: 1
A9: CRC | B9: UPW | C9: 25-29 | D9: Male | E9: White | F9: 1 | H9: 1 | J9: 1
A10: CRC | B10: UPW | C10: 18-24 | D10: Male | E10: White | F10: 1 | H10: 1 | J10: 1
A11: CRC | B11: UPW | C11: 50+ | D11: Male | E11: White | F11: 1 | H11: 1 | J11: 1
A12: CRC | B12: UPW | C12: 18-24 | D12: Male | E12: White | F12: 1 | H12: 1 | J12: 1
A13: CRC | B13: UPW | C13: 40-49 | D13: Female | E13: Black | F13: 1 | I13: 1 | J13: 1
A14: CRC | B14: UPW | C14: 30-39 | D14: Female | E14: White | F14: 1 | H14: 1 | J14: 1
A15: CRC | B15: UPW | C15: 18-24 | D15: Male | E15: White | F15: 1 | H15: 1 | K15: 1
A16: CRC | B16: UPW | C16: 50+ | D16: Male | E16: White | F16: 1 | H16: 1 | K16: 1
A17: CRC | B17: UPW | C17: 18-24 | D17: Male | E17: White | F17: 1 | H17: 1 | K17: 1
A18: CRC | B18: UPW | C18: 18-24 | D18: Female | F18: 1 | H18: 1 | J18: 1
A19: CRC | B19: UPW | C19: 30-39 | D19: Male | E19: Asian | G19: 1 | I19: 1 | K19: 1
A20: CRC | B20: UPW | C20: 30-39 | D20: Male | E20: White | F20: 1 | H20: 1 | J20: 1
A21: CRC | B21: UPW | C21: 30-39 | D21: Male | E21: White | F21: 1 | H21: 1 | J21: 1
A22: CRC | B22: UPW | C22: 50+ | D22: Male | E22: White | F22: 1 | H22: 1 | J22: 1
A23: CRC | B23: UPW | C23: 30-39 | D23: Male | E23: Asian | F23: 1 | H23: 1 | K23: 1
A24: CRC | B24: UPW | C24: 30-39 | D24: Male | E24: Black | F24: 1 | H24: 1 | J24: 1
A25: CRC | B25: UPW | C25: 25-29 | D25: Male | E25: Black | G25: 1 | H25: 1 | K25: 1
A26: CRC | B26: UPW | C26: 40-49 | D26: Male | E26: White | F26: 1 | H26: 1 | K26: 1
A27: CRC | B27: UPW | C27: 30-39 | D27: Male | E27: White | F27: 1 | I27: 1 | K27: 1
A28: CRC | B28: UPW | C28: 18-24 | D28: Female | E28: Black | F28: 1 | H28: 1 | J28: 1
A29: CRC | B29: UPW | C29: 30-39 | D29: Male | E29: Black | F29: 1 | H29: 1 | J29: 1
A30: CRC | B30: UPW | C30: 18-24 | D30: Male | E30: White | F30: 1 | H30: 1 | J30: 1
A31: CRC | B31: UPW | C31: 25-29 | D31: Male | E31: White | F31: 1 | H31: 1 | J31: 1
A32: CRC | B32: UPW | C32: 30-39 | D32: Male | E32: White | F32: 1 | H32: 1 | J32: 1
A33: CRC | B33: UPW | C33: 30-39 | D33: Male | F33: 1 | H33: 1 | J33: 1
A34: CRC | B34: UPW | C34: 25-29 | D34: Male | E34: White | F34: 1 | H34: 1 | J34: 1
A35: CRC | B35: UPW | C35: 18-24 | D35: Female | G35: 1 | I35: 1 | J35: 1
A36: CRC | B36: UPW | C36: 25-29 | D36: Male | E36: Black | F36: 1 | H36: 1 | K36: 1
A37: CRC | B37: UPW | C37: 18-24 | D37: Male | E37: White | F37: 1 | H37: 1 | J37: 1
A38: CRC | B38: UPW | C38: 18-24 | D38: Male | E38: White | G38: 1 | K38: 1
A39: CRC | B39: UPW | D39: Male | E39: White | G39: 1 | H39: 1 | K39: 1
A40: CRC | B40: UPW | C40: 30-39 | D40: Male | E40: Black | G40: 1 | H40: 1 | J40: 1
A41: CRC | B41: UPW | C41: 30-39 | D41: Male | E41: White | G41: 1 | H41: 1 | J41: 1
A42: CRC | B42: UPW | C42: 25-29 | D42: Male | E42: White | F42: 1 | H42: 1 | J42: 1
A43: CRC | B43: UPW | C43: 25-29 | D43: Male | E43: White | G43: 1 | I43: 1 | J43: 1
A44: CRC | B44: UPW | C44: 40-49 | D44: Male | E44: White | F44: 1 | H44: 1 | J44: 1
A45: CRC | B45: UPW | C45: 30-39 | D45: Male | E45: White | G45: 1 | I45: 1 | K45: 1
A46: CRC | B46: UPW | C46: 40-49 | D46: Male | E46: White | F46: 1 | I46: 1 | J46: 1
A47: CRC | B47: UPW | C47: 25-29 | D47: Male | E47: White | F47: 1 | H47: 1 | J47: 1
A48: CRC | B48: UPW | C48: 30-39 | D48: Male | E48: White | G48: 1 | I48: 1 | J48: 1
A49: CRC | B49: UPW | C49: 25-29 | D49: Male | E49: White | F49: 1 | H49: 1 | J49: 1
A50: CRC | B50: UPW | C50: 30-39 | D50: Male | E50: White | G50: 1 | I50: 1 | K50: 1
A51: CRC | B51: UPW | C51: 30-39 | D51: Male | E51: White | G51: 1 | H51: 1 | J51: 1
A52: CRC | B52: UPW | C52: 30-39 | D52: Male | E52: White | F52: 1 | H52: 1 | J52: 1
A53: CRC | B53: UPW | C53: 30-39 | D53: Female | F53: 1 | H53: 1 | J53: 1
A54: CRC | B54: UPW | C54: 40-49 | D54: Male | E54: White | F54: 1 | H54: 1 | J54: 1
A55: CRC | B55: UPW | C55: 30-39 | D55: Male | E55: White | G55: 1 | H55: 1 | J55: 1
A56: CRC | B56: UPW | C56: 30-39 | D56: Male | E56: White | G56: 1 | H56: 1 | J56: 1
A57: CRC | B57: UPW | C57: 30-39 | D57: Male | E57: White | F57: 1 | H57: 1 | J57: 1
A58: CRC | B58: UPW | C58: 25-29 | D58: Female | E58: White | G58: 1 | H58: 1 | J58: 1
A59: CRC | B59: UPW | C59: 18-24 | D59: Male | E59: Asian | G59: 1 | H59: 1 | J59: 1
A60: CRC | B60: UPW | C60: 30-39 | D60: Male | E60: White | F60: 1 | H60: 1 | J60: 1
A61: CRC | B61: UPW | C61: 30-39 | D61: Male | E61: White | F61: 1 | H61: 1 | J61: 1
A62: CRC | B62: UPW | C62: 30-39 | D62: Male | E62: White | F62: 1 | H62: 1 | J62: 1
A63: CRC | B63: UPW | C63: 30-39 | D63: Male | E63: Asian | F63: 1 | H63: 1 | K63: 1
A64: CRC | B64: UPW | C64: 18-24 | D64: Male | E64: White | F64: 1 | I64: 1 | J64: 1
A65: CRC | B65: UPW | C65: 40-49 | D65: Male | G65: 1 | H65: 1 | J65: 1
A66: CRC | B66: UPW | C66: 18-24 | D66: Male | E66: White | G66: 1 | I66: 1 | K66: 1
A67: CRC | B67: UPW | C67: 25-29 | D67: Male | E67: White | F67: 1 | H67: 1 | J67: 1
A68: CRC | B68: UPW | C68: 25-29 | D68: Male | E68: White | F68: 1 | H68: 1 | K68: 1
A69: CRC | B69: UPW | C69: 25-29 | D69: Female | E69: White | G69: 1 | I69: 1 | K69: 1
A70: CRC | B70: UPW | C70: 50+ | D70: Male | E70: White | F70: 1 | H70: 1 | J70: 1
A71: CRC | B71: UPW | C71: 40-49 | D71: Female | E71: White | F71: 1 | H71: 1 | J71: 1
A72: CRC | B72: UPW | C72: 18-24 | D72: Male | E72: White | F72: 1 | H72: 1 | J72: 1
A73: CRC | B73: UPW | C73: 30-39 | D73: Male | E73: Black | F73: 1 | H73: 1 | K73: 1
A74: CRC | B74: UPW | C74: 50+ | D74: Male | E74: White | G74: 1 | I74: 1 | K74: 1
A75: CRC | B75: UPW | C75: 18-24 | D75: Male | E75: White | F75: 1 | H75: 1 | J75: 1
A76: CRC | B76: UPW | C76: 40-49 | D76: Male | E76: White | G76: 1 | I76: 1 | J76: 1
A77: CRC | B77: UPW | C77: 30-39 | D77: Male | E77: Mixed | G77: 1 | I77: 1 | K77: 1
A78: CRC | B78: UPW | C78: 18-24 | D78: Male | G78: 1 | I78: 1 | J78: 1
A79: CRC | B79: UPW | C79: 25-29 | D79: Male | E79: White | G79: 1 | H79: 1 | J79: 1
A80: CRC | B80: UPW | C80: 18-24 | D80: Male | E80: Asian | G80: 1 | I80: 1 | J80: 1
A81: CRC | B81: UPW | C81: 40-49 | D81: Male | E81: Other | F81: 1 | H81: 1 | J81: 1
A82: CRC | B82: UPW | C82: 18-24 | D82: Male | E82: White | G82: 1 | I82: 1 | J82: 1
A83: CRC | B83: UPW | C83: 25-29 | D83: Male | E83: White | F83: 1 | I83: 1 | J83: 1
A84: CRC | B84: UPW | C84: 50+ | D84: Male | E84: White | F84: 1 | H84: 1 | J84: 1
A85: CRC | B85: UPW | C85: 40-49 | D85: Male | E85: White | F85: 1 | I85: 1 | J85: 1
A86: CRC | B86: UPW | C86: 30-39 | D86: Male | E86: White | F86: 1 | I86: 1 | J86: 1
A87: CRC | B87: UPW | C87: 25-29 | D87: Male | G87: 1 | H87: 1 | J87: 1
A88: CRC | B88: UPW | C88: 18-24 | D88: Male | E88: White | G88: 1 | I88: 1 | K88: 1
A89: CRC | B89: UPW | C89: 30-39 | D89: Male | F89: 1 | H89: 1 | J89: 1
A90: CRC | B90: UPW | C90: 40-49 | D90: Male | E90: White | F90: 1 | H90: 1 | J90: 1
A91: CRC | B91: UPW | C91: 40-49 | D91: Male | E91: White | G91: 1 | H91: 1 | K91: 1
A92: CRC | B92: UPW | C92: 40-49 | D92: Male | E92: White | F92: 1 | H92: 1 | J92: 1
A93: CRC | B93: UPW | C93: 18-24 | D93: Male | E93: White | F93: 1 | H93: 1 | K93: 1
A94: CRC | B94: UPW | C94: 18-24 | D94: Male | E94: White | H94: 1 | K94: 1
A95: CRC | B95: UPW | C95: 30-39 | D95: Male | E95: Mixed | F95: 1 | H95: 1 | J95: 1
A96: CRC | B96: UPW | C96: 40-49 | D96: Male | E96: Asian | F96: 1 | H96: 1 | K96: 1
A97: CRC | B97: UPW | C97: 30-39 | D97: Male | E97: White | F97: 1 | H97: 1 | J97: 1
A98: CRC | B98: UPW | C98: 40-49 | D98: Male | E98: Black | F98: 1 | H98: 1 | J98: 1
A99: CRC | B99: UPW | C99: 25-29 | D99: Male | E99: Asian | F99: 1 | H99: 1 | J99: 1
A100: CRC | B100: UPW | C100: 18-24 | D100: Female | E100: White | F100: 1 | H100: 1 | J100: 1
A101: CRC | B101: UPW | C101: 18-24 | D101: Male | E101: Mixed | F101: 1 | H101: 1 | J101: 1
A102: CRC | B102: UPW | C102: 25-29 | D102: Male | E102: White | F102: 1 | H102: 1 | J102: 1
A103: CRC | B103: UPW | C103: 25-29 | D103: Male | E103: White | F103: 1 | H103: 1 | J103: 1
A104: CRC | B104: UPW | C104: 25-29 | D104: Male | E104: White | F104: 1 | H104: 1 | K104: 1
A105: CRC | B105: UPW | C105: 30-39 | D105: Male | E105: Asian | F105: 1 | H105: 1 | J105: 1
A106: CRC | B106: UPW | C106: 30-39 | D106: Male | E106: White | F106: 1 | H106: 1 | J106: 1
A107: CRC | B107: UPW | C107: 30-39 | D107: Male | E107: White | F107: 1 | I107: 1 | J107: 1
A108: CRC | B108: UPW | C108: 30-39 | D108: Male | E108: White | F108: 1 | H108: 1 | J108: 1
A109: CRC | B109: UPW | C109: 18-24 | D109: Male | E109: White | F109: 1 | H109: 1 | J109: 1
A110: CRC | B110: UPW | C110: 30-39 | D110: Male | E110: White | F110: 1 | H110: 1 | J110: 1
A111: CRC | B111: UPW | C111: 30-39 | D111: Male | E111: White | F111: 1 | H111: 1 | J111: 1
A112: CRC | B112: UPW | C112: 30-39 | D112: Female | E112: Black | F112: 1 | H112: 1 | K112: 1
A113: CRC | B113: UPW | C113: 18-24 | D113: Male | E113: White | G113: 1 | H113: 1 | J113: 1
A114: CRC | B114: UPW | C114: 30-39 | D114: Male | E114: White | F114: 1 | H114: 1 | J114: 1
A115: CRC | B115: UPW | C115: 50+ | D115: Male | E115: White | F115: 1 | H115: 1 | J115: 1
A116: CRC | B116: UPW | C116: 30-39 | D116: Male | E116: White | F116: 1 | H116: 1 | J116: 1
A117: CRC | B117: UPW | C117: 40-49 | D117: Female | E117: White | F117: 1 | H117: 1 | J117: 1
A118: CRC | B118: UPW | C118: 40-49 | D118: Male | E118: Black | F118: 1 | H118: 1 | J118: 1
A119: CRC | B119: UPW | C119: 30-39 | D119: Male | E119: Asian | F119: 1 | H119: 1 | J119: 1
A120: CRC | B120: UPW | C120: 18-24 | D120: Male | E120: Black | G120: 1 | I120: 1 | K120: 1
A121: CRC | B121: UPW | C121: 30-39 | D121: Male | E121: Asian | F121: 1 | H121: 1 | J121: 1
A122: CRC | B122: UPW | C122: 18-24 | D122: Male | E122: Asian | F122: 1 | H122: 1 | J122: 1
A123: CRC | B123: UPW | C123: 50+ | D123: Male | E123: White | F123: 1 | H123: 1 | J123: 1
A124: CRC | B124: UPW | C124: 25-29 | D124: Male | E124: Asian | F124: 1 | H124: 1 | J124: 1
A125: CRC | B125: UPW | C125: 30-39 | D125: Male | E125: White | F125: 1 | I125: 1 | K125: 1
A126: CRC | B126: UPW | C126: 25-29 | D126: Male | E126: Other | F126: 1 | I126: 1 | K126: 1
A127: CRC | B127: UPW | C127: 50+ | D127: Male | E127: Black | F127: 1 | H127: 1 | J127: 1
A128: CRC | B128: UPW | C128: 18-24 | D128: Male | E128: White | G128: 1 | H128: 1 | K128: 1
A129: CRC | B129: UPW | C129: 30-39 | D129: Male | E129: White | F129: 1 | H129: 1 | J129: 1
A130: CRC | B130: UPW | C130: 40-49 | D130: Male | E130: White | G130: 1 | I130: 1 | J130: 1
A131: CRC | B131: UPW | C131: 25-29 | D131: Male | E131: White | F131: 1 | H131: 1 | J131: 1
A132: CRC | B132: UPW | C132: 18-24 | D132: Male | E132: Asian | G132: 1 | H132: 1 | K132: 1
A133: CRC | B133: UPW | C133: 25-29 | D133: Male | E133: White | G133: 1 | I133: 1 | J133: 1
A134: CRC | B134: UPW | C134: 50+ | D134: Male | E134: White | F134: 1 | I134: 1 | J134: 1
A135: CRC | B135: UPW | C135: 30-39 | D135: Male | E135: White | F135: 1 | I135: 1 | J135: 1
A136: CRC | B136: UPW | C136: 30-39 | D136: Male | E136: White | F136: 1 | H136: 1 | J136: 1
A137: CRC | B137: UPW | C137: 50+ | D137: Male | E137: Black | F137: 1 | H137: 1 | J137: 1
A138: CRC | B138: UPW | C138: 25-29 | D138: Male | F138: 1 | H138: 1 | J138: 1
A139: CRC | B139: UPW | C139: 25-29 | D139: Female | E139: White | F139: 1 | H139: 1 | J139: 1
A140: CRC | B140: UPW | C140: 50+ | D140: Male | E140: White | F140: 1 | I140: 1 | J140: 1
A141: CRC | B141: UPW | C141: 25-29 | D141: Male | E141: White | G141: 1 | I141: 1 | K141: 1
A142: CRC | B142: UPW | C142: 25-29 | D142: Female | E142: White | F142: 1 | I142: 1 | J142: 1
A143: CRC | B143: UPW | C143: 40-49 | D143: Male | E143: Other | F143: 1 | H143: 1 | J143: 1
A144: CRC | B144: UPW | C144: 50+ | D144: Female | E144: White | F144: 1 | H144: 1 | J144: 1
A145: CRC | B145: UPW | C145: 18-24 | D145: Male | E145: Asian | G145: 1 | I145: 1 | J145: 1
A146: CRC | B146: UPW | C146: 18-24 | D146: Male | E146: Black | F146: 1 | H146: 1 | J146: 1
A147: CRC | B147: UPW | C147: 18-24 | D147: Male | E147: Black | G147: 1 | I147: 1 | J147: 1
A148: CRC | B148: UPW | C148: 30-39 | D148: Male | E148: White | G148: 1 | I148: 1 | J148: 1
A149: CRC | B149: UPW | C149: 30-39 | D149: Male | E149: White | F149: 1 | H149: 1 | J149: 1
A150: CRC | B150: UPW | C150: 18-24 | D150: Male | E150: White | F150: 1 | I150: 1 | J150: 1
A151: CRC | B151: UPW | C151: 18-24 | D151: Male | E151: Black | G151: 1 | H151: 1 | J151: 1
A152: CRC | B152: UPW | C152: 40-49 | D152: Male | E152: White | F152: 1 | H152: 1 | J152: 1
A153: CRC | B153: UPW | C153: 18-24 | D153: Male | E153: White | G153: 1 | I153: 1 | K153: 1
A154: CRC | B154: UPW | C154: 25-29 | D154: Male | E154: White | F154: 1 | I154: 1 | J154: 1
A155: CRC | B155: UPW | C155: 18-24 | D155: Male | E155: Mixed | G155: 1 | I155: 1 | K155: 1
A156: CRC | B156: UPW | C156: 25-29 | D156: Male | E156: Asian | G156: 1 | I156: 1 | K156: 1
A157: CRC | B157: UPW | C157: 50+ | D157: Male | E157: White | F157: 1 | H157: 1 | J157: 1
A158: CRC | B158: UPW | C158: 18-24 | D158: Male | E158: White | G158: 1 | I158: 1 | K158: 1
A159: CRC | B159: UPW | C159: 18-24 | D159: Male | E159: Asian | G159: 1 | I159: 1 | K159: 1
A160: CRC | B160: UPW | C160: 40-49 | D160: Male | G160: 1 | I160: 1 | K160: 1
A161: CRC | B161: UPW | C161: 40-49 | D161: Male | E161: Black | F161: 1 | H161: 1 | J161: 1
A162: CRC | B162: UPW | C162: 18-24 | D162: Male | E162: White | F162: 1 | H162: 1 | J162: 1
A163: CRC | B163: UPW | C163: 18-24 | D163: Male | E163: Asian | G163: 1 | H163: 1 | J163: 1
A164: CRC | B164: UPW | C164: 25-29 | D164: Male | H164: 1 | J164: 1
A165: CRC | B165: UPW | C165: 18-24 | D165: Male | E165: White | H165: 1 | J165: 1
A166: CRC | B166: UPW | C166: 30-39 | D166: Male | E166: White | F166: 1 | H166: 1 | J166: 1
A167: CRC | B167: UPW | C167: 25-29 | D167: Male | E167: White | F167: 1 | H167: 1 | J167: 1
A168: CRC | B168: UPW | C168: 18-24 | D168: Male | E168: White | F168: 1 | H168: 1 | J168: 1
A169: CRC | B169: UPW | C169: 30-39 | D169: Male | E169: White | F169: 1 | I169: 1 | K169: 1
A170: CRC | B170: UPW | C170: 30-39 | D170: Male | E170: White | G170: 1 | I170: 1 | K170: 1
A171: CRC | B171: UPW | C171: 30-39 | D171: Male | E171: White | G171: 1 | H171: 1 | K171: 1
A172: CRC | B172: UPW | C172: 18-24 | D172: Male | E172: White | F172: 1 | H172: 1 | J172: 1
A173: CRC | B173: UPW | C173: 18-24 | D173: Male | E173: Asian | F173: 1 | H173: 1 | K173: 1
A174: CRC | B174: UPW | C174: 50+ | D174: Female | E174: White | G174: 1 | I174: 1 | J174: 1
A175: CRC | B175: UPW | C175: 25-29 | D175: Male | E175: Asian | F175: 1 | H175: 1 | J175: 1
A176: CRC | B176: UPW | C176: 18-24 | D176: Male | E176: White | G176: 1 | I176: 1 | K176: 1
A177: CRC | B177: UPW | C177: 25-29 | D177: Male | E177: White | F177: 1 | H177: 1 | J177: 1
A178: CRC | B178: UPW | C178: 30-39 | D178: Male | E178: Black | F178: 1 | H178: 1 | J178: 1
A179: CRC | B179: UPW | C179: 25-29 | D179: Male | E179: White | F179: 1 | H179: 1 | K179: 1
A180: CRC | B180: UPW | C180: 18-24 | D180: Female | E180: Mixed | G180: 1 | I180: 1 | J180: 1
A181: CRC | B181: UPW | C181: 30-39 | D181: Male | E181: White | F181: 1 | I181: 1 | J181: 1
A182: CRC | B182: UPW | C182: 18-24 | D182: Male | E182: White | F182: 1 | H182: 1 | J182: 1
A183: CRC | B183: UPW | C183: 40-49 | D183: Male | E183: White | F183: 1 | I183: 1 | J183: 1
A184: CRC | B184: UPW | C184: 50+ | D184: Male | E184: Other | F184: 1 | H184: 1 | J184: 1
A185: CRC | B185: UPW | C185: 18-24 | D185: Female | E185: White | F185: 1 | H185: 1 | J185: 1
A186: CRC | B186: UPW | C186: 40-49 | D186: Female | E186: White | F186: 1 | H186: 1 | K186: 1
A187: CRC | B187: UPW | C187: 30-39 | D187: Female | E187: White | F187: 1 | H187: 1 | J187: 1
A188: CRC | B188: UPW | C188: 30-39 | D188: Male | E188: White | F188: 1 | I188: 1 | J188: 1
A189: CRC | B189: UPW | C189: 25-29 | D189: Male | E189: White | F189: 1 | H189: 1 | J189: 1
A190: CRC | B190: UPW | C190: 30-39 | D190: Male | E190: White | G190: 1 | I190: 1 | K190: 1
A191: CRC | B191: UPW | C191: 25-29 | D191: Male | E191: White | F191: 1 | H191: 1 | J191: 1
A192: CRC | B192: UPW | C192: 30-39 | E192: Mixed | F192: 1 | H192: 1 | J192: 1
A193: CRC | B193: UPW | C193: 40-49 | D193: Male | E193: White | F193: 1 | H193: 1 | J193: 1
A194: CRC | B194: UPW | C194: 18-24 | D194: Male | E194: White | F194: 1 | H194: 1 | J194: 1
A195: CRC | B195: UPW | C195: 40-49 | D195: Female | E195: White | F195: 1 | H195: 1 | K195: 1
A196: CRC | B196: UPW | C196: 25-29 | D196: Male | E196: White | F196: 1 | I196: 1 | K196: 1
A197: CRC | B197: UPW | C197: 30-39 | D197: Male | E197: White | F197: 1 | I197: 1 | J197: 1
A198: CRC | B198: UPW | C198: 30-39 | D198: Male | E198: White | F198: 1 | H198: 1 | J198: 1
A199: CRC | B199: UPW | C199: 25-29 | D199: Male | E199: White | F199: 1 | I199: 1 | J199: 1
A200: CRC | B200: UPW | C200: 40-49 | D200: Male | E200: White | F200: 1 | I200: 1 | K200: 1
... 215 more rows

Sheet Custom lists (hidden)
A1: 1 = CRC | B1: 1 = Community sentence | C1: 1 = PO | D1: Responsible officer | F1: Gender | H1: Ethnic group | J1: OGRS | L1: Type of case | N1: Age
A2: 2 = NPS | B2: 2 = Post-release supervision | C2: 2 = Other (was originally Trainee but now merged into 'other') | D2: PSO | F2: Male | H2: White | J2: Low | L2: Community sentence | N2: 18-24
C3: 3 = PSO | D3: PO | F3: Female | H3: Black | J3: Medium | L3: Post-release supervision | N3: 25-29
C4: 4 = Other | D4: Other | F4: (blank) | H4: Asian | J4: (Very) High | L4: (blank) | N4: 30-39
D5: (Blank) | H5: Mixed | J5: (blank) | N5: 40-49
H6: Other | N6: 50+
H7: (blank) | N7: (blank)
